Capital or Revenue,Directorate,SERCOP High Level Category,SERCOP Detailed Category,Transaction Number,Date,Service Area,Expenses Type,Amount,Supplier Name
Revenue,Adult Services,Adult Social Care,Central Codes (to be reallocated),5105634061,14.02.2020,Gouldings Resource Centre,Consumable Cleaning Materials,161.00,A & M APPLIANCE CARE
Revenue,Adult Services,Adult Social Care,Learning Disab Supp (to be reallocated),5105633547,12.02.2020,Plean Dene,Consumable Cleaning Materials,82.00,A & M APPLIANCE CARE
Revenue,Adult Services,Adult Social Care,Learning Disab Supp (to be reallocated),5105635362,28.02.2020,Plean Dene,Consumable Cleaning Materials,82.00,A & M APPLIANCE CARE
Revenue,Adult Services,Adult Social Care,Social Support - Support for Carer,5105632910,05.02.2020,Westminster House,Property Services - Day to day Maintenance,60.00,A & M APPLIANCE CARE
Revenue,Fire & Rescue,Fire & Rescue Services,Fire fighting and Rescue Operations,5105635361,28.02.2020,Fire Technical Support,General Materials,246.00,A & M APPLIANCE CARE
Capital,Place,Capital,Capital,5105633554,14.02.2020,Fire Capital Projects,"Plant, Equipment & Furniture - Capital",300.00,A & M APPLIANCE CARE
Revenue,Adult Services,Adult Social Care,Learning Disab Supp (to be reallocated),5105633527,12.02.2020,Seagulls,Operational Equipment,85.11,A & M APPLIANCE CARE
Revenue,Adult Services,Adult Social Care,Central Codes (to be reallocated),5105635359,28.02.2020,Adelaide Resource Centre,Consumable Cleaning Materials,236.00,A & M APPLIANCE CARE
Revenue,Neighbourhoods,Environmental & Regulatory Services,"Cemetery, Cremation & Mortuary Services",5105633647,12.02.2020,Cemeteries-Wroxall,Grounds Maintenance,250.00,A GUSTAR T/A IVY TREE CARE
Revenue,Adult Services,Adult Social Care,Assistive Equipment & Technology,5105630638,14.02.2020,Community Equipment Store,Consultants Fees,600.00,REDACTED PERSONAL DATA
Revenue,Childrens Services,Children's & Education Services,Other Education and Community Budget,5105635379,28.02.2020,Home to School SEN Transport (LA),Taxis - Contract Hire,"1,000.00",AMAR CABS OF NEWPORT
Revenue,Childrens Services,Children's & Education Services,Other Education and Community Budget,5105635432,28.02.2020,Home to School SEN Transport (LA),Taxis - Contract Hire,600.00,AMAR CABS OF NEWPORT
Revenue,Childrens Services,Children's & Education Services,Other Education and Community Budget,5105635143,28.02.2020,Home to School SEN Transport (LA),Taxis - Contract Hire,620.00,AMAR EXCLUSIVES
Revenue,Childrens Services,Balance Sheet,Balance Sheet,5105635433,28.02.2020,7741 - HV10 AAX,Vehicle Maintenance Costs,323.59,ISLANDWIDE WINDSCREENS
Revenue,Adult Services,Adult Social Care,Central Codes (to be reallocated),5105634875,21.02.2020,Community Reablement,Vehicle Maintenance Costs,47.50,ISLANDWIDE WINDSCREENS
Revenue,Neighbourhoods,Cultural and Related Services,Recreation and Sport,5105634134,19.02.2020,Commercial Sales Team,Vehicle Maintenance Costs,219.10,ISLANDWIDE WINDSCREENS
Revenue,Regeneration,Central Services,Support Services,5105634167,19.02.2020,17 Fairlee Road,Grounds Maintenance,150.00,C & J GROUND MAINTENANCE
Revenue,Regeneration,Central Services,Support Services,5105634308,19.02.2020,17 Fairlee Road,Grounds Maintenance,150.00,C & J GROUND MAINTENANCE
Capital,Place,Capital,Capital,5105633405,19.02.2020,Parks and Gardens Capital,Payment to Contractors - Capital,"-2,923.00",C & J GROUND MAINTENANCE
Capital,Place,Capital,Capital,5105633406,19.02.2020,Parks and Gardens Capital,Payment to Contractors - Capital,"2,923.00",C & J GROUND MAINTENANCE
Revenue,Regeneration,Housing Services,Other Council Property,5105634310,19.02.2020,Shared Ownership,Grounds Maintenance,150.00,C & J GROUND MAINTENANCE
Revenue,Regeneration,Central Services,Support Services,5105634313,19.02.2020,"24 Daish Way, Newport (WISE)",Grounds Maintenance,110.00,C & J GROUND MAINTENANCE
Revenue,Regeneration,Planning services,Business Support,5105634311,19.02.2020,Somerton Industrial Park,Grounds Maintenance,200.00,C & J GROUND MAINTENANCE
Revenue,Regeneration,Planning services,Business Support,5105635001,26.02.2020,Dodnor Industrial Estate,Grounds Maintenance,150.00,C & J GROUND MAINTENANCE
Revenue,Childrens Services,Children's & Education Services,Other Education and Community Budget,5105634065,14.02.2020,Home to College Post 16 Transport,Taxis - Contract Hire,552.00,MICK'S TAXI
Revenue,Childrens Services,Children's & Education Services,Other Education and Community Budget,5105634064,14.02.2020,Home to School Mainstream Transport,Taxis - Contract Hire,880.00,MICK'S TAXI
Revenue,Childrens Services,Children's & Education Services,Other Education and Community Budget,5105634778,21.02.2020,Home to School SEN Transport (LA),Taxis - Contract Hire,"1,100.00",CLARES CABS
Revenue,Resources,Central Services,Support Services,5105633418,07.02.2020,Litigation Costs,Legal Fees - Other Parties,750.00,CORNERSTONE BARRISTERS
Revenue,Resources,Central Services,Support Services,5105634876,21.02.2020,Litigation Costs,Legal Fees - Other Parties,400.00,COLLEGE CHAMBERS BARRISTERS
Revenue,Resources,Central Services,Support Services,5105633040,05.02.2020,Litigation Costs,Legal Fees - Other Parties,400.00,COLLEGE CHAMBERS BARRISTERS
Revenue,Resources,Central Services,Support Services,5105634976,26.02.2020,Litigation Costs,Legal Fees - Other Parties,400.00,COLLEGE CHAMBERS BARRISTERS
Revenue,Childrens Services,Adult Social Care,Social Care Activities,5400002569,28.02.2020,Adult Social Care - Workforce Development,Training,145.00,EDGE TRAINING & CONS LTD
Revenue,Resources,Children's & Education Services,Safeguarding Children/Young Peoples Svs,5105634903,21.02.2020,Training - Childrens,Training,850.00,FRAN OSMAN-NEWBURY LTD
Revenue,Childrens Services,Children's & Education Services,Other Education and Community Budget,5105634135,19.02.2020,Home to School SEN Transport (LA),Taxis - Contract Hire,160.00,HAYLES TAXIS
Revenue,Childrens Services,Children's & Education Services,Other Education and Community Budget,5105634137,19.02.2020,Home to School SEN Transport (LA),Taxis - Contract Hire,760.00,HAYLES TAXIS
Revenue,Childrens Services,Children's & Education Services,Other Education and Community Budget,5105633514,07.02.2020,Home to College Post 16 Transport,Taxis - Contract Hire,-418.00,HAYLES TAXIS
Revenue,Childrens Services,Children's & Education Services,Other Education and Community Budget,5105633697,12.02.2020,Home to College Post 16 Transport,Taxis - Contract Hire,600.00,HAYLES TAXIS
Revenue,Childrens Services,Children's & Education Services,Other Education and Community Budget,5105634907,28.02.2020,Home to College Post 16 Transport,Taxis - Contract Hire,418.00,HAYLES TAXIS
Revenue,Childrens Services,Children's & Education Services,Other Education and Community Budget,5105634105,14.02.2020,Home to College Post 16 Transport,Taxis - Contract Hire,220.00,HAYLES TAXIS
Revenue,Childrens Services,Children's & Education Services,Other Education and Community Budget,5105635006,26.02.2020,Non-Delegated Building Maintenance,Professional Services,"1,260.00",ISLAND HIGHWAY & TRANSPORT
Revenue,Adult Services,Adult Social Care,Learning Disab Supp (to be reallocated),5105633469,07.02.2020,31 Carter Avenue,Cleaning Contracts,27.00,ISLANDWIDE WINDOW CLEANING
Revenue,Adult Services,Adult Social Care,Learning Disab Supp (to be reallocated),5105633469,07.02.2020,Plean Dene,Cleaning Contracts,85.00,ISLANDWIDE WINDOW CLEANING
Revenue,Adult Services,Adult Social Care,Learning Disab Supp (to be reallocated),5105633469,07.02.2020,Saxonbury,Cleaning Contracts,33.00,ISLANDWIDE WINDOW CLEANING
Revenue,Adult Services,Adult Social Care,Social Support - Support for Carer,5105633469,07.02.2020,Westminster House,Cleaning Contracts,59.00,ISLANDWIDE WINDOW CLEANING
Revenue,Resources,Central Services,Support Services,5105634060,19.02.2020,ICT Contracts,Computer Maintenance,300.00,REDACTED PERSONAL DATA
Revenue,Childrens Services,Children's & Education Services,Special Schools & Alternative Provision,5105633696,12.02.2020,Island Learning Centre,Bought in Prof Services - Curriculum (Schools),200.00,JOHN CATTLE'S SKATE CLUB
Revenue,Childrens Services,Children's & Education Services,Special Schools & Alternative Provision,5105633956,14.02.2020,Island Learning Centre,Bought in Prof Services - Curriculum (Schools),150.00,JOHN CATTLE'S SKATE CLUB
Revenue,Childrens Services,Children's & Education Services,Special Schools & Alternative Provision,5105633342,07.02.2020,Island Learning Centre,Bought in Prof Services - Curriculum (Schools),200.00,JOHN CATTLE'S SKATE CLUB
Revenue,Childrens Services,Children's & Education Services,Family Support Services,5400002578,28.02.2020,Short Breaks,Charges from Independent Providers,491.52,JOHN CATTLE'S SKATE CLUB
Revenue,Adult Services,Adult Social Care,Social Care Activities,5105633433,07.02.2020,Local Safeguarding Adults Board,Professional Services,810.00,MAKING CONNECTIONS (IW) LTD
Revenue,Adult Services,Adult Social Care,Social Care Activities,5105635407,28.02.2020,Local Safeguarding Adults Board,Professional Services,450.00,MAKING CONNECTIONS (IW) LTD
Revenue,Adult Services,Adult Social Care,Social Care Activities,5105635407,28.02.2020,Local Safeguarding Adults Board,Professional Services,450.00,MAKING CONNECTIONS (IW) LTD
Revenue,Childrens Services,Adult Social Care,Social Care Activities,5105633461,07.02.2020,Adult Social Care - Workforce Development,Training,"1,300.00",MAKING CONNECTIONS (IW) LTD
Revenue,Childrens Services,Children's & Education Services,Other Education and Community Budget,5105634416,19.02.2020,Home to School SEN Transport (LA),Taxis - Contract Hire,"1,560.00",MR TAXIS
Capital,Place,Capital,Capital,5105633733,12.02.2020,Rights Of Way Capital Programme,Payment to Contractors - Capital,440.00,REDACTED PERSONAL DATA
Capital,Place,Capital,Capital,5105633396,07.02.2020,Rights Of Way Capital Programme,Payment to Contractors - Capital,440.00,REDACTED PERSONAL DATA
Revenue,Neighbourhoods,Cultural and Related Services,Open Spaces,5105631902,12.02.2020,Other Grounds Maintenance,Payment to Private Contractors,"1,745.00",REDACTED PERSONAL DATA
Revenue,Neighbourhoods,Cultural and Related Services,Open Spaces,5105633397,07.02.2020,Countryside Management,Payment to Private Contractors,340.00,REDACTED PERSONAL DATA
Revenue,Neighbourhoods,Cultural and Related Services,Open Spaces,5105633548,07.02.2020,Rights of Way Operations,Payment to Private Contractors,300.00,NIGEL EARLEY SERVICES LTD
Revenue,Resources,Central Services,Support Services,5105634462,19.02.2020,Legal Services Section,Sundry Office Expenses,59.97,OD CONSULTANCY LTD
Revenue,Adult Services,Housing Services,Homelessness,5105634482,21.02.2020,Private Rented Sector Leasing Scheme,Accommodation Costs - Leaseholder Payments,695.89,REDACTED PERSONAL DATA
Revenue,Adult Services,Housing Services,Homelessness,5105634482,21.02.2020,Private Rented Sector Leasing Scheme,Accommodation Costs - Leaseholder Payments,695.89,REDACTED PERSONAL DATA
Revenue,Adult Services,Housing Services,Homelessness,5105634482,21.02.2020,Private Rented Sector Leasing Scheme,Accommodation Costs - Leaseholder Payments,695.89,REDACTED PERSONAL DATA
Revenue,Adult Services,Housing Services,Homelessness,5105634482,21.02.2020,Private Rented Sector Leasing Scheme,Accommodation Costs - Leaseholder Payments,695.89,REDACTED PERSONAL DATA
Revenue,Adult Services,Housing Services,Homelessness,5105634482,21.02.2020,Private Rented Sector Leasing Scheme,Accommodation Costs - Leaseholder Payments,695.89,REDACTED PERSONAL DATA
Revenue,Childrens Services,Children's & Education Services,Children Looked After,5105635025,26.02.2020,Adoption Support Fund,Charges from Independent Providers,60.00,REDACTED PERSONAL DATA
Revenue,Childrens Services,Children's & Education Services,Children Looked After,5105635087,26.02.2020,Adoption Support Fund,Charges from Independent Providers,140.00,REDACTED PERSONAL DATA
Revenue,Childrens Services,Children's & Education Services,Children Looked After,5400002568,28.02.2020,Adoption Support Fund,Charges from Independent Providers,41.32,REDACTED PERSONAL DATA
Revenue,Childrens Services,Children's & Education Services,Children Looked After,5105632217,12.02.2020,Adoption Support Fund,Charges from Independent Providers,140.00,REDACTED PERSONAL DATA
Revenue,Adult Services,Adult Social Care,Commissioning & Service Delivery,5105633102,05.02.2020,Deferred Payment Fees,Professional Services,150.00,PRINCIPAL SURVEYORS LTD
Revenue,Regeneration,Central Services,Support Services,5105632343,05.02.2020,Strategic Assets Team,Professional Services,"6,000.00",PRINCIPAL SURVEYORS LTD
Revenue,Childrens Services,Children's & Education Services,Other Education and Community Budget,5105634473,21.02.2020,Non-Delegated Building Maintenance,Professional Services,650.00,PRINCIPAL SURVEYORS LTD
Revenue,Neighbourhoods,Environmental & Regulatory Services,"Cemetery, Cremation & Mortuary Services",5105635069,26.02.2020,Crematorium,Operational Equipment,377.50,PRO-TECH GROUP
Revenue,Childrens Services,Children's & Education Services,Management & Support Services,5105635160,28.02.2020,Special Discretionary Grants,Charges from Independent Providers,"2,700.00",REDACTED PERSONAL DATA
Revenue,Childrens Services,Children's & Education Services,Other Education and Community Budget,5105632912,05.02.2020,Home to School SEN Transport (LA),Taxis - Contract Hire,150.00,ROUNSEVELLS TAXIS
Revenue,Childrens Services,Children's & Education Services,Other Education and Community Budget,5105632355,05.02.2020,Home to School SEN Transport (LA),Taxis - Contract Hire,150.00,ROUNSEVELLS TAXIS
Revenue,Childrens Services,Children's & Education Services,Other Education and Community Budget,5105634388,21.02.2020,Home to School SEN Transport (LA),Taxis - Contract Hire,150.00,ROUNSEVELLS TAXIS
Revenue,Childrens Services,Children's & Education Services,Other Education and Community Budget,5105634331,21.02.2020,Home to School SEN Transport (LA),Taxis - Contract Hire,135.00,ROUNSEVELLS TAXIS
Revenue,Childrens Services,Children's & Education Services,Other Education and Community Budget,5105633395,12.02.2020,Home to School SEN Transport (LA),Taxis - Contract Hire,150.00,ROUNSEVELLS TAXIS
Revenue,Childrens Services,Children's & Education Services,Other Education and Community Budget,5105633412,12.02.2020,Home to School SEN Transport (LA),Taxis - Contract Hire,150.00,ROUNSEVELLS TAXIS
Revenue,Childrens Services,Children's & Education Services,Other Education and Community Budget,5400002563,28.02.2020,Home to School SEN Transport (LA),Taxis - Contract Hire,0.50,ROUNSEVELLS TAXIS
Revenue,Childrens Services,Children's & Education Services,Other Education and Community Budget,5105635115,28.02.2020,Home to School SEN Transport (LA),Taxis - Contract Hire,150.00,ROUNSEVELLS TAXIS
Revenue,Childrens Services,Children's & Education Services,Other Education and Community Budget,5105632920,05.02.2020,Home to School SEN Transport (LA),Taxis - Contract Hire,150.00,ROUNSEVELLS TAXIS
Revenue,Childrens Services,Children's & Education Services,Other Education and Community Budget,5105633394,12.02.2020,Home to College Post 16 Transport,Taxis - Contract Hire,249.00,ROUNSEVELLS TAXIS
Revenue,Childrens Services,Children's & Education Services,Other Education and Community Budget,5105635113,28.02.2020,Home to College Post 16 Transport,Taxis - Contract Hire,249.00,ROUNSEVELLS TAXIS
Revenue,Childrens Services,Children's & Education Services,Other Education and Community Budget,5105632354,05.02.2020,Home to College Post 16 Transport,Taxis - Contract Hire,249.00,ROUNSEVELLS TAXIS
Revenue,Childrens Services,Children's & Education Services,Other Education and Community Budget,5105632907,05.02.2020,Home to College Post 16 Transport,Taxis - Contract Hire,249.00,ROUNSEVELLS TAXIS
Revenue,Childrens Services,Children's & Education Services,Other Education and Community Budget,5105634270,21.02.2020,Home to College Post 16 Transport,Taxis - Contract Hire,179.00,ROUNSEVELLS TAXIS
Revenue,Childrens Services,Children's & Education Services,Family Support Services,5105634798,21.02.2020,Short Breaks,Charges from Independent Providers,150.00,SPLAT MESSY PLAY LTD
Revenue,Childrens Services,Adult Social Care,Social Care Activities,5105633127,07.02.2020,Adult Social Care - Workforce Development,Training,549.00,ST THOMAS TRAINING
Revenue,Childrens Services,Adult Social Care,Social Care Activities,5105635150,28.02.2020,Adult Social Care - Workforce Development,Training,549.00,ST THOMAS TRAINING
Revenue,Childrens Services,Children's & Education Services,Safeguarding Children/Young Peoples Svs,5105632981,05.02.2020,LSCB (Local Safeguarding Childrens Board),Training,"1,100.00",SANDSTORIES
Revenue,Childrens Services,Children's & Education Services,Safeguarding Children/Young Peoples Svs,5105632981,05.02.2020,LSCB (Local Safeguarding Childrens Board),Training,460.15,SANDSTORIES
Revenue,Childrens Services,Children's & Education Services,Management & Support Services,5400002591,28.02.2020,Pupil Premium Managed Centrally,Professional Services,240.00,SUPPLY DESK LTD
Revenue,Childrens Services,Children's & Education Services,Management & Support Services,5400002591,28.02.2020,Pupil Premium Managed Centrally,Professional Services,160.00,SUPPLY DESK LTD
Revenue,Resources,Children's & Education Services,Other Education and Community Budget,5105634772,21.02.2020,Workforce Development Schools,Training,400.00,THE CROSSLEY COMPANY (IOW) LTD
Revenue,Childrens Services,Children's & Education Services,Other Education and Community Budget,5105635052,26.02.2020,Commissioning ACL,Grants to External Bodies,"6,000.00",THE CROSSLEY COMPANY (IOW) LTD
Revenue,Childrens Services,Children's & Education Services,Other Education and Community Budget,5105634772,21.02.2020,Workforce Development - Early Years,Training,600.00,THE CROSSLEY COMPANY (IOW) LTD
Revenue,Childrens Services,Children's & Education Services,Family Support Services,5105634342,19.02.2020,Short Breaks,Grants to External Bodies,299.64,THE VECTIS RADIO 4PS TRAINING
Revenue,Childrens Services,Children's & Education Services,Other Education and Community Budget,5105634120,14.02.2020,Home to School SEN Transport (LA),Taxis - Contract Hire,"2,200.00",THOMPSON TAXI
Revenue,Childrens Services,Children's & Education Services,Other Education and Community Budget,5105634144,19.02.2020,Home to School SEN Transport (LA),Taxis - Contract Hire,"1,400.00",THOMPSON TAXI
Revenue,Childrens Services,Children's & Education Services,Other Education and Community Budget,5105634101,14.02.2020,Home to School SEN Transport (LA),Taxis - Contract Hire,720.00,THOMPSON TAXI
Revenue,Childrens Services,Children's & Education Services,Other Education and Community Budget,5105634123,14.02.2020,Home to School Mainstream Transport,Taxis - Contract Hire,950.00,THOMPSON TAXI
Revenue,Childrens Services,Children's & Education Services,Other Education and Community Budget,5105631957,07.02.2020,Home to School SEN Transport (LA),Taxis - Contract Hire,480.00,TJ CAR SERVICES LTD
Revenue,Childrens Services,Children's & Education Services,Other Education and Community Budget,5105634907,28.02.2020,Home to School SEN Transport (LA),Taxis - Contract Hire,328.00,TJ CAR SERVICES LTD
Revenue,Childrens Services,Children's & Education Services,Other Education and Community Budget,5105634907,28.02.2020,Home to School SEN Transport (LA),Taxis - Contract Hire,640.00,TJ CAR SERVICES LTD
Revenue,Childrens Services,Children's & Education Services,Other Education and Community Budget,5105633514,07.02.2020,Home to School SEN Transport (LA),Taxis - Contract Hire,-576.00,TJ CAR SERVICES LTD
Revenue,Childrens Services,Children's & Education Services,Other Education and Community Budget,5105633515,07.02.2020,Home to School SEN Transport (LA),Taxis - Contract Hire,576.00,TJ CAR SERVICES LTD
Revenue,Childrens Services,Children's & Education Services,Other Education and Community Budget,5105633514,07.02.2020,Home to College Post 16 Transport,Taxis - Contract Hire,-506.00,TJ CAR SERVICES LTD
Revenue,Childrens Services,Children's & Education Services,Other Education and Community Budget,5105633514,07.02.2020,Home to College Post 16 Transport,Taxis - Contract Hire,-220.00,TJ CAR SERVICES LTD
Revenue,Childrens Services,Children's & Education Services,Other Education and Community Budget,5105633515,07.02.2020,Home to College Post 16 Transport,Taxis - Contract Hire,418.00,TJ CAR SERVICES LTD
Revenue,Childrens Services,Children's & Education Services,Other Education and Community Budget,5105633515,07.02.2020,Home to College Post 16 Transport,Taxis - Contract Hire,506.00,TJ CAR SERVICES LTD
Revenue,Childrens Services,Children's & Education Services,Other Education and Community Budget,5105633515,07.02.2020,Home to College Post 16 Transport,Taxis - Contract Hire,220.00,TJ CAR SERVICES LTD
Revenue,Childrens Services,Children's & Education Services,Other Education and Community Budget,5105633515,07.02.2020,Home to College Post 16 Transport,Taxis - Contract Hire,864.00,TJ CAR SERVICES LTD
Revenue,Childrens Services,Children's & Education Services,Other Education and Community Budget,5105633514,07.02.2020,Home to College Post 16 Transport,Taxis - Contract Hire,-864.00,TJ CAR SERVICES LTD
Revenue,Childrens Services,Children's & Education Services,Other Education and Community Budget,5105634907,28.02.2020,Home to College Post 16 Transport,Taxis - Contract Hire,506.00,TJ CAR SERVICES LTD
Revenue,Childrens Services,Children's & Education Services,Other Education and Community Budget,5105634907,28.02.2020,Home to College Post 16 Transport,Taxis - Contract Hire,250.00,TJ CAR SERVICES LTD
Revenue,Childrens Services,Children's & Education Services,Other Education and Community Budget,5105634907,28.02.2020,Home to College Post 16 Transport,Taxis - Contract Hire,768.00,TJ CAR SERVICES LTD
Revenue,Childrens Services,Children's & Education Services,Other Education and Community Budget,5105631957,07.02.2020,Home to College Post 16 Transport,Taxis - Contract Hire,323.00,TJ CAR SERVICES LTD
Revenue,Childrens Services,Children's & Education Services,Other Education and Community Budget,5105631957,07.02.2020,Home to College Post 16 Transport,Taxis - Contract Hire,552.00,TJ CAR SERVICES LTD
Revenue,Childrens Services,Children's & Education Services,Other Education and Community Budget,5105631957,07.02.2020,Home to College Post 16 Transport,Taxis - Contract Hire,345.00,TJ CAR SERVICES LTD
Revenue,Childrens Services,Children's & Education Services,Other Education and Community Budget,5105631957,07.02.2020,Home to College Post 16 Transport,Taxis - Contract Hire,180.00,TJ CAR SERVICES LTD
Revenue,Childrens Services,Children's & Education Services,Special Schools & Alternative Provision,5105634337,19.02.2020,Island Learning Centre,Consumable Cleaning Materials,80.59,TOP MOPS LIMITED
Revenue,Childrens Services,Children's & Education Services,Special Schools & Alternative Provision,5105633440,07.02.2020,Island Learning Centre,Cleaning Contracts,431.81,TOP MOPS LIMITED
Revenue,Childrens Services,Children's & Education Services,Special Schools & Alternative Provision,5105633440,07.02.2020,Island Learning Centre,Cleaning Contracts,431.81,TOP MOPS LIMITED
Revenue,Childrens Services,Children's & Education Services,Special Schools & Alternative Provision,5105633436,07.02.2020,Island Learning Centre,Cleaning Contracts,192.93,TOP MOPS LIMITED
Revenue,Childrens Services,Children's & Education Services,Special Schools & Alternative Provision,5105633436,07.02.2020,Island Learning Centre,Cleaning Contracts,51.44,TOP MOPS LIMITED
Revenue,Childrens Services,Children's & Education Services,Special Schools & Alternative Provision,5105633436,07.02.2020,Island Learning Centre,Cleaning Contracts,192.93,TOP MOPS LIMITED
Revenue,Regeneration,Planning services,Economic Development,5105633715,12.02.2020,"Pier St, Sandown",Cleaning Contracts,65.00,TOP MOPS LIMITED
Revenue,Regeneration,Planning services,Economic Development,5105633691,12.02.2020,"Pier St, Sandown",Cleaning Contracts,-222.50,TOP MOPS LIMITED
Revenue,Regeneration,Planning services,Economic Development,5105632252,12.02.2020,"Pier St, Sandown",Cleaning Contracts,222.50,TOP MOPS LIMITED
Revenue,Childrens Services,Children's & Education Services,Other Education and Community Budget,5105632975,05.02.2020,Barton Primary Sshool Disposal,Security of Buildings,237.00,VECTIS GROUP SECURITY LTD
Revenue,Regeneration,Central Services,Support Services,5105635364,28.02.2020,Non-operational buildings,Security of Buildings,75.00,VECTIS GROUP SECURITY LTD
Revenue,Neighbourhoods,Cultural and Related Services,Recreation and Sport,5105634309,19.02.2020,Medina Leisure Centre,Payment to Private Contractors,12.00,VECTIS GROUP SECURITY LTD
Revenue,Childrens Services,Children's & Education Services,Other Education and Community Budget,5105632977,05.02.2020,Weston Academy Closure,Security of Buildings,192.00,VECTIS GROUP SECURITY LTD
Revenue,Regeneration,Central Services,Support Services,5105635148,28.02.2020,"Westridge, Ryde",Security of Buildings,92.00,VECTIS GROUP SECURITY LTD
Revenue,Childrens Services,Children's & Education Services,Special Schools & Alternative Provision,5105634390,19.02.2020,Island Learning Centre,Security of Buildings,12.00,VECTIS GROUP SECURITY LTD
Revenue,Childrens Services,Children's & Education Services,Special Schools & Alternative Provision,5105634390,19.02.2020,Island Learning Centre,Security of Buildings,30.00,VECTIS GROUP SECURITY LTD
Revenue,Neighbourhoods,Cultural and Related Services,Recreation and Sport,5105634297,19.02.2020,Westridge Squash Courts,Maintenance of Operational Equipment,12.00,VECTIS GROUP SECURITY LTD
Revenue,Childrens Services,Children's & Education Services,Support Services,5105634395,19.02.2020,Grafton Street Sandown (ex Sandown Yth),Security of Buildings,72.00,VECTIS GROUP SECURITY LTD
Revenue,Childrens Services,Children's & Education Services,Other Education and Community Budget,5105632976,05.02.2020,Broadlea PS Berry Hill site (was 55909),Security of Buildings,7.50,VECTIS GROUP SECURITY LTD
Revenue,Childrens Services,Children's & Education Services,Other Education and Community Budget,5105632976,05.02.2020,Broadlea PS Berry Hill site (was 55909),Security of Buildings,22.50,VECTIS GROUP SECURITY LTD
Revenue,Adult Services,Adult Social Care,Learning Disab Supp (to be reallocated),5105633468,07.02.2020,The Laurels,Minor Works,60.00,VECTIS GROUP SECURITY LTD
Revenue,Neighbourhoods,Cultural and Related Services,Recreation and Sport,5105634315,19.02.2020,The Heights,Maintenance of Operational Equipment,72.00,VECTIS GROUP SECURITY LTD
Revenue,Childrens Services,Children's & Education Services,Other Education and Community Budget,5105634127,19.02.2020,Home to School SEN Transport (LA),Taxis - Contract Hire,800.00,W W CARS OF SEAVIEW
Revenue,Childrens Services,Children's & Education Services,Other Education and Community Budget,5105634151,19.02.2020,Home to School SEN Transport (LA),Taxis - Contract Hire,"2,000.00",W W CARS OF SEAVIEW
Revenue,Childrens Services,Children's & Education Services,Other Education and Community Budget,5105634110,14.02.2020,Home to School SEN Transport (LA),Taxis - Contract Hire,144.00,W W CARS OF SEAVIEW
Revenue,Childrens Services,Children's & Education Services,Other Education and Community Budget,5105634121,14.02.2020,Home to College Post 16 Transport,Taxis - Contract Hire,684.00,W W CARS OF SEAVIEW
Revenue,Childrens Services,Children's & Education Services,Other Education and Community Budget,5105633580,12.02.2020,Home to School SEN Transport (LA),Taxis - Contract Hire,741.00,HAVEN TAXIS & PRIVATE HIRE
Revenue,Childrens Services,Children's & Education Services,Other Education and Community Budget,5105635494,28.02.2020,Children's Services Strategic Management,Property Services - Day to day Maintenance,177.08,WIGHT HEATING LTD
Revenue,Regeneration,Planning services,Business Support,5105633390,07.02.2020,Properties Industrial Estates,Property Services - Planned Maintenance,40.00,WIGHT HEATING LTD
Capital,Childrens Services,Capital,Capital,5105633967,14.02.2020,Administration and Inspection Schemes,Payment to Contractors - Capital,"5,783.77",WIGHT HEATING LTD
Revenue,Fire & Rescue,Fire & Rescue Services,Fire fighting and Rescue Operations,5105633340,07.02.2020,Business Support  - Fire,Property Services - Planned Maintenance,40.00,WIGHT HEATING LTD
Revenue,Adult Services,Adult Social Care,Assistive Equipment & Technology,5105635492,28.02.2020,Community Equipment Store,Minor Works,97.50,WIGHT HEATING LTD
Revenue,Neighbourhoods,Cultural and Related Services,Recreation and Sport,5105635487,28.02.2020,Medina Leisure Centre,Property Services - Day to day Maintenance,80.00,WIGHT HEATING LTD
Revenue,Regeneration,Central Services,Support Services,5105633387,07.02.2020,Properties  - Other Properties,Property Services - Day to day Maintenance,134.18,WIGHT HEATING LTD
Revenue,Regeneration,Central Services,Support Services,5105635490,28.02.2020,"County Hall,Newport",Property Services - Day to day Maintenance,80.00,WIGHT HEATING LTD
Revenue,Regeneration,Central Services,Support Services,5105633391,07.02.2020,"Jubilee Stores, Newport",Property Services - Day to day Maintenance,147.34,WIGHT HEATING LTD
Revenue,Neighbourhoods,Cultural and Related Services,Recreation and Sport,5105633341,07.02.2020,Westridge Squash Courts,Property Services - Planned Maintenance,40.00,WIGHT HEATING LTD
Revenue,Regeneration,Central Services,Support Services,5105634305,28.02.2020,"Civic Centre,Sandown",Property Services - Day to day Maintenance,-139.08,WIGHT HEATING LTD
Revenue,Adult Services,Adult Social Care,Mental Health Support (to be reallocated),5105635488,28.02.2020,Mental Health Day Services,Property Services - Day to day Maintenance,80.00,WIGHT HEATING LTD
Revenue,Adult Services,Housing Services,Homelessness,5105634495,21.02.2020,Private Rented Sector Leasing Scheme,Accommodation Costs - Leaseholder Payments,866.67,2K PROPERTY
Revenue,Regeneration,Planning services,Economic Development,5105604017,28.02.2020,Pitch and Play Strategy,Consultants Fees,"12,419.75",4 GLOBAL CONSULTING LTD
Revenue,Childrens Services,Children's & Education Services,Children Looked After,5105633763,14.02.2020,Special Guardianship Order Costs,Support Children,207.73,REDACTED PERSONAL DATA
Revenue,Childrens Services,Children's & Education Services,Children Looked After,5105634550,21.02.2020,Special Guardianship Order Costs,Support Children,207.73,REDACTED PERSONAL DATA
Revenue,Childrens Services,Children's & Education Services,Children Looked After,5105635195,28.02.2020,Special Guardianship Order Costs,Support Children,207.73,REDACTED PERSONAL DATA
Revenue,Childrens Services,Children's & Education Services,Children Looked After,5105633179,07.02.2020,Special Guardianship Order Costs,Support Children,207.73,REDACTED PERSONAL DATA
Revenue,Childrens Services,Children's & Education Services,Children Looked After,5105634550,21.02.2020,In-house Fostering,Boarding Out Allowances,239.44,REDACTED PERSONAL DATA
Revenue,Childrens Services,Children's & Education Services,Children Looked After,5105634550,21.02.2020,In-house Fostering,Boarding Out Allowances,239.44,REDACTED PERSONAL DATA
Revenue,Childrens Services,Children's & Education Services,Children Looked After,5105633179,07.02.2020,In-house Fostering,Boarding Out Allowances,239.44,REDACTED PERSONAL DATA
Revenue,Childrens Services,Children's & Education Services,Children Looked After,5105633179,07.02.2020,In-house Fostering,Boarding Out Allowances,239.44,REDACTED PERSONAL DATA
Revenue,Childrens Services,Children's & Education Services,Children Looked After,5105635195,28.02.2020,In-house Fostering,Boarding Out Allowances,239.44,REDACTED PERSONAL DATA
Revenue,Childrens Services,Children's & Education Services,Children Looked After,5105635195,28.02.2020,In-house Fostering,Boarding Out Allowances,239.44,REDACTED PERSONAL DATA
Revenue,Childrens Services,Children's & Education Services,Children Looked After,5105633763,14.02.2020,In-house Fostering,Boarding Out Allowances,239.44,REDACTED PERSONAL DATA
Revenue,Childrens Services,Children's & Education Services,Children Looked After,5105633763,14.02.2020,In-house Fostering,Boarding Out Allowances,239.44,REDACTED PERSONAL DATA
Revenue,Childrens Services,Children's & Education Services,Children Looked After,5105634611,21.02.2020,Leaving Care Costs,Support Children,120.89,REDACTED PERSONAL DATA
Revenue,Childrens Services,Children's & Education Services,Children Looked After,5105634611,21.02.2020,Leaving Care Costs,Support Children,68.50,REDACTED PERSONAL DATA
Revenue,Childrens Services,Children's & Education Services,Children Looked After,5105633804,14.02.2020,Leaving Care Costs,Support Children,120.89,REDACTED PERSONAL DATA
Revenue,Childrens Services,Children's & Education Services,Children Looked After,5105633804,14.02.2020,Leaving Care Costs,Support Children,68.50,REDACTED PERSONAL DATA
Revenue,Childrens Services,Children's & Education Services,Children Looked After,5105635236,28.02.2020,Leaving Care Costs,Support Children,120.89,REDACTED PERSONAL DATA
Revenue,Childrens Services,Children's & Education Services,Children Looked After,5105635236,28.02.2020,Leaving Care Costs,Support Children,68.50,REDACTED PERSONAL DATA
Revenue,Childrens Services,Children's & Education Services,Children Looked After,5105633220,07.02.2020,Leaving Care Costs,Support Children,120.89,REDACTED PERSONAL DATA
Revenue,Childrens Services,Children's & Education Services,Children Looked After,5105633220,07.02.2020,Leaving Care Costs,Support Children,68.50,REDACTED PERSONAL DATA
Revenue,Adult Services,Housing Services,Homelessness,5105634492,21.02.2020,Private Rented Sector Leasing Scheme,Accommodation Costs - Leaseholder Payments,510.25,REDACTED PERSONAL DATA
Revenue,Adult Services,Housing Services,Homelessness,5105634492,21.02.2020,Private Rented Sector Leasing Scheme,Accommodation Costs - Leaseholder Payments,510.25,REDACTED PERSONAL DATA
Revenue,Adult Services,Housing Services,Homelessness,5105634492,21.02.2020,Private Rented Sector Leasing Scheme,Accommodation Costs - Leaseholder Payments,510.25,REDACTED PERSONAL DATA
Revenue,Adult Services,Housing Services,Homelessness,5105634492,21.02.2020,Private Rented Sector Leasing Scheme,Accommodation Costs - Leaseholder Payments,510.25,REDACTED PERSONAL DATA
Revenue,Adult Services,Housing Services,Homelessness,5105634492,21.02.2020,Private Rented Sector Leasing Scheme,Accommodation Costs - Leaseholder Payments,510.25,REDACTED PERSONAL DATA
Revenue,Adult Services,Housing Services,Homelessness,5105634492,21.02.2020,Private Rented Sector Leasing Scheme,Accommodation Costs - Leaseholder Payments,510.25,REDACTED PERSONAL DATA
Revenue,Childrens Services,Children's & Education Services,Children Looked After,5105635260,28.02.2020,In-house Fostering,Support Children,60.00,REDACTED PERSONAL DATA
Revenue,Childrens Services,Children's & Education Services,Children Looked After,5105635184,28.02.2020,Adoption Costs,Support Children,225.83,REDACTED PERSONAL DATA
Revenue,Childrens Services,Children's & Education Services,Children Looked After,5105634540,21.02.2020,Adoption Costs,Support Children,225.83,REDACTED PERSONAL DATA
Revenue,Childrens Services,Children's & Education Services,Children Looked After,5105633753,14.02.2020,Adoption Costs,Support Children,225.83,REDACTED PERSONAL DATA
Revenue,Childrens Services,Children's & Education Services,Children Looked After,5105633169,07.02.2020,Adoption Costs,Support Children,225.83,REDACTED PERSONAL DATA
Revenue,Childrens Services,Children's & Education Services,Children Looked After,5105633197,07.02.2020,In-house Fostering,Boarding Out Allowances,510.50,REDACTED PERSONAL DATA
Revenue,Childrens Services,Children's & Education Services,Children Looked After,5105633197,07.02.2020,In-house Fostering,Boarding Out Allowances,510.50,REDACTED PERSONAL DATA
Revenue,Childrens Services,Children's & Education Services,Children Looked After,5105633781,14.02.2020,In-house Fostering,Boarding Out Allowances,510.50,REDACTED PERSONAL DATA
Revenue,Childrens Services,Children's & Education Services,Children Looked After,5105633781,14.02.2020,In-house Fostering,Boarding Out Allowances,510.50,REDACTED PERSONAL DATA
Revenue,Childrens Services,Children's & Education Services,Children Looked After,5105634580,21.02.2020,In-house Fostering,Boarding Out Allowances,510.50,REDACTED PERSONAL DATA
Revenue,Childrens Services,Children's & Education Services,Children Looked After,5105634580,21.02.2020,In-house Fostering,Boarding Out Allowances,510.50,REDACTED PERSONAL DATA
Revenue,Childrens Services,Children's & Education Services,Children Looked After,5105635213,28.02.2020,In-house Fostering,Boarding Out Allowances,510.50,REDACTED PERSONAL DATA
Revenue,Childrens Services,Children's & Education Services,Children Looked After,5105635213,28.02.2020,In-house Fostering,Boarding Out Allowances,510.50,REDACTED PERSONAL DATA
Revenue,Adult Services,Adult Social Care,Support - Memory /Cognition-older people (65+),5105634253,19.02.2020,Memory & Cognition Residential 65+,Charges from Independent Providers,"3,200.12",ABBERDALE LIMITED
Revenue,Adult Services,Adult Social Care,Social Care Activities,5105633449,07.02.2020,Local Safeguarding Adults Board,Professional Services,"1,350.00",AC SOCIAL CARE CONSULTANCY LTD
Revenue,Neighbourhoods,Environmental & Regulatory Services,Regulatory Services,5105634747,21.02.2020,Licensing Services,Professional Services,90.00,ACCESS PERSONAL CHECKING SERVICES LTD
Revenue,Neighbourhoods,Environmental & Regulatory Services,Regulatory Services,5105634747,21.02.2020,Licensing Services,Professional Services,640.00,ACCESS PERSONAL CHECKING SERVICES LTD
Revenue,Adult Services,Adult Social Care,Learning Disab Supp (to be reallocated),5105634917,26.02.2020,"41 Newport Road, Cowes",Charges from Independent Providers,"5,684.00",TRACSCARE WELLCARE LIFESTYLES
Revenue,Adult Services,Adult Social Care,Learning Disab Supp (to be reallocated),5105634917,26.02.2020,"41 Newport Road, Cowes",Charges from Independent Providers,"2,190.72",TRACSCARE WELLCARE LIFESTYLES
Revenue,Adult Services,Adult Social Care,Learning Disab Supp (to be reallocated),5105634917,26.02.2020,"17 Newport Road, Ventnor",Charges from Independent Providers,"4,553.00",TRACSCARE WELLCARE LIFESTYLES
Revenue,Adult Services,Adult Social Care,Learning Disab Supp (to be reallocated),5105634917,26.02.2020,"17 Newport Road, Ventnor",Charges from Independent Providers,"2,190.72",TRACSCARE WELLCARE LIFESTYLES
Revenue,Adult Services,Adult Social Care,Learning Disab Supp (to be reallocated),5105634917,26.02.2020,Westhorpe Supported Living,Charges from Independent Providers,"5,684.00",TRACSCARE WELLCARE LIFESTYLES
Revenue,Adult Services,Adult Social Care,Learning Disab Supp (to be reallocated),5105634917,26.02.2020,Westhorpe Supported Living,Charges from Independent Providers,"4,060.00",TRACSCARE WELLCARE LIFESTYLES
Revenue,Adult Services,Adult Social Care,Learning Disab Supp (to be reallocated),5105634917,26.02.2020,Westhorpe Supported Living,Charges from Independent Providers,"2,030.00",TRACSCARE WELLCARE LIFESTYLES
Revenue,Adult Services,Adult Social Care,Learning Disab Supp (to be reallocated),5105634917,26.02.2020,"Greengates, Ryde",Charges from Independent Providers,"5,684.00",TRACSCARE WELLCARE LIFESTYLES
Revenue,Adult Services,Adult Social Care,Learning Disab Supp (to be reallocated),5105634917,26.02.2020,"Greengates, Ryde",Charges from Independent Providers,"2,190.72",TRACSCARE WELLCARE LIFESTYLES
Revenue,Adult Services,Adult Social Care,Learning Disab Supp (to be reallocated),5105634917,26.02.2020,"Heath Road, Lake",Charges from Independent Providers,"4,553.00",TRACSCARE WELLCARE LIFESTYLES
Revenue,Adult Services,Adult Social Care,Learning Disab Supp (to be reallocated),5105634917,26.02.2020,"Heath Road, Lake",Charges from Independent Providers,"2,190.72",TRACSCARE WELLCARE LIFESTYLES
Revenue,Adult Services,Adult Social Care,Learning Disab Supp (to be reallocated),5105634917,26.02.2020,"Winton Street, Ryde",Charges from Independent Providers,"5,684.00",TRACSCARE WELLCARE LIFESTYLES
Revenue,Adult Services,Adult Social Care,Learning Disab Supp (to be reallocated),5105634917,26.02.2020,"Winton Street, Ryde",Charges from Independent Providers,"2,190.72",TRACSCARE WELLCARE LIFESTYLES
Revenue,Adult Services,Adult Social Care,Assistive Equipment & Technology,5105633929,14.02.2020,Community Equipment Store,Operational Equipment,"3,945.00",ACCORA  LIMITED
Revenue,Resources,Children's & Education Services,Other Education and Community Budget,5105634952,28.02.2020,Specialist Cross-Council Training,Training,389.00,ACT NOW TRAINING LTD
Revenue,Fire & Rescue,Fire & Rescue Services,Fire fighting and Rescue Operations,5105633511,07.02.2020,Fire Technical Support,Vehicle Maintenance Costs,11.25,ADAMS MOREY LTD
Revenue,Fire & Rescue,Fire & Rescue Services,Fire fighting and Rescue Operations,5105633511,07.02.2020,Fire Technical Support,Vehicle Maintenance Costs,12.00,ADAMS MOREY LTD
Revenue,Fire & Rescue,Fire & Rescue Services,Fire fighting and Rescue Operations,5105633511,07.02.2020,Fire Technical Support,Vehicle Maintenance Costs,4.21,ADAMS MOREY LTD
Revenue,Fire & Rescue,Fire & Rescue Services,Fire fighting and Rescue Operations,5105633511,07.02.2020,Fire Technical Support,Vehicle Maintenance Costs,5.71,ADAMS MOREY LTD
Revenue,Childrens Services,Children's & Education Services,Management & Support Services,5105632218,05.02.2020,Special Discretionary Grants,Charges from Independent Providers,260.00,A-DAY CONSULTANTS LTD
Revenue,Childrens Services,Children's & Education Services,Special Schools & Alternative Provision,5105634800,21.02.2020,Island Learning Centre,Agency staff,"3,137.00",A-DAY CONSULTANTS LTD
Revenue,Childrens Services,Children's & Education Services,Special Schools & Alternative Provision,5105634115,14.02.2020,Island Learning Centre,Agency staff,185.00,A-DAY CONSULTANTS LTD
Revenue,Childrens Services,Children's & Education Services,Other Education and Community Budget,5105632458,05.02.2020,Home to School SEN Transport (LA),Taxis - Contract Hire,250.00,REDACTED PERSONAL DATA
Revenue,Childrens Services,Children's & Education Services,Other Education and Community Budget,5105634117,21.02.2020,Home to School SEN Transport (LA),Taxis - Contract Hire,"1,260.00",REDACTED PERSONAL DATA
Revenue,Childrens Services,Children's & Education Services,Other Education and Community Budget,5105634426,26.02.2020,Home to School SEN Transport (LA),Taxis - Contract Hire,250.00,REDACTED PERSONAL DATA
Revenue,Childrens Services,Children's & Education Services,Other Education and Community Budget,5105634429,26.02.2020,Home to School SEN Transport (LA),Taxis - Contract Hire,400.00,REDACTED PERSONAL DATA
Revenue,Childrens Services,Children's & Education Services,Other Education and Community Budget,5105632918,05.02.2020,Home to School SEN Transport (LA),Taxis - Contract Hire,650.00,REDACTED PERSONAL DATA
Revenue,Childrens Services,Children's & Education Services,Other Education and Community Budget,5105635108,26.02.2020,Children's Services Strategic Management,Minor Works,306.65,ADT FIRE AND SECURITY PLC
Revenue,Regeneration,Central Services,Support Services,5105635107,26.02.2020,"County Hall,Newport",Property Services - Day to day Maintenance,120.00,ADT FIRE AND SECURITY PLC
Revenue,Adult Services,Adult Social Care,Commissioning & Service Delivery,5105633576,19.02.2020,Group Manager Leaning Disability Homes,Publications,64.94,AGORA BUSINESS PUBLICATIONS LLP
Revenue,Adult Services,Adult Social Care,Central Codes (to be reallocated),5105633355,12.02.2020,Gouldings Resource Centre,Maintenance of Operational Equipment,657.00,AIRTEK SERVICES IOW LTD
Revenue,Adult Services,Adult Social Care,Central Codes (to be reallocated),5105633357,07.02.2020,Gouldings Resource Centre,Property Services - Day to day Maintenance,127.50,AIRTEK SERVICES IOW LTD
Revenue,Neighbourhoods,Cultural and Related Services,Library Service,5105633700,19.02.2020,Newport Library,Property Services - Planned Maintenance,520.00,AIRTEK SERVICES IOW LTD
Revenue,Neighbourhoods,Cultural and Related Services,Library Service,5105634097,19.02.2020,Newport Library,Property Services - Day to day Maintenance,90.00,AIRTEK SERVICES IOW LTD
Revenue,Neighbourhoods,Cultural and Related Services,Culture and Heritage,5105633398,07.02.2020,Archives,Property Services - Day to day Maintenance,135.00,AIRTEK SERVICES IOW LTD
Revenue,Neighbourhoods,Cultural and Related Services,Recreation and Sport,5105634094,19.02.2020,Medina Leisure Centre,Property Services - Day to day Maintenance,"1,050.00",AIRTEK SERVICES IOW LTD
Revenue,Childrens Services,Children's & Education Services,Children Looked After,5105633698,12.02.2020,Beaulieu House,Minor Works,125.00,AIRTEK SERVICES IOW LTD
Revenue,Regeneration,Central Services,Support Services,5105633400,07.02.2020,"Seaclose Offices, Newport",Property Services - Day to day Maintenance,105.00,AIRTEK SERVICES IOW LTD
Revenue,Regeneration,Central Services,Support Services,5105633704,19.02.2020,"County Hall,Newport",Property Services - Planned Maintenance,795.00,AIRTEK SERVICES IOW LTD
Revenue,Neighbourhoods,Cultural and Related Services,Recreation and Sport,5105633702,14.02.2020,Westridge Squash Courts,Property Services - Planned Maintenance,245.00,AIRTEK SERVICES IOW LTD
Revenue,Neighbourhoods,Cultural and Related Services,Culture and Heritage,5105633694,12.02.2020,Dinosaur Isle Museum (Sandown Geology),Property Services - Day to day Maintenance,80.00,AIRTEK SERVICES IOW LTD
Revenue,Adult Services,Adult Social Care,Learning Disability Suppt-adults (18-64),5105634250,19.02.2020,Learning Disability Residential 18-64,Charges from Independent Providers,"8,743.00",AITCH CARE HOMES (LONDON) LTD
Revenue,Adult Services,Adult Social Care,Assistive Equipment & Technology,5105633981,14.02.2020,Community Equipment Store,Operational Equipment,452.00,AKW MEDI-CARE LTD
Revenue,Corporate Items,Balance Sheet,Balance Sheet,5105633052,05.02.2020,Insurance Suspense - Claims Outstanding,Insurance Premiums Paid,100.00,ALARM
Revenue,Resources,Central Services,Support Services,5105632997,05.02.2020,Insurance,Professional Subscriptions,-394.00,ALARM
Revenue,Resources,Central Services,Support Services,5105632998,05.02.2020,Insurance,Professional Subscriptions,199.00,ALARM
Revenue,Neighbourhoods,Environmental & Regulatory Services,"Cemetery, Cremation & Mortuary Services",5400002584,28.02.2020,Crematorium,Grounds Maintenance,-70.00,ALBANY FARM & G MACHINERY LTD
Revenue,Public Health,Public Health,NHS Health Check Programme,5105634275,19.02.2020,NHS Health Check Programme P,Payment to Private Contractors,97.00,ALBERT STREET PRACTICE
Revenue,Public Health,Public Health,NHS Health Check Programme,5105634901,21.02.2020,NHS Health Check Programme P,Payment to Private Contractors,958.00,ALBERT STREET PRACTICE
Revenue,Public Health,Public Health,Sexual Health,5105634275,19.02.2020,Long Acting Reversible Contraception,Payment to Private Contractors,590.00,ALBERT STREET PRACTICE
Revenue,Childrens Services,Children's & Education Services,Safeguarding Children/Young Peoples Svs,5105633997,21.02.2020,Court Work & Consultancy Services,Professional Services,218.25,ALERE TOXICOLOGY PLC
Revenue,Childrens Services,Children's & Education Services,Safeguarding Children/Young Peoples Svs,5105634982,26.02.2020,Court Work & Consultancy Services,Professional Services,193.25,ALERE TOXICOLOGY PLC
Revenue,Resources,Adult Social Care,Physical Support (to be reallocated),5105632216,14.02.2020,Blue Badge Admin Team Shared Services,Printing Costs,771.12,ALLIED PUBLICITY SERVICES LTD
Revenue,Neighbourhoods,Cultural and Related Services,Culture and Heritage,5105634883,21.02.2020,Dinosaur Isle Museum (Sandown Geology),Stock Purchases,72.00,ALLSORTED LTD
Revenue,Neighbourhoods,Cultural and Related Services,Culture and Heritage,5105634883,21.02.2020,Dinosaur Isle Museum (Sandown Geology),Stock Purchases,72.00,ALLSORTED LTD
Revenue,Neighbourhoods,Cultural and Related Services,Culture and Heritage,5105634883,21.02.2020,Dinosaur Isle Museum (Sandown Geology),Stock Purchases,25.20,ALLSORTED LTD
Revenue,Neighbourhoods,Cultural and Related Services,Culture and Heritage,5105634883,21.02.2020,Dinosaur Isle Museum (Sandown Geology),Stock Purchases,46.80,ALLSORTED LTD
Revenue,Neighbourhoods,Cultural and Related Services,Culture and Heritage,5105634883,21.02.2020,Dinosaur Isle Museum (Sandown Geology),Stock Purchases,42.00,ALLSORTED LTD
Revenue,Neighbourhoods,Cultural and Related Services,Culture and Heritage,5105634883,21.02.2020,Dinosaur Isle Museum (Sandown Geology),Stock Purchases,50.00,ALLSORTED LTD
Revenue,Resources,Highways and Transport Services,Public Transport,5105634477,21.02.2020,Transport Fleet Administration,Vehicle Fuel Costs,"12,364.59",ALLSTAR BUSINESS SOLUTIONS LTD
Revenue,Childrens Services,Children's & Education Services,Other Education and Community Budget,5105634397,21.02.2020,Home to School SEN Transport (LA),Taxis - Contract Hire,200.00,ALPHA (IOW) LTD
Revenue,Childrens Services,Children's & Education Services,Other Education and Community Budget,5105634397,21.02.2020,Home to School SEN Transport (LA),Taxis - Contract Hire,575.00,ALPHA (IOW) LTD
Revenue,Childrens Services,Children's & Education Services,Other Education and Community Budget,5105634397,21.02.2020,Home to School SEN Transport (LA),Taxis - Contract Hire,140.00,ALPHA (IOW) LTD
Revenue,Childrens Services,Children's & Education Services,Other Education and Community Budget,5105634397,21.02.2020,Home to School SEN Transport (LA),Taxis - Contract Hire,260.00,ALPHA (IOW) LTD
Revenue,Childrens Services,Children's & Education Services,Other Education and Community Budget,5105634397,21.02.2020,Home to School SEN Transport (LA),Taxis - Contract Hire,310.00,ALPHA (IOW) LTD
Revenue,Childrens Services,Children's & Education Services,Other Education and Community Budget,5105634397,21.02.2020,Home to School SEN Transport (LA),Taxis - Contract Hire,550.00,ALPHA (IOW) LTD
Revenue,Childrens Services,Children's & Education Services,Other Education and Community Budget,5105634397,21.02.2020,Home to School SEN Transport (LA),Taxis - Contract Hire,100.00,ALPHA (IOW) LTD
Revenue,Childrens Services,Children's & Education Services,Other Education and Community Budget,5105634397,21.02.2020,Home to School SEN Transport (LA),Taxis - Contract Hire,15.00,ALPHA (IOW) LTD
Revenue,Childrens Services,Children's & Education Services,Other Education and Community Budget,5105634397,21.02.2020,Home to School SEN Transport (LA),Taxis - Contract Hire,600.00,ALPHA (IOW) LTD
Revenue,Childrens Services,Children's & Education Services,Other Education and Community Budget,5105634397,21.02.2020,Home to School SEN Transport (LA),Taxis - Contract Hire,265.00,ALPHA (IOW) LTD
Revenue,Childrens Services,Children's & Education Services,Other Education and Community Budget,5105634397,21.02.2020,Home to School SEN Transport (LA),Taxis - Contract Hire,400.00,ALPHA (IOW) LTD
Revenue,Childrens Services,Children's & Education Services,Other Education and Community Budget,5105634397,21.02.2020,Home to School SEN Transport (LA),Taxis - Contract Hire,395.00,ALPHA (IOW) LTD
Revenue,Childrens Services,Children's & Education Services,Other Education and Community Budget,5105634397,21.02.2020,Home to School SEN Transport (LA),Taxis - Contract Hire,700.00,ALPHA (IOW) LTD
Revenue,Childrens Services,Children's & Education Services,Other Education and Community Budget,5105634397,21.02.2020,Home to School SEN Transport (LA),Taxis - Contract Hire,280.00,ALPHA (IOW) LTD
Revenue,Childrens Services,Children's & Education Services,Other Education and Community Budget,5105634397,21.02.2020,Home to School SEN Transport (LA),Taxis - Contract Hire,150.00,ALPHA (IOW) LTD
Revenue,Childrens Services,Children's & Education Services,Other Education and Community Budget,5105634397,21.02.2020,Home to School SEN Transport (LA),Taxis - Contract Hire,350.00,ALPHA (IOW) LTD
Revenue,Childrens Services,Children's & Education Services,Other Education and Community Budget,5105634397,21.02.2020,Home to School SEN Transport (LA),Taxis - Contract Hire,250.00,ALPHA (IOW) LTD
Revenue,Childrens Services,Children's & Education Services,Other Education and Community Budget,5105634397,21.02.2020,Home to School SEN Transport (LA),Taxis - Contract Hire,300.00,ALPHA (IOW) LTD
Revenue,Childrens Services,Children's & Education Services,Other Education and Community Budget,5105634397,21.02.2020,Home to School SEN Transport (LA),Taxis - Contract Hire,450.00,ALPHA (IOW) LTD
Revenue,Childrens Services,Children's & Education Services,Other Education and Community Budget,5105634397,21.02.2020,Home to School SEN Transport (LA),Taxis - Contract Hire,375.00,ALPHA (IOW) LTD
Revenue,Childrens Services,Children's & Education Services,Other Education and Community Budget,5105634397,21.02.2020,Home to School SEN Transport (LA),Taxis - Contract Hire,480.00,ALPHA (IOW) LTD
Revenue,Childrens Services,Children's & Education Services,Other Education and Community Budget,5105633122,07.02.2020,Home to School SEN Transport (LA),Taxis - Contract Hire,265.00,ALPHA (IOW) LTD
Revenue,Childrens Services,Children's & Education Services,Other Education and Community Budget,5105633122,07.02.2020,Home to School SEN Transport (LA),Taxis - Contract Hire,400.00,ALPHA (IOW) LTD
Revenue,Childrens Services,Children's & Education Services,Other Education and Community Budget,5105633122,07.02.2020,Home to School SEN Transport (LA),Taxis - Contract Hire,395.00,ALPHA (IOW) LTD
Revenue,Childrens Services,Children's & Education Services,Other Education and Community Budget,5105633122,07.02.2020,Home to School SEN Transport (LA),Taxis - Contract Hire,700.00,ALPHA (IOW) LTD
Revenue,Childrens Services,Children's & Education Services,Other Education and Community Budget,5105633122,07.02.2020,Home to School SEN Transport (LA),Taxis - Contract Hire,280.00,ALPHA (IOW) LTD
Revenue,Childrens Services,Children's & Education Services,Other Education and Community Budget,5105633122,07.02.2020,Home to School SEN Transport (LA),Taxis - Contract Hire,150.00,ALPHA (IOW) LTD
Revenue,Childrens Services,Children's & Education Services,Other Education and Community Budget,5105633122,07.02.2020,Home to School SEN Transport (LA),Taxis - Contract Hire,350.00,ALPHA (IOW) LTD
Revenue,Childrens Services,Children's & Education Services,Other Education and Community Budget,5105633122,07.02.2020,Home to School SEN Transport (LA),Taxis - Contract Hire,250.00,ALPHA (IOW) LTD
Revenue,Childrens Services,Children's & Education Services,Other Education and Community Budget,5105633122,07.02.2020,Home to School SEN Transport (LA),Taxis - Contract Hire,300.00,ALPHA (IOW) LTD
Revenue,Childrens Services,Children's & Education Services,Other Education and Community Budget,5105633122,07.02.2020,Home to School SEN Transport (LA),Taxis - Contract Hire,450.00,ALPHA (IOW) LTD
Revenue,Childrens Services,Children's & Education Services,Other Education and Community Budget,5105633122,07.02.2020,Home to School SEN Transport (LA),Taxis - Contract Hire,375.00,ALPHA (IOW) LTD
Revenue,Childrens Services,Children's & Education Services,Other Education and Community Budget,5105633122,07.02.2020,Home to School SEN Transport (LA),Taxis - Contract Hire,480.00,ALPHA (IOW) LTD
Revenue,Childrens Services,Children's & Education Services,Other Education and Community Budget,5105633122,07.02.2020,Home to School SEN Transport (LA),Taxis - Contract Hire,200.00,ALPHA (IOW) LTD
Revenue,Childrens Services,Children's & Education Services,Other Education and Community Budget,5105633122,07.02.2020,Home to School SEN Transport (LA),Taxis - Contract Hire,575.00,ALPHA (IOW) LTD
Revenue,Childrens Services,Children's & Education Services,Other Education and Community Budget,5105633122,07.02.2020,Home to School SEN Transport (LA),Taxis - Contract Hire,140.00,ALPHA (IOW) LTD
Revenue,Childrens Services,Children's & Education Services,Other Education and Community Budget,5105633122,07.02.2020,Home to School SEN Transport (LA),Taxis - Contract Hire,260.00,ALPHA (IOW) LTD
Revenue,Childrens Services,Children's & Education Services,Other Education and Community Budget,5105633122,07.02.2020,Home to School SEN Transport (LA),Taxis - Contract Hire,310.00,ALPHA (IOW) LTD
Revenue,Childrens Services,Children's & Education Services,Other Education and Community Budget,5105633122,07.02.2020,Home to School SEN Transport (LA),Taxis - Contract Hire,575.00,ALPHA (IOW) LTD
Revenue,Childrens Services,Children's & Education Services,Other Education and Community Budget,5105633122,07.02.2020,Home to School SEN Transport (LA),Taxis - Contract Hire,100.00,ALPHA (IOW) LTD
Revenue,Childrens Services,Children's & Education Services,Other Education and Community Budget,5105633122,07.02.2020,Home to School SEN Transport (LA),Taxis - Contract Hire,600.00,ALPHA (IOW) LTD
Revenue,Childrens Services,Children's & Education Services,Other Education and Community Budget,5105633559,14.02.2020,Home to School SEN Transport (LA),Taxis - Contract Hire,265.00,ALPHA (IOW) LTD
Revenue,Childrens Services,Children's & Education Services,Other Education and Community Budget,5105633559,14.02.2020,Home to School SEN Transport (LA),Taxis - Contract Hire,400.00,ALPHA (IOW) LTD
Revenue,Childrens Services,Children's & Education Services,Other Education and Community Budget,5105633559,14.02.2020,Home to School SEN Transport (LA),Taxis - Contract Hire,395.00,ALPHA (IOW) LTD
Revenue,Childrens Services,Children's & Education Services,Other Education and Community Budget,5105633559,14.02.2020,Home to School SEN Transport (LA),Taxis - Contract Hire,700.00,ALPHA (IOW) LTD
Revenue,Childrens Services,Children's & Education Services,Other Education and Community Budget,5105633559,14.02.2020,Home to School SEN Transport (LA),Taxis - Contract Hire,280.00,ALPHA (IOW) LTD
Revenue,Childrens Services,Children's & Education Services,Other Education and Community Budget,5105633559,14.02.2020,Home to School SEN Transport (LA),Taxis - Contract Hire,150.00,ALPHA (IOW) LTD
Revenue,Childrens Services,Children's & Education Services,Other Education and Community Budget,5105633559,14.02.2020,Home to School SEN Transport (LA),Taxis - Contract Hire,200.00,ALPHA (IOW) LTD
Revenue,Childrens Services,Children's & Education Services,Other Education and Community Budget,5105633559,14.02.2020,Home to School SEN Transport (LA),Taxis - Contract Hire,575.00,ALPHA (IOW) LTD
Revenue,Childrens Services,Children's & Education Services,Other Education and Community Budget,5105633559,14.02.2020,Home to School SEN Transport (LA),Taxis - Contract Hire,140.00,ALPHA (IOW) LTD
Revenue,Childrens Services,Children's & Education Services,Other Education and Community Budget,5105633559,14.02.2020,Home to School SEN Transport (LA),Taxis - Contract Hire,260.00,ALPHA (IOW) LTD
Revenue,Childrens Services,Children's & Education Services,Other Education and Community Budget,5105633559,14.02.2020,Home to School SEN Transport (LA),Taxis - Contract Hire,310.00,ALPHA (IOW) LTD
Revenue,Childrens Services,Children's & Education Services,Other Education and Community Budget,5105633559,14.02.2020,Home to School SEN Transport (LA),Taxis - Contract Hire,550.00,ALPHA (IOW) LTD
Revenue,Childrens Services,Children's & Education Services,Other Education and Community Budget,5105633559,14.02.2020,Home to School SEN Transport (LA),Taxis - Contract Hire,100.00,ALPHA (IOW) LTD
Revenue,Childrens Services,Children's & Education Services,Other Education and Community Budget,5105633559,14.02.2020,Home to School SEN Transport (LA),Taxis - Contract Hire,600.00,ALPHA (IOW) LTD
Revenue,Childrens Services,Children's & Education Services,Other Education and Community Budget,5105633559,14.02.2020,Home to School SEN Transport (LA),Taxis - Contract Hire,480.00,ALPHA (IOW) LTD
Revenue,Childrens Services,Children's & Education Services,Other Education and Community Budget,5105633559,14.02.2020,Home to School SEN Transport (LA),Taxis - Contract Hire,350.00,ALPHA (IOW) LTD
Revenue,Childrens Services,Children's & Education Services,Other Education and Community Budget,5105633559,14.02.2020,Home to School SEN Transport (LA),Taxis - Contract Hire,250.00,ALPHA (IOW) LTD
Revenue,Childrens Services,Children's & Education Services,Other Education and Community Budget,5105633559,14.02.2020,Home to School SEN Transport (LA),Taxis - Contract Hire,300.00,ALPHA (IOW) LTD
Revenue,Childrens Services,Children's & Education Services,Other Education and Community Budget,5105633559,14.02.2020,Home to School SEN Transport (LA),Taxis - Contract Hire,375.00,ALPHA (IOW) LTD
Revenue,Childrens Services,Children's & Education Services,Other Education and Community Budget,5105633559,14.02.2020,Home to School SEN Transport (LA),Taxis - Contract Hire,450.00,ALPHA (IOW) LTD
Revenue,Childrens Services,Children's & Education Services,Other Education and Community Budget,5105634379,19.02.2020,Home to College Post 16 Transport,Taxis - Contract Hire,840.00,ALPHA (IOW) LTD
Revenue,Childrens Services,Children's & Education Services,Other Education and Community Budget,5105634379,19.02.2020,Home to College Post 16 Transport,Taxis - Contract Hire,220.00,ALPHA (IOW) LTD
Revenue,Childrens Services,Children's & Education Services,Other Education and Community Budget,5105634379,19.02.2020,Home to College Post 16 Transport,Taxis - Contract Hire,550.00,ALPHA (IOW) LTD
Revenue,Childrens Services,Children's & Education Services,Other Education and Community Budget,5105634379,19.02.2020,Home to College Post 16 Transport,Taxis - Contract Hire,600.00,ALPHA (IOW) LTD
Revenue,Childrens Services,Children's & Education Services,Safeguarding Children/Young Peoples Svs,5105634796,21.02.2020,Childrens Assess & Safeguarding Team,Professional Services,132.50,ALPHA (IOW) LTD
Revenue,Childrens Services,Children's & Education Services,Other Education and Community Budget,5105633559,14.02.2020,Home to School Mainstream Transport,Taxis - Contract Hire,750.00,ALPHA (IOW) LTD
Revenue,Childrens Services,Children's & Education Services,Other Education and Community Budget,5105633559,14.02.2020,Home to School Mainstream Transport,Taxis - Contract Hire,70.00,ALPHA (IOW) LTD
Revenue,Childrens Services,Children's & Education Services,Other Education and Community Budget,5105633559,14.02.2020,Home to School Mainstream Transport,Taxis - Contract Hire,300.00,ALPHA (IOW) LTD
Revenue,Childrens Services,Children's & Education Services,Other Education and Community Budget,5105633559,14.02.2020,Home to School Mainstream Transport,Taxis - Contract Hire,350.00,ALPHA (IOW) LTD
Revenue,Childrens Services,Children's & Education Services,Other Education and Community Budget,5105633559,14.02.2020,Home to School Mainstream Transport,Taxis - Contract Hire,250.00,ALPHA (IOW) LTD
Revenue,Childrens Services,Children's & Education Services,Other Education and Community Budget,5105634397,21.02.2020,Home to School Mainstream Transport,Taxis - Contract Hire,750.00,ALPHA (IOW) LTD
Revenue,Childrens Services,Children's & Education Services,Other Education and Community Budget,5105634397,21.02.2020,Home to School Mainstream Transport,Taxis - Contract Hire,350.00,ALPHA (IOW) LTD
Revenue,Childrens Services,Children's & Education Services,Other Education and Community Budget,5105634397,21.02.2020,Home to School Mainstream Transport,Taxis - Contract Hire,250.00,ALPHA (IOW) LTD
Revenue,Childrens Services,Children's & Education Services,Other Education and Community Budget,5105634397,21.02.2020,Home to School Mainstream Transport,Taxis - Contract Hire,70.00,ALPHA (IOW) LTD
Revenue,Childrens Services,Children's & Education Services,Other Education and Community Budget,5105634397,21.02.2020,Home to School Mainstream Transport,Taxis - Contract Hire,300.00,ALPHA (IOW) LTD
Revenue,Childrens Services,Children's & Education Services,Other Education and Community Budget,5105633122,07.02.2020,Home to School Mainstream Transport,Taxis - Contract Hire,750.00,ALPHA (IOW) LTD
Revenue,Childrens Services,Children's & Education Services,Other Education and Community Budget,5105633122,07.02.2020,Home to School Mainstream Transport,Taxis - Contract Hire,350.00,ALPHA (IOW) LTD
Revenue,Childrens Services,Children's & Education Services,Other Education and Community Budget,5105633122,07.02.2020,Home to School Mainstream Transport,Taxis - Contract Hire,250.00,ALPHA (IOW) LTD
Revenue,Childrens Services,Children's & Education Services,Other Education and Community Budget,5105633122,07.02.2020,Home to School Mainstream Transport,Taxis - Contract Hire,70.00,ALPHA (IOW) LTD
Revenue,Childrens Services,Children's & Education Services,Other Education and Community Budget,5105633122,07.02.2020,Home to School Mainstream Transport,Taxis - Contract Hire,300.00,ALPHA (IOW) LTD
Revenue,Adult Services,Adult Social Care,Learning Disability Suppt-adults (18-64),5105634201,19.02.2020,Learning Disability Residential 18-64,Charges from Independent Providers,"3,836.84",ALPHAGRANGE LTD
Revenue,Childrens Services,Children's & Education Services,Children Looked After,5105632971,05.02.2020,Children placed with Family&Friends,Support Children,13.00,REDACTED PERSONAL DATA
Revenue,Assistant Chief Executive,Central Services,Corporate and Democratic Core,5105634338,19.02.2020,Assistant Chief Executive,Professional Services,675.00,AMPLIFY PR LIMITED
Revenue,Adult Services,Adult Social Care,Support - Memory /Cognition-older people (65+),5105634202,19.02.2020,Memory & Cognition Residential 65+,Charges from Independent Providers,"1,960.84",ANCONA CARE HOME
Revenue,Adult Services,Adult Social Care,Physical Support - older people (65+),5105634202,19.02.2020,Physical Support Residential 65+,Charges from Independent Providers,"1,960.84",ANCONA CARE HOME
Revenue,Adult Services,Adult Social Care,Physical Support - older people (65+),5105634202,19.02.2020,Physical Support Residential 65+,Charges from Independent Providers,"2,053.52",ANCONA CARE HOME
Revenue,Adult Services,Adult Social Care,Physical Support - older people (65+),5105634202,19.02.2020,Physical Support Residential 65+,Charges from Independent Providers,"2,414.16",ANCONA CARE HOME
Revenue,Adult Services,Adult Social Care,Physical Support - older people (65+),5105635097,26.02.2020,Physical Support Residential 65+,Charges from Independent Providers,"6,207.84",ANCONA CARE HOME
Revenue,Adult Services,Adult Social Care,Commissioning & Service Delivery,5105635159,28.02.2020,Group Manager (Short-Term Services),Consultants Fees,"1,985.25",ANDERSON QUIGLEY LTD
Revenue,Adult Services,Adult Social Care,Commissioning & Service Delivery,5105632468,05.02.2020,Group Manager (Short-Term Services),Consultants Fees,"2,850.68",ANDERSON QUIGLEY LTD
Revenue,Fire & Rescue,Fire & Rescue Services,Fire fighting and Rescue Operations,5105635590,28.02.2020,Fire Technical Support,Vehicle Maintenance Costs,"7,901.23",ANGLOCO LTD
Revenue,Assistant Chief Executive,Central Services,Support Services,5105634997,28.02.2020,Print Unit,Printing Costs,-19.62,ANTALIS MCNAUGHTON
Revenue,Assistant Chief Executive,Central Services,Support Services,5105634904,28.02.2020,Print Unit,Printing Costs,27.56,ANTALIS MCNAUGHTON
Revenue,Assistant Chief Executive,Central Services,Support Services,5105634904,28.02.2020,Print Unit,Printing Costs,59.70,ANTALIS MCNAUGHTON
Revenue,Assistant Chief Executive,Central Services,Support Services,5105634906,28.02.2020,Print Unit,Printing Costs,19.64,ANTALIS MCNAUGHTON
Revenue,Assistant Chief Executive,Central Services,Support Services,5105634904,28.02.2020,Print Unit,Printing Costs,52.50,ANTALIS MCNAUGHTON
Revenue,Assistant Chief Executive,Central Services,Support Services,5105634904,28.02.2020,Print Unit,Printing Costs,24.55,ANTALIS MCNAUGHTON
Revenue,Resources,Central Services,Support Services,5105634756,21.02.2020,Litigation Costs,Legal Fees - Other Parties,"2,700.00","ST PHILLIPS BARRISTERS, BIRMINGHAM"
Revenue,Adult Services,Adult Social Care,Assistive Equipment & Technology,5105633680,12.02.2020,Wightcare,Operational Equipment,540.00,ANYWHERE CARE LIMITED
Revenue,Neighbourhoods,Cultural and Related Services,Recreation and Sport,5105633465,07.02.2020,Medina Leisure Centre,Stock Purchases,30.00,APG SPORTS GROUP LTD
Revenue,Neighbourhoods,Cultural and Related Services,Recreation and Sport,5105635071,26.02.2020,Medina Leisure Centre,Stock Purchases,342.00,APG SPORTS GROUP LTD
Revenue,Neighbourhoods,Cultural and Related Services,Recreation and Sport,5105633586,12.02.2020,Medina Leisure Centre,Stock Purchases,12.50,APG SPORTS GROUP LTD
Revenue,Neighbourhoods,Cultural and Related Services,Recreation and Sport,5105633586,12.02.2020,Medina Leisure Centre,Stock Purchases,65.00,APG SPORTS GROUP LTD
Revenue,Neighbourhoods,Cultural and Related Services,Recreation and Sport,5105633134,07.02.2020,Medina Leisure Centre,Stock Purchases,243.00,APG SPORTS GROUP LTD
Revenue,Neighbourhoods,Cultural and Related Services,Recreation and Sport,5105633587,12.02.2020,The Heights,Stock Purchases,24.00,APG SPORTS GROUP LTD
Revenue,Neighbourhoods,Cultural and Related Services,Recreation and Sport,5105633556,12.02.2020,The Heights,Stock Purchases,990.00,APG SPORTS GROUP LTD
Revenue,Neighbourhoods,Cultural and Related Services,Recreation and Sport,5105633650,14.02.2020,The Heights,Stock Purchases,2.00,APG SPORTS GROUP LTD
Revenue,Neighbourhoods,Cultural and Related Services,Recreation and Sport,5105633467,07.02.2020,The Heights,Stock Purchases,6.50,APG SPORTS GROUP LTD
Revenue,Childrens Services,Children's & Education Services,Other Education and Community Budget,5105634830,28.02.2020,Home to School SEN Transport (LA),Taxis - Contract Hire,840.00,AQUA CARS LTD
Revenue,Neighbourhoods,Highways and Transport Services,"Airports, Harbours & Toll Facilities",5105634136,19.02.2020,Ferry Operation,Clothing & Laundry,5.40,ARCO LTD
Revenue,Neighbourhoods,Highways and Transport Services,"Airports, Harbours & Toll Facilities",5105634136,19.02.2020,Ferry Operation,Clothing & Laundry,5.46,ARCO LTD
Revenue,Neighbourhoods,Highways and Transport Services,"Airports, Harbours & Toll Facilities",5105633148,07.02.2020,Ferry Operation,Clothing & Laundry,10.80,ARCO LTD
Revenue,Neighbourhoods,Highways and Transport Services,"Airports, Harbours & Toll Facilities",5105633148,07.02.2020,Ferry Operation,Clothing & Laundry,35.16,ARCO LTD
Revenue,Neighbourhoods,Highways and Transport Services,"Airports, Harbours & Toll Facilities",5105634136,19.02.2020,Ferry Operation,Clothing & Laundry,5.46,ARCO LTD
Revenue,Neighbourhoods,Highways and Transport Services,"Airports, Harbours & Toll Facilities",5105634136,19.02.2020,Ferry Operation,Clothing & Laundry,5.46,ARCO LTD
Revenue,Neighbourhoods,Highways and Transport Services,"Airports, Harbours & Toll Facilities",5105634460,28.02.2020,Ferry Operation,Clothing & Laundry,35.70,ARCO LTD
Revenue,Regeneration,Central Services,Support Services,5105633969,14.02.2020,Property Management,Clothing & Laundry,87.37,ARCO LTD
Revenue,Regeneration,Central Services,Support Services,5105633969,14.02.2020,Property Management,Clothing & Laundry,42.38,ARCO LTD
Revenue,Neighbourhoods,Environmental & Regulatory Services,Service Management and Support Services,5105635422,28.02.2020,Environment officers,Clothing & Laundry,20.58,ARCO LTD
Revenue,Neighbourhoods,Environmental & Regulatory Services,Service Management and Support Services,5105635543,28.02.2020,Environment officers,Operational Equipment,49.00,ARCO LTD
Revenue,Public Health,Public Health,NHS Health Check Programme,5105634893,21.02.2020,NHS Health Check Programme P,Payment to Private Contractors,"1,057.50",ARGYLL HOUSE SURGERY
Revenue,Public Health,Public Health,NHS Health Check Programme,5105634002,19.02.2020,NHS Health Check Programme P,Payment to Private Contractors,97.00,ARGYLL HOUSE SURGERY
Revenue,Adult Services,Adult Social Care,Learning Disab Supp (to be reallocated),5400002575,28.02.2020,Plean Dene,Minor Works,0.22,ARJO UK LTD
Revenue,Adult Services,Adult Social Care,Assistive Equipment & Technology,5400002573,28.02.2020,Community Equipment Store,General Materials,11.00,ARJO UK LTD
Revenue,Childrens Services,Children's & Education Services,Children Looked After,5105628407,05.02.2020,Beaulieu House,Minor Works,602.00,ARJO UK LTD
Revenue,Adult Services,Adult Social Care,Central Codes (to be reallocated),5105631333,05.02.2020,Adelaide Resource Centre,Maintenance of Operational Equipment,376.13,ARJO UK LTD
Revenue,Neighbourhoods,Environmental & Regulatory Services,"Cemetery, Cremation & Mortuary Services",5105633707,14.02.2020,Cemeteries Administration,Grounds Maintenance,423.20,ARRETON PARISH COUNCIL
Revenue,Adult Services,Adult Social Care,Social Support - Support for Carer,5105634264,19.02.2020,Carers Residential,Charges from Independent Providers,"2,414.16",ASHMERE DERBYSHIRE LIMITED
Revenue,Neighbourhoods,Cultural and Related Services,Library Service,5105632765,05.02.2020,Ryde Library,Property Services - Day to day Maintenance,10.00,ASSA ABLOY ENTRANCE SYSTEMS LTD
Revenue,Childrens Services,Children's & Education Services,Special Schools & Alternative Provision,5105634024,14.02.2020,Island Learning Centre,Schools Examination Fees,70.80,ASSESSMENT & QUALIFICATION ALLIANCE
Revenue,Childrens Services,Children's & Education Services,Special Schools & Alternative Provision,5105634024,14.02.2020,Island Learning Centre,Schools Examination Fees,70.80,ASSESSMENT & QUALIFICATION ALLIANCE
Revenue,Childrens Services,Children's & Education Services,Special Schools & Alternative Provision,5105634025,14.02.2020,Island Learning Centre,Schools Examination Fees,247.80,ASSESSMENT & QUALIFICATION ALLIANCE
Revenue,Childrens Services,Children's & Education Services,Special Schools & Alternative Provision,5105634025,14.02.2020,Island Learning Centre,Schools Examination Fees,247.80,ASSESSMENT & QUALIFICATION ALLIANCE
Revenue,Adult Services,Adult Social Care,Assistive Equipment & Technology,5105632915,14.02.2020,Community Equipment Store,Operational Equipment,"1,697.92",ASSISTIVE PARTNER LIMITED
Revenue,Adult Services,Adult Social Care,Learning Disability Suppt-adults (18-64),5105634174,19.02.2020,Learning Disability Residential 18-64,Charges from Independent Providers,"5,464.20",ASSURE HEALTHCARE GROUP
Revenue,Resources,Central Services,Support Services,5105634000,21.02.2020,Organisational Development � Leadership,Training,55.25,ASTRID DAVIES CONSULTING LTD
Revenue,Resources,Central Services,Support Services,5105632801,07.02.2020,Organisational Development � Leadership,Training,150.00,ASTRID DAVIES CONSULTING LTD
Revenue,Adult Services,Adult Social Care,Social Care Activities,5105634345,19.02.2020,Mental Health Team,Professional Services,"6,406.18",ATTENTI CONSULTING SERVICES
Revenue,Adult Services,Adult Social Care,Social Care Activities,5105632880,05.02.2020,Mental Health Team,Professional Services,"3,494.28",ATTENTI CONSULTING SERVICES
Revenue,Adult Services,Adult Social Care,Social Care Activities,5105635464,28.02.2020,Mental Health Team,Professional Services,"-1,164.76",ATTENTI CONSULTING SERVICES
Revenue,Adult Services,Adult Social Care,Social Care Activities,5105635465,28.02.2020,Mental Health Team,Professional Services,"1,164.76",ATTENTI CONSULTING SERVICES
Revenue,Adult Services,Adult Social Care,Social Care Activities,5105635456,28.02.2020,Mental Health Team,Professional Services,"-7,862.13",ATTENTI CONSULTING SERVICES
Revenue,Adult Services,Adult Social Care,Social Care Activities,5105635457,28.02.2020,Mental Health Team,Professional Services,"-3,203.09",ATTENTI CONSULTING SERVICES
Revenue,Adult Services,Adult Social Care,Social Care Activities,5105635459,28.02.2020,Mental Health Team,Professional Services,"-1,164.76",ATTENTI CONSULTING SERVICES
Revenue,Adult Services,Adult Social Care,Social Care Activities,5105635468,28.02.2020,Mental Health Team,Professional Services,"-3,494.28",ATTENTI CONSULTING SERVICES
Revenue,Adult Services,Adult Social Care,Social Care Activities,5105635470,28.02.2020,Mental Health Team,Professional Services,"-3,785.47",ATTENTI CONSULTING SERVICES
Revenue,Adult Services,Adult Social Care,Social Care Activities,5105635471,28.02.2020,Mental Health Team,Professional Services,"-6,406.18",ATTENTI CONSULTING SERVICES
Revenue,Adult Services,Adult Social Care,Social Care Activities,5105632438,29.01.2020,Mental Health Team,Professional Services,"3,785.47",ATTENTI CONSULTING SERVICES
Revenue,Regeneration,Planning services,Economic Development,5105632439,05.02.2020,"30 High St, Newport",Rent of Buildings and Rooms,916.67,REDACTED PERSONAL DATA
Revenue,Neighbourhoods,Cultural and Related Services,Service Management and Support Services,5105633458,07.02.2020,Duke of Edingburgh Award,Operational Equipment,176.00,AWARD SCHEME LTD
Revenue,Neighbourhoods,Cultural and Related Services,Service Management and Support Services,5105633701,12.02.2020,Duke of Edingburgh Award,General Materials,176.00,AWARD SCHEME LTD
Revenue,Neighbourhoods,Cultural and Related Services,Service Management and Support Services,5105633578,12.02.2020,Duke of Edingburgh Award,Operational Equipment,2.50,AWARD SCHEME LTD
Revenue,Neighbourhoods,Cultural and Related Services,Service Management and Support Services,5105634464,19.02.2020,Duke of Edingburgh Award,Operational Equipment,176.00,AWARD SCHEME LTD
Revenue,Neighbourhoods,Cultural and Related Services,Service Management and Support Services,5105634464,19.02.2020,Duke of Edingburgh Award,Operational Equipment,2.50,AWARD SCHEME LTD
Revenue,Neighbourhoods,Cultural and Related Services,Service Management and Support Services,5105634464,19.02.2020,Duke of Edingburgh Award,Operational Equipment,2.50,AWARD SCHEME LTD
Revenue,Childrens Services,Children's & Education Services,Children Looked After,5105634037,14.02.2020,Adoption Costs,Computer Purchase & Rental,"2,433.38",AZEUS UK LIMITED
Revenue,Childrens Services,Children's & Education Services,Children Looked After,5105634037,14.02.2020,In-house Fostering,Computer Purchase & Rental,"2,433.37",AZEUS UK LIMITED
Revenue,Childrens Services,Children's & Education Services,Children Looked After,5105634546,21.02.2020,In-house Fostering,Boarding Out Allowances,510.50,REDACTED PERSONAL DATA
Revenue,Childrens Services,Children's & Education Services,Children Looked After,5105633175,07.02.2020,In-house Fostering,Boarding Out Allowances,510.50,REDACTED PERSONAL DATA
Revenue,Childrens Services,Children's & Education Services,Children Looked After,5105635190,28.02.2020,In-house Fostering,Boarding Out Allowances,510.50,REDACTED PERSONAL DATA
Revenue,Childrens Services,Children's & Education Services,Children Looked After,5105633759,14.02.2020,In-house Fostering,Boarding Out Allowances,510.50,REDACTED PERSONAL DATA
Revenue,Adult Services,Adult Social Care,Learning Disability Suppt-adults (18-64),5105634192,19.02.2020,Learning Disability Residential 18-64,Charges from Independent Providers,"2,173.08",REDACTED PERSONAL DATA
Revenue,Adult Services,Adult Social Care,Learning Disability Suppt-adults (18-64),5105634192,19.02.2020,Learning Disability Residential 18-64,Charges from Independent Providers,"2,173.08",REDACTED PERSONAL DATA
Revenue,Adult Services,Adult Social Care,Learning Disability Suppt-adults (18-64),5105634192,19.02.2020,Learning Disability Residential 18-64,Charges from Independent Providers,"3,148.60",REDACTED PERSONAL DATA
Revenue,Resources,Central Services,Support Services,5105634576,21.02.2020,Staff Benefits,Payment to Private Contractors,25.00,REDACTED PERSONAL DATA
Revenue,Adult Services,Housing Services,Homelessness,5105634485,21.02.2020,Private Rented Sector Leasing Scheme,Accommodation Costs - Leaseholder Payments,866.67,REDACTED PERSONAL DATA
Revenue,Childrens Services,Children's & Education Services,Management & Support Services,5105634420,19.02.2020,Special Discretionary Grants,Charges from Independent Providers,325.00,B.E.S REHAB LTD
Revenue,Adult Services,Adult Social Care,Assistive Equipment & Technology,5105634805,21.02.2020,Community Equipment Store,Operational Equipment,214.00,B.E.S REHAB LTD
Revenue,Adult Services,Adult Social Care,Commissioning & Service Delivery,5105634267,19.02.2020,CHC Nursing Care,Charges from Independent Providers,"10,332.00",BAGSHOT PARK CARE CENTRE
Revenue,Assistant Chief Executive,Central Services,Support Services,5105634279,19.02.2020,CH Accommodation Rationalisation,Office Equipment,-37.60,SUPPLIES TEAM LTD
Revenue,Resources,Central Services,Corporate and Democratic Core,5105629281,19.02.2020,Democratic Representation & Management,Stationery,23.70,SUPPLIES TEAM LTD
Revenue,Resources,Central Services,Central Services to the Public,5105635166,28.02.2020,Electoral Registration Office,Stationery,0.55,SUPPLIES TEAM LTD
Revenue,Resources,Central Services,Central Services to the Public,5105633968,14.02.2020,Electoral Registration Office,Stationery,0.90,SUPPLIES TEAM LTD
Revenue,Resources,Central Services,Central Services to the Public,5105633968,14.02.2020,Electoral Registration Office,Stationery,0.70,SUPPLIES TEAM LTD
Revenue,Resources,Central Services,Central Services to the Public,5105633968,14.02.2020,Electoral Registration Office,Stationery,4.96,SUPPLIES TEAM LTD
Revenue,Resources,Central Services,Central Services to the Public,5105633968,14.02.2020,Electoral Registration Office,Stationery,1.24,SUPPLIES TEAM LTD
Revenue,Childrens Services,Children's & Education Services,Other Education and Community Budget,5105631535,19.02.2020,Learning & Development Running Costs,Stationery,1.57,SUPPLIES TEAM LTD
Revenue,Childrens Services,Children's & Education Services,Other Education and Community Budget,5105631535,19.02.2020,Learning & Development Running Costs,Stationery,7.72,SUPPLIES TEAM LTD
Revenue,Childrens Services,Children's & Education Services,Other Education and Community Budget,5105631535,19.02.2020,Learning & Development Running Costs,Stationery,0.95,SUPPLIES TEAM LTD
Revenue,Childrens Services,Children's & Education Services,Other Education and Community Budget,5105631535,19.02.2020,Learning & Development Running Costs,Stationery,1.84,SUPPLIES TEAM LTD
Revenue,Childrens Services,Children's & Education Services,Other Education and Community Budget,5105631535,19.02.2020,Learning & Development Running Costs,Stationery,1.06,SUPPLIES TEAM LTD
Revenue,Resources,Central Services,Central Services to the Public,5105634091,19.02.2020,National Non Domestic Rates,Stationery,23.70,SUPPLIES TEAM LTD
Revenue,Regeneration,Central Services,Support Services,5105634091,19.02.2020,Property Management,Stationery,4.58,SUPPLIES TEAM LTD
Revenue,Childrens Services,Children's & Education Services,Other Education and Community Budget,5105634091,19.02.2020,Pupil Resources Business Support Team,Stationery,35.55,SUPPLIES TEAM LTD
Revenue,Neighbourhoods,Cultural and Related Services,Library Service,5105633416,07.02.2020,Ryde Library,Stationery,35.55,SUPPLIES TEAM LTD
Revenue,Neighbourhoods,Cultural and Related Services,Library Service,5105633416,07.02.2020,Ryde Library,Stationery,8.44,SUPPLIES TEAM LTD
Revenue,Neighbourhoods,Cultural and Related Services,Library Service,5105633416,07.02.2020,Ryde Library,Stationery,1.84,SUPPLIES TEAM LTD
Revenue,Neighbourhoods,Cultural and Related Services,Library Service,5105633416,07.02.2020,Ryde Library,Stationery,3.65,SUPPLIES TEAM LTD
Revenue,Neighbourhoods,Cultural and Related Services,Library Service,5105633416,07.02.2020,Ryde Library,Stationery,2.90,SUPPLIES TEAM LTD
Revenue,Neighbourhoods,Cultural and Related Services,Library Service,5105633416,07.02.2020,Ryde Library,Stationery,0.58,SUPPLIES TEAM LTD
Revenue,Neighbourhoods,Cultural and Related Services,Library Service,5105633416,07.02.2020,Ryde Library,Stationery,1.80,SUPPLIES TEAM LTD
Revenue,Childrens Services,Children's & Education Services,Other Education and Community Budget,5105633339,06.02.2020,SEND Independent Advice & Support,Stationery,-5.67,SUPPLIES TEAM LTD
Revenue,Adult Services,Adult Social Care,Social Care Activities,5105635166,28.02.2020,Safeguarding Adults,Stationery,6.08,SUPPLIES TEAM LTD
Revenue,Fire & Rescue,Fire & Rescue Services,Fire fighting and Rescue Operations,5105634799,21.02.2020,Business Support  - Fire,Stationery,40.88,SUPPLIES TEAM LTD
Revenue,Fire & Rescue,Fire & Rescue Services,Fire fighting and Rescue Operations,5105634799,21.02.2020,Business Support  - Fire,Stationery,105.66,SUPPLIES TEAM LTD
Revenue,Fire & Rescue,Fire & Rescue Services,Fire fighting and Rescue Operations,5105634070,19.02.2020,Business Support  - Fire,Stationery,1.10,SUPPLIES TEAM LTD
Revenue,Fire & Rescue,Fire & Rescue Services,Fire fighting and Rescue Operations,5105634070,19.02.2020,Business Support  - Fire,Stationery,5.10,SUPPLIES TEAM LTD
Revenue,Fire & Rescue,Fire & Rescue Services,Fire fighting and Rescue Operations,5105634070,19.02.2020,Business Support  - Fire,Stationery,5.71,SUPPLIES TEAM LTD
Revenue,Fire & Rescue,Fire & Rescue Services,Fire fighting and Rescue Operations,5105634070,19.02.2020,Business Support  - Fire,Stationery,3.05,SUPPLIES TEAM LTD
Revenue,Fire & Rescue,Fire & Rescue Services,Fire fighting and Rescue Operations,5105634070,19.02.2020,Business Support  - Fire,Stationery,7.52,SUPPLIES TEAM LTD
Revenue,Adult Services,Adult Social Care,Social Care Activities,5105633968,14.02.2020,IASCC Team,Stationery,0.45,SUPPLIES TEAM LTD
Revenue,Neighbourhoods,Cultural and Related Services,Service Management and Support Services,5105634091,19.02.2020,Leisure Management & Admin,Stationery,35.55,SUPPLIES TEAM LTD
Revenue,Neighbourhoods,Cultural and Related Services,Service Management and Support Services,5105634091,19.02.2020,Leisure Management & Admin,Stationery,4.96,SUPPLIES TEAM LTD
Revenue,Neighbourhoods,Cultural and Related Services,Service Management and Support Services,5105634091,19.02.2020,Leisure Management & Admin,Stationery,1.23,SUPPLIES TEAM LTD
Revenue,Neighbourhoods,Cultural and Related Services,Service Management and Support Services,5105629281,19.02.2020,Leisure Management & Admin,Stationery,35.55,SUPPLIES TEAM LTD
Revenue,Neighbourhoods,Cultural and Related Services,Service Management and Support Services,5105629281,19.02.2020,Leisure Management & Admin,Stationery,0.74,SUPPLIES TEAM LTD
Revenue,Resources,Central Services,Support Services,5105629281,19.02.2020,County Hall Central Mail Room,Stationery,1.16,SUPPLIES TEAM LTD
Revenue,Neighbourhoods,Cultural and Related Services,Recreation and Sport,5105633689,12.02.2020,Medina Leisure Centre,Stationery,-26.38,SUPPLIES TEAM LTD
Revenue,Neighbourhoods,Cultural and Related Services,Recreation and Sport,5105634054,19.02.2020,Medina Leisure Centre,Stationery,1.06,SUPPLIES TEAM LTD
Revenue,Neighbourhoods,Cultural and Related Services,Recreation and Sport,5105634054,19.02.2020,Medina Leisure Centre,Stationery,5.15,SUPPLIES TEAM LTD
Revenue,Neighbourhoods,Cultural and Related Services,Recreation and Sport,5105634054,19.02.2020,Medina Leisure Centre,Stationery,5.71,SUPPLIES TEAM LTD
Revenue,Neighbourhoods,Cultural and Related Services,Recreation and Sport,5105634054,19.02.2020,Medina Leisure Centre,Stationery,11.85,SUPPLIES TEAM LTD
Revenue,Neighbourhoods,Cultural and Related Services,Recreation and Sport,5105634054,19.02.2020,Medina Leisure Centre,Stationery,0.68,SUPPLIES TEAM LTD
Revenue,Neighbourhoods,Cultural and Related Services,Recreation and Sport,5105634054,19.02.2020,Medina Leisure Centre,Stationery,1.23,SUPPLIES TEAM LTD
Revenue,Neighbourhoods,Cultural and Related Services,Recreation and Sport,5105634054,19.02.2020,Medina Leisure Centre,Stationery,8.44,SUPPLIES TEAM LTD
Revenue,Neighbourhoods,Cultural and Related Services,Recreation and Sport,5105634054,19.02.2020,Medina Leisure Centre,Stationery,5.54,SUPPLIES TEAM LTD
Revenue,Neighbourhoods,Cultural and Related Services,Recreation and Sport,5105634054,19.02.2020,Medina Leisure Centre,Stationery,0.41,SUPPLIES TEAM LTD
Revenue,Neighbourhoods,Cultural and Related Services,Recreation and Sport,5105634054,19.02.2020,Medina Leisure Centre,Stationery,0.50,SUPPLIES TEAM LTD
Revenue,Neighbourhoods,Cultural and Related Services,Recreation and Sport,5105634054,19.02.2020,Medina Leisure Centre,Stationery,44.90,SUPPLIES TEAM LTD
Revenue,Neighbourhoods,Cultural and Related Services,Recreation and Sport,5105634054,19.02.2020,Medina Leisure Centre,Stationery,0.30,SUPPLIES TEAM LTD
Revenue,Fire & Rescue,Fire & Rescue Services,Fire fighting and Rescue Operations,5105632310,12.02.2020,Fire Technical Support,Stationery,3.14,SUPPLIES TEAM LTD
Revenue,Fire & Rescue,Fire & Rescue Services,Fire fighting and Rescue Operations,5105632310,12.02.2020,Fire Technical Support,Stationery,12.13,SUPPLIES TEAM LTD
Revenue,Fire & Rescue,Fire & Rescue Services,Fire fighting and Rescue Operations,5105632310,12.02.2020,Fire Technical Support,Stationery,11.85,SUPPLIES TEAM LTD
Revenue,Fire & Rescue,Fire & Rescue Services,Fire fighting and Rescue Operations,5105632310,12.02.2020,Fire Technical Support,Stationery,2.12,SUPPLIES TEAM LTD
Revenue,Fire & Rescue,Fire & Rescue Services,Fire fighting and Rescue Operations,5105632310,12.02.2020,Fire Technical Support,Stationery,0.55,SUPPLIES TEAM LTD
Revenue,Fire & Rescue,Fire & Rescue Services,Fire fighting and Rescue Operations,5105632310,12.02.2020,Fire Technical Support,Stationery,3.31,SUPPLIES TEAM LTD
Revenue,Fire & Rescue,Fire & Rescue Services,Fire fighting and Rescue Operations,5105632310,12.02.2020,Fire Technical Support,Stationery,3.68,SUPPLIES TEAM LTD
Revenue,Chief Executive,Central Services,Central Services to the Public,5105633968,14.02.2020,Emergency Management,Stationery,11.85,SUPPLIES TEAM LTD
Revenue,Resources,Central Services,Support Services,5105629281,19.02.2020,Procurement and Contract Management,Stationery,6.08,SUPPLIES TEAM LTD
Revenue,Resources,Central Services,Support Services,5105629281,19.02.2020,Procurement and Contract Management,Stationery,2.90,SUPPLIES TEAM LTD
Revenue,Childrens Services,Children's & Education Services,Safeguarding Children/Young Peoples Svs,5105635166,28.02.2020,Children's office costs,Stationery,4.71,SUPPLIES TEAM LTD
Revenue,Childrens Services,Children's & Education Services,Safeguarding Children/Young Peoples Svs,5105635166,28.02.2020,Children's office costs,Stationery,11.70,SUPPLIES TEAM LTD
Revenue,Childrens Services,Children's & Education Services,Safeguarding Children/Young Peoples Svs,5105635166,28.02.2020,Children's office costs,Stationery,1.80,SUPPLIES TEAM LTD
Revenue,Childrens Services,Children's & Education Services,Safeguarding Children/Young Peoples Svs,5105635166,28.02.2020,Children's office costs,Stationery,1.16,SUPPLIES TEAM LTD
Revenue,Childrens Services,Children's & Education Services,Safeguarding Children/Young Peoples Svs,5105634091,19.02.2020,Children's office costs,Stationery,47.40,SUPPLIES TEAM LTD
Revenue,Childrens Services,Children's & Education Services,Safeguarding Children/Young Peoples Svs,5105634091,19.02.2020,Children's office costs,Stationery,47.40,SUPPLIES TEAM LTD
Revenue,Childrens Services,Children's & Education Services,Safeguarding Children/Young Peoples Svs,5105633953,14.02.2020,Children's office costs,Stationery,2.87,SUPPLIES TEAM LTD
Revenue,Childrens Services,Children's & Education Services,Safeguarding Children/Young Peoples Svs,5105633968,14.02.2020,Children's office costs,Stationery,47.40,SUPPLIES TEAM LTD
Revenue,Childrens Services,Children's & Education Services,Safeguarding Children/Young Peoples Svs,5105633968,14.02.2020,Children's office costs,Stationery,76.30,SUPPLIES TEAM LTD
Revenue,Childrens Services,Children's & Education Services,Safeguarding Children/Young Peoples Svs,5105633968,14.02.2020,Children's office costs,Stationery,2.55,SUPPLIES TEAM LTD
Revenue,Childrens Services,Children's & Education Services,Safeguarding Children/Young Peoples Svs,5105633968,14.02.2020,Children's office costs,Stationery,30.40,SUPPLIES TEAM LTD
Revenue,Childrens Services,Children's & Education Services,Safeguarding Children/Young Peoples Svs,5105633968,14.02.2020,Children's office costs,Stationery,6.36,SUPPLIES TEAM LTD
Revenue,Childrens Services,Children's & Education Services,Safeguarding Children/Young Peoples Svs,5105633968,14.02.2020,Children's office costs,Stationery,5.71,SUPPLIES TEAM LTD
Revenue,Childrens Services,Children's & Education Services,Safeguarding Children/Young Peoples Svs,5105633968,14.02.2020,Children's office costs,Stationery,2.89,SUPPLIES TEAM LTD
Revenue,Childrens Services,Children's & Education Services,Safeguarding Children/Young Peoples Svs,5105633968,14.02.2020,Children's office costs,Stationery,2.89,SUPPLIES TEAM LTD
Revenue,Childrens Services,Children's & Education Services,Safeguarding Children/Young Peoples Svs,5105633968,14.02.2020,Children's office costs,Stationery,2.89,SUPPLIES TEAM LTD
Revenue,Childrens Services,Children's & Education Services,Safeguarding Children/Young Peoples Svs,5105633968,14.02.2020,Children's office costs,Stationery,2.90,SUPPLIES TEAM LTD
Revenue,Childrens Services,Children's & Education Services,Safeguarding Children/Young Peoples Svs,5105633968,14.02.2020,Children's office costs,Stationery,14.75,SUPPLIES TEAM LTD
Revenue,Childrens Services,Children's & Education Services,Safeguarding Children/Young Peoples Svs,5105633968,14.02.2020,Children's office costs,Stationery,13.58,SUPPLIES TEAM LTD
Revenue,Childrens Services,Children's & Education Services,Safeguarding Children/Young Peoples Svs,5105633968,14.02.2020,Children's office costs,Stationery,45.14,SUPPLIES TEAM LTD
Revenue,Childrens Services,Children's & Education Services,Safeguarding Children/Young Peoples Svs,5105633968,14.02.2020,Children's office costs,Stationery,2.48,SUPPLIES TEAM LTD
Revenue,Childrens Services,Children's & Education Services,Safeguarding Children/Young Peoples Svs,5105633968,14.02.2020,Children's office costs,Stationery,1.57,SUPPLIES TEAM LTD
Revenue,Childrens Services,Children's & Education Services,Safeguarding Children/Young Peoples Svs,5105633968,14.02.2020,Children's office costs,Stationery,1.06,SUPPLIES TEAM LTD
Revenue,Childrens Services,Children's & Education Services,Safeguarding Children/Young Peoples Svs,5105633968,14.02.2020,Children's office costs,Stationery,7.40,SUPPLIES TEAM LTD
Revenue,Childrens Services,Children's & Education Services,Safeguarding Children/Young Peoples Svs,5105633968,14.02.2020,Children's office costs,Stationery,1.84,SUPPLIES TEAM LTD
Revenue,Childrens Services,Children's & Education Services,Children Looked After,5105634052,19.02.2020,Beaulieu House,Stationery,13.55,SUPPLIES TEAM LTD
Revenue,Childrens Services,Children's & Education Services,Children Looked After,5105634052,19.02.2020,Beaulieu House,Stationery,8.09,SUPPLIES TEAM LTD
Revenue,Childrens Services,Children's & Education Services,Children Looked After,5105634052,19.02.2020,Beaulieu House,Stationery,2.90,SUPPLIES TEAM LTD
Revenue,Childrens Services,Children's & Education Services,Children Looked After,5105634052,19.02.2020,Beaulieu House,Stationery,67.68,SUPPLIES TEAM LTD
Revenue,Neighbourhoods,Cultural and Related Services,Recreation and Sport,5105629281,19.02.2020,Play Development,Stationery,8.44,SUPPLIES TEAM LTD
Revenue,Resources,Central Services,Support Services,5105635166,28.02.2020,Legal Services Section,Stationery,4.33,SUPPLIES TEAM LTD
Revenue,Resources,Central Services,Support Services,5105634091,19.02.2020,Legal Services Section,Stationery,35.55,SUPPLIES TEAM LTD
Revenue,Neighbourhoods,Central Services,Central Services to the Public,5105634438,19.02.2020,"Registration Of Births,Deaths, Marriages",Stationery,2.32,SUPPLIES TEAM LTD
Revenue,Neighbourhoods,Central Services,Central Services to the Public,5105634055,19.02.2020,"Registration Of Births,Deaths, Marriages",Stationery,2.89,SUPPLIES TEAM LTD
Revenue,Neighbourhoods,Central Services,Central Services to the Public,5105634055,19.02.2020,"Registration Of Births,Deaths, Marriages",Stationery,0.68,SUPPLIES TEAM LTD
Revenue,Neighbourhoods,Central Services,Central Services to the Public,5105634055,19.02.2020,"Registration Of Births,Deaths, Marriages",Stationery,0.75,SUPPLIES TEAM LTD
Revenue,Neighbourhoods,Central Services,Central Services to the Public,5105634055,19.02.2020,"Registration Of Births,Deaths, Marriages",Stationery,1.32,SUPPLIES TEAM LTD
Revenue,Neighbourhoods,Central Services,Central Services to the Public,5105634055,19.02.2020,"Registration Of Births,Deaths, Marriages",Stationery,1.23,SUPPLIES TEAM LTD
Revenue,Neighbourhoods,Central Services,Central Services to the Public,5105634055,19.02.2020,"Registration Of Births,Deaths, Marriages",Stationery,0.22,SUPPLIES TEAM LTD
Revenue,Neighbourhoods,Central Services,Central Services to the Public,5105634055,19.02.2020,"Registration Of Births,Deaths, Marriages",Stationery,23.70,SUPPLIES TEAM LTD
Revenue,Neighbourhoods,Central Services,Central Services to the Public,5105634055,19.02.2020,"Registration Of Births,Deaths, Marriages",Stationery,2.58,SUPPLIES TEAM LTD
Revenue,Neighbourhoods,Central Services,Central Services to the Public,5105632284,05.02.2020,"Registration Of Births,Deaths, Marriages",Stationery,1.79,SUPPLIES TEAM LTD
Revenue,Adult Services,Adult Social Care,Commissioning & Service Delivery,5105634385,19.02.2020,Group Manager Leaning Disability Homes,Stationery,10.69,SUPPLIES TEAM LTD
Revenue,Adult Services,Adult Social Care,Commissioning & Service Delivery,5105634053,19.02.2020,Group Manager Leaning Disability Homes,Stationery,1.11,SUPPLIES TEAM LTD
Revenue,Adult Services,Adult Social Care,Commissioning & Service Delivery,5105634053,19.02.2020,Group Manager Leaning Disability Homes,Stationery,4.05,SUPPLIES TEAM LTD
Revenue,Adult Services,Adult Social Care,Commissioning & Service Delivery,5105634053,19.02.2020,Group Manager Leaning Disability Homes,Stationery,9.25,SUPPLIES TEAM LTD
Revenue,Adult Services,Adult Social Care,Commissioning & Service Delivery,5105634053,19.02.2020,Group Manager Leaning Disability Homes,Stationery,19.39,SUPPLIES TEAM LTD
Revenue,Adult Services,Adult Social Care,Commissioning & Service Delivery,5105634053,19.02.2020,Group Manager Leaning Disability Homes,Stationery,2.86,SUPPLIES TEAM LTD
Revenue,Adult Services,Adult Social Care,Commissioning & Service Delivery,5105634053,19.02.2020,Group Manager Leaning Disability Homes,Stationery,29.45,SUPPLIES TEAM LTD
Revenue,Adult Services,Adult Social Care,Commissioning & Service Delivery,5105634053,19.02.2020,Group Manager Leaning Disability Homes,Stationery,8.44,SUPPLIES TEAM LTD
Revenue,Adult Services,Adult Social Care,Commissioning & Service Delivery,5105634053,19.02.2020,Group Manager Leaning Disability Homes,Stationery,59.25,SUPPLIES TEAM LTD
Revenue,Adult Services,Adult Social Care,Commissioning & Service Delivery,5105634053,19.02.2020,Group Manager Leaning Disability Homes,Stationery,0.25,SUPPLIES TEAM LTD
Revenue,Adult Services,Adult Social Care,Commissioning & Service Delivery,5105634053,19.02.2020,Group Manager Leaning Disability Homes,Stationery,1.93,SUPPLIES TEAM LTD
Revenue,Adult Services,Adult Social Care,Commissioning & Service Delivery,5105635166,28.02.2020,Deputyship Office,Stationery,2.43,SUPPLIES TEAM LTD
Revenue,Adult Services,Adult Social Care,Central Codes (to be reallocated),5105634940,26.02.2020,Community Reablement,Stationery,44.00,SUPPLIES TEAM LTD
Revenue,Adult Services,Adult Social Care,Central Codes (to be reallocated),5105634940,26.02.2020,Community Reablement,Stationery,66.00,SUPPLIES TEAM LTD
Revenue,Adult Services,Adult Social Care,Central Codes (to be reallocated),5105634940,26.02.2020,Community Reablement,Stationery,69.25,SUPPLIES TEAM LTD
Revenue,Adult Services,Adult Social Care,Central Codes (to be reallocated),5105634940,26.02.2020,Community Reablement,Stationery,2.90,SUPPLIES TEAM LTD
Revenue,Childrens Services,Children's & Education Services,Special Schools & Alternative Provision,5105631945,26.02.2020,Island Learning Centre,Stationery,3.90,SUPPLIES TEAM LTD
Revenue,Neighbourhoods,Environmental & Regulatory Services,Service Management and Support Services,5105634078,19.02.2020,Regulatory Management & Admin Support,Stationery,11.85,SUPPLIES TEAM LTD
Revenue,Neighbourhoods,Environmental & Regulatory Services,Service Management and Support Services,5105634078,19.02.2020,Regulatory Management & Admin Support,Stationery,1.06,SUPPLIES TEAM LTD
Revenue,Neighbourhoods,Environmental & Regulatory Services,Service Management and Support Services,5105634078,19.02.2020,Regulatory Management & Admin Support,Stationery,1.57,SUPPLIES TEAM LTD
Revenue,Neighbourhoods,Environmental & Regulatory Services,Service Management and Support Services,5105634078,19.02.2020,Regulatory Management & Admin Support,Stationery,1.24,SUPPLIES TEAM LTD
Revenue,Childrens Services,Children's & Education Services,Special Schools & Alternative Provision,5105633404,12.02.2020,Island Learning Centre,Stationery,28.55,SUPPLIES TEAM LTD
Revenue,Childrens Services,Children's & Education Services,Special Schools & Alternative Provision,5105633404,12.02.2020,Island Learning Centre,Stationery,22.56,SUPPLIES TEAM LTD
Revenue,Childrens Services,Children's & Education Services,Special Schools & Alternative Provision,5105633404,12.02.2020,Island Learning Centre,Stationery,4.24,SUPPLIES TEAM LTD
Revenue,Childrens Services,Children's & Education Services,Special Schools & Alternative Provision,5105633404,12.02.2020,Island Learning Centre,Stationery,36.78,SUPPLIES TEAM LTD
Revenue,Childrens Services,Children's & Education Services,Special Schools & Alternative Provision,5105633404,12.02.2020,Island Learning Centre,Stationery,24.52,SUPPLIES TEAM LTD
Revenue,Childrens Services,Children's & Education Services,Special Schools & Alternative Provision,5105633404,12.02.2020,Island Learning Centre,Stationery,22.50,SUPPLIES TEAM LTD
Revenue,Childrens Services,Children's & Education Services,Special Schools & Alternative Provision,5105633404,12.02.2020,Island Learning Centre,Stationery,71.10,SUPPLIES TEAM LTD
Revenue,Childrens Services,Children's & Education Services,Special Schools & Alternative Provision,5105633404,12.02.2020,Island Learning Centre,Stationery,127.98,SUPPLIES TEAM LTD
Revenue,Childrens Services,Children's & Education Services,Special Schools & Alternative Provision,5105633404,12.02.2020,Island Learning Centre,Stationery,2.55,SUPPLIES TEAM LTD
Revenue,Childrens Services,Children's & Education Services,Special Schools & Alternative Provision,5105633404,12.02.2020,Island Learning Centre,Stationery,1.06,SUPPLIES TEAM LTD
Revenue,Childrens Services,Children's & Education Services,Special Schools & Alternative Provision,5105633404,12.02.2020,Island Learning Centre,Stationery,3.14,SUPPLIES TEAM LTD
Revenue,Childrens Services,Children's & Education Services,Special Schools & Alternative Provision,5105633404,12.02.2020,Island Learning Centre,Stationery,1.24,SUPPLIES TEAM LTD
Revenue,Childrens Services,Children's & Education Services,Special Schools & Alternative Provision,5105633404,12.02.2020,Island Learning Centre,Stationery,0.60,SUPPLIES TEAM LTD
Revenue,Childrens Services,Children's & Education Services,Special Schools & Alternative Provision,5105633404,12.02.2020,Island Learning Centre,Stationery,39.88,SUPPLIES TEAM LTD
Revenue,Childrens Services,Children's & Education Services,Special Schools & Alternative Provision,5105633404,12.02.2020,Island Learning Centre,Stationery,1.93,SUPPLIES TEAM LTD
Revenue,Adult Services,Adult Social Care,Commissioning & Service Delivery,5105635166,28.02.2020,ASC County Hall office costs,Stationery,0.81,SUPPLIES TEAM LTD
Revenue,Adult Services,Adult Social Care,Commissioning & Service Delivery,5105635166,28.02.2020,ASC County Hall office costs,Stationery,2.55,SUPPLIES TEAM LTD
Revenue,Adult Services,Adult Social Care,Commissioning & Service Delivery,5105635166,28.02.2020,ASC County Hall office costs,Stationery,1.06,SUPPLIES TEAM LTD
Revenue,Adult Services,Adult Social Care,Commissioning & Service Delivery,5105635166,28.02.2020,ASC County Hall office costs,Stationery,1.79,SUPPLIES TEAM LTD
Revenue,Adult Services,Adult Social Care,Commissioning & Service Delivery,5105635166,28.02.2020,ASC County Hall office costs,Stationery,1.22,SUPPLIES TEAM LTD
Revenue,Adult Services,Adult Social Care,Commissioning & Service Delivery,5105629281,19.02.2020,ASC County Hall office costs,Stationery,1.62,SUPPLIES TEAM LTD
Revenue,Adult Services,Adult Social Care,Commissioning & Service Delivery,5105629281,19.02.2020,ASC County Hall office costs,Stationery,2.22,SUPPLIES TEAM LTD
Revenue,Adult Services,Adult Social Care,Commissioning & Service Delivery,5105629281,19.02.2020,ASC County Hall office costs,Stationery,4.96,SUPPLIES TEAM LTD
Revenue,Adult Services,Adult Social Care,Commissioning & Service Delivery,5105629281,19.02.2020,ASC County Hall office costs,Stationery,1.16,SUPPLIES TEAM LTD
Revenue,Adult Services,Adult Social Care,Commissioning & Service Delivery,5105629281,19.02.2020,ASC County Hall office costs,Stationery,1.62,SUPPLIES TEAM LTD
Revenue,Adult Services,Adult Social Care,Commissioning & Service Delivery,5105629281,19.02.2020,ASC County Hall office costs,Stationery,0.50,SUPPLIES TEAM LTD
Revenue,Adult Services,Adult Social Care,Commissioning & Service Delivery,5105633937,14.02.2020,ASC County Hall office costs,Stationery,0.56,SUPPLIES TEAM LTD
Revenue,Adult Services,Adult Social Care,Commissioning & Service Delivery,5105633968,14.02.2020,ASC County Hall office costs,Stationery,0.39,SUPPLIES TEAM LTD
Revenue,Adult Services,Adult Social Care,Commissioning & Service Delivery,5105633968,14.02.2020,ASC County Hall office costs,Stationery,2.22,SUPPLIES TEAM LTD
Revenue,Adult Services,Adult Social Care,Commissioning & Service Delivery,5105633968,14.02.2020,ASC County Hall office costs,Stationery,5.10,SUPPLIES TEAM LTD
Revenue,Adult Services,Adult Social Care,Commissioning & Service Delivery,5105633968,14.02.2020,ASC County Hall office costs,Stationery,6.20,SUPPLIES TEAM LTD
Revenue,Adult Services,Adult Social Care,Commissioning & Service Delivery,5105633968,14.02.2020,ASC County Hall office costs,Stationery,0.58,SUPPLIES TEAM LTD
Revenue,Adult Services,Adult Social Care,Commissioning & Service Delivery,5105633968,14.02.2020,ASC County Hall office costs,Stationery,1.57,SUPPLIES TEAM LTD
Revenue,Adult Services,Adult Social Care,Commissioning & Service Delivery,5105633968,14.02.2020,ASC County Hall office costs,Stationery,2.02,SUPPLIES TEAM LTD
Revenue,Adult Services,Adult Social Care,Commissioning & Service Delivery,5105633968,14.02.2020,ASC County Hall office costs,Stationery,7.40,SUPPLIES TEAM LTD
Revenue,Adult Services,Adult Social Care,Commissioning & Service Delivery,5105633968,14.02.2020,ASC County Hall office costs,Stationery,1.84,SUPPLIES TEAM LTD
Revenue,Adult Services,Adult Social Care,Commissioning & Service Delivery,5105633968,14.02.2020,ASC County Hall office costs,Stationery,1.06,SUPPLIES TEAM LTD
Revenue,Adult Services,Adult Social Care,Commissioning & Service Delivery,5105634091,19.02.2020,ASC County Hall office costs,Stationery,0.37,SUPPLIES TEAM LTD
Revenue,Adult Services,Adult Social Care,Social Care Activities,5105634091,19.02.2020,Hospital Team,Stationery,2.55,SUPPLIES TEAM LTD
Revenue,Adult Services,Adult Social Care,Social Care Activities,5105634091,19.02.2020,Hospital Team,Stationery,1.43,SUPPLIES TEAM LTD
Revenue,Adult Services,Adult Social Care,Social Care Activities,5105634091,19.02.2020,Hospital Team,Stationery,5.85,SUPPLIES TEAM LTD
Revenue,Adult Services,Adult Social Care,Social Care Activities,5105634091,19.02.2020,Hospital Team,Stationery,0.81,SUPPLIES TEAM LTD
Revenue,Adult Services,Adult Social Care,Social Care Activities,5105634091,19.02.2020,Hospital Team,Stationery,3.50,SUPPLIES TEAM LTD
Revenue,Adult Services,Adult Social Care,Social Care Activities,5105634091,19.02.2020,Hospital Team,Stationery,71.10,SUPPLIES TEAM LTD
Revenue,Adult Services,Adult Social Care,Social Care Activities,5105634091,19.02.2020,Hospital Team,Stationery,1.11,SUPPLIES TEAM LTD
Revenue,Adult Services,Adult Social Care,Social Care Activities,5105634091,19.02.2020,Hospital Team,Stationery,0.69,SUPPLIES TEAM LTD
Revenue,Adult Services,Adult Social Care,Social Care Activities,5105634091,19.02.2020,Hospital Team,Stationery,2.71,SUPPLIES TEAM LTD
Revenue,Adult Services,Adult Social Care,Social Care Activities,5105634091,19.02.2020,Hospital Team,Stationery,0.43,SUPPLIES TEAM LTD
Revenue,Adult Services,Adult Social Care,Social Care Activities,5105634091,19.02.2020,Integrated Locality Services - South,Stationery,23.70,SUPPLIES TEAM LTD
Revenue,Resources,Central Services,Support Services,5105635509,28.02.2020,ICT CCR,Stationery,-11.85,SUPPLIES TEAM LTD
Revenue,Resources,Central Services,Support Services,5105631932,28.02.2020,ICT CCR,Stationery,59.25,SUPPLIES TEAM LTD
Revenue,Resources,Central Services,Support Services,5105631932,28.02.2020,ICT CCR,Stationery,4.44,SUPPLIES TEAM LTD
Revenue,Resources,Central Services,Support Services,5105631932,28.02.2020,ICT CCR,Stationery,1.11,SUPPLIES TEAM LTD
Revenue,Resources,Central Services,Support Services,5105634059,19.02.2020,ICT CCR,Stationery,5.37,SUPPLIES TEAM LTD
Revenue,Resources,Central Services,Support Services,5105634059,19.02.2020,ICT CCR,Stationery,1.12,SUPPLIES TEAM LTD
Revenue,Resources,Central Services,Support Services,5105634059,19.02.2020,ICT CCR,Stationery,5.50,SUPPLIES TEAM LTD
Revenue,Resources,Central Services,Support Services,5105634059,19.02.2020,ICT CCR,Stationery,9.20,SUPPLIES TEAM LTD
Revenue,Neighbourhoods,Cultural and Related Services,Library Service,5105633416,07.02.2020,Public Libraries Central,Stationery,0.81,SUPPLIES TEAM LTD
Revenue,Neighbourhoods,Cultural and Related Services,Library Service,5105632311,07.02.2020,Public Libraries Central,Stationery,2.57,SUPPLIES TEAM LTD
Revenue,Neighbourhoods,Cultural and Related Services,Library Service,5105632311,07.02.2020,Public Libraries Central,Stationery,11.85,SUPPLIES TEAM LTD
Revenue,Neighbourhoods,Cultural and Related Services,Library Service,5105632311,07.02.2020,Public Libraries Central,Stationery,5.71,SUPPLIES TEAM LTD
Revenue,Neighbourhoods,Cultural and Related Services,Library Service,5105632311,07.02.2020,Public Libraries Central,Stationery,6.32,SUPPLIES TEAM LTD
Revenue,Neighbourhoods,Cultural and Related Services,Library Service,5105632897,07.02.2020,Public Libraries Central,Stationery,2.57,SUPPLIES TEAM LTD
Revenue,Neighbourhoods,Cultural and Related Services,Library Service,5105632897,07.02.2020,Public Libraries Central,Stationery,17.13,SUPPLIES TEAM LTD
Revenue,Neighbourhoods,Cultural and Related Services,Library Service,5105632897,07.02.2020,Public Libraries Central,Stationery,71.10,SUPPLIES TEAM LTD
Revenue,Neighbourhoods,Cultural and Related Services,Library Service,5105634087,19.02.2020,Public Libraries Central,Stationery,1.62,SUPPLIES TEAM LTD
Revenue,Neighbourhoods,Cultural and Related Services,Recreation and Sport,5105634344,19.02.2020,Westridge Squash Courts,Stationery,11.85,SUPPLIES TEAM LTD
Revenue,Neighbourhoods,Cultural and Related Services,Recreation and Sport,5105634344,19.02.2020,Westridge Squash Courts,Stationery,1.11,SUPPLIES TEAM LTD
Revenue,Neighbourhoods,Cultural and Related Services,Recreation and Sport,5105634344,19.02.2020,Westridge Squash Courts,Stationery,1.06,SUPPLIES TEAM LTD
Revenue,Neighbourhoods,Cultural and Related Services,Recreation and Sport,5105634344,19.02.2020,Westridge Squash Courts,Stationery,5.85,SUPPLIES TEAM LTD
Revenue,Resources,Central Services,Corporate and Democratic Core,5105633968,14.02.2020,Committee and Scrutiny Team,Stationery,2.02,SUPPLIES TEAM LTD
Revenue,Resources,Central Services,Central Services to the Public,5105633033,05.02.2020,Elections,Stationery,38.36,SUPPLIES TEAM LTD
Revenue,Resources,Central Services,Support Services,5105629281,19.02.2020,Revenues & Benefits Operational Support,Stationery,34.12,SUPPLIES TEAM LTD
Revenue,Resources,Central Services,Support Services,5105629281,19.02.2020,Revenues & Benefits Operational Support,Stationery,106.65,SUPPLIES TEAM LTD
Revenue,Resources,Highways and Transport Services,Off Street Parking,5105629281,19.02.2020,Parking Services,Stationery,23.70,SUPPLIES TEAM LTD
Revenue,Resources,Highways and Transport Services,Off Street Parking,5105629281,19.02.2020,Parking Services,Stationery,23.70,SUPPLIES TEAM LTD
Revenue,Resources,Central Services,Support Services,5105634091,19.02.2020,Customer Accounts Shared Service Centre,Stationery,23.70,SUPPLIES TEAM LTD
Revenue,Resources,Central Services,Support Services,5105634091,19.02.2020,Customer Accounts Shared Service Centre,Stationery,11.85,SUPPLIES TEAM LTD
Revenue,Adult Services,Adult Social Care,Commissioning & Service Delivery,5105633968,14.02.2020,Director of Adult Social Services,Stationery,5.85,SUPPLIES TEAM LTD
Revenue,Adult Services,Adult Social Care,Learning Disability Suppt-adults (18-64),5105634941,26.02.2020,No-Barriers,Stationery,10.69,SUPPLIES TEAM LTD
Revenue,Adult Services,Adult Social Care,Learning Disability Suppt-adults (18-64),5105634940,26.02.2020,No-Barriers,Stationery,13.23,SUPPLIES TEAM LTD
Revenue,Neighbourhoods,Central Services,Central Services to the Public,5105634347,21.02.2020,Coroner,Stationery,0.68,SUPPLIES TEAM LTD
Revenue,Neighbourhoods,Central Services,Central Services to the Public,5105634347,21.02.2020,Coroner,Stationery,3.09,SUPPLIES TEAM LTD
Revenue,Neighbourhoods,Central Services,Central Services to the Public,5105634347,21.02.2020,Coroner,Stationery,11.85,SUPPLIES TEAM LTD
Revenue,Neighbourhoods,Central Services,Central Services to the Public,5105634347,21.02.2020,Coroner,Stationery,1.84,SUPPLIES TEAM LTD
Revenue,Neighbourhoods,Central Services,Central Services to the Public,5105634347,21.02.2020,Coroner,Stationery,1.06,SUPPLIES TEAM LTD
Revenue,Neighbourhoods,Central Services,Central Services to the Public,5105634347,21.02.2020,Coroner,Stationery,1.57,SUPPLIES TEAM LTD
Revenue,Neighbourhoods,Central Services,Central Services to the Public,5105634347,21.02.2020,Coroner,Stationery,16.18,SUPPLIES TEAM LTD
Revenue,Neighbourhoods,Central Services,Central Services to the Public,5105634347,21.02.2020,Coroner,Stationery,71.10,SUPPLIES TEAM LTD
Revenue,Neighbourhoods,Central Services,Central Services to the Public,5105634347,21.02.2020,Coroner,Stationery,1.36,SUPPLIES TEAM LTD
Revenue,Neighbourhoods,Central Services,Central Services to the Public,5105634347,21.02.2020,Coroner,Stationery,2.10,SUPPLIES TEAM LTD
Revenue,Neighbourhoods,Central Services,Central Services to the Public,5105634347,21.02.2020,Coroner,Stationery,43.08,SUPPLIES TEAM LTD
Revenue,Neighbourhoods,Central Services,Central Services to the Public,5105634347,21.02.2020,Coroner,Stationery,2.55,SUPPLIES TEAM LTD
Revenue,Neighbourhoods,Central Services,Central Services to the Public,5105634347,21.02.2020,Coroner,Stationery,9.04,SUPPLIES TEAM LTD
Revenue,Neighbourhoods,Central Services,Central Services to the Public,5105634347,21.02.2020,Coroner,Stationery,1.65,SUPPLIES TEAM LTD
Revenue,Neighbourhoods,Central Services,Central Services to the Public,5105634347,21.02.2020,Coroner,Stationery,2.04,SUPPLIES TEAM LTD
Revenue,Childrens Services,Children's & Education Services,Youth Justice,5105634091,19.02.2020,Youth Offending Team,Stationery,35.55,SUPPLIES TEAM LTD
Revenue,Childrens Services,Children's & Education Services,Youth Justice,5105634091,19.02.2020,Youth Offending Team,Stationery,11.85,SUPPLIES TEAM LTD
Revenue,Childrens Services,Children's & Education Services,Youth Justice,5105634091,19.02.2020,Youth Offending Team,Stationery,23.70,SUPPLIES TEAM LTD
Revenue,Childrens Services,Children's & Education Services,Youth Justice,5105633968,14.02.2020,Youth Offending Team,Stationery,35.55,SUPPLIES TEAM LTD
Revenue,Childrens Services,Children's & Education Services,Youth Justice,5105633968,14.02.2020,Youth Offending Team,Stationery,5.85,SUPPLIES TEAM LTD
Revenue,Childrens Services,Children's & Education Services,Youth Justice,5105629281,19.02.2020,Youth Offending Team,Stationery,23.70,SUPPLIES TEAM LTD
Revenue,Resources,Central Services,Support Services,5105631533,19.02.2020,Payments Social Care Team,Stationery,11.00,SUPPLIES TEAM LTD
Revenue,Resources,Central Services,Support Services,5105631533,19.02.2020,Payments Social Care Team,Stationery,4.02,SUPPLIES TEAM LTD
Revenue,Resources,Central Services,Support Services,5105635166,28.02.2020,Help Centres Shared Service Centre,Stationery,23.70,SUPPLIES TEAM LTD
Revenue,Resources,Central Services,Support Services,5105634091,19.02.2020,Help Centres Shared Service Centre,Stationery,2.28,SUPPLIES TEAM LTD
Revenue,Resources,Central Services,Central Services to the Public,5105629281,19.02.2020,Internal Enforcement Team,Stationery,23.70,SUPPLIES TEAM LTD
Revenue,Adult Services,Adult Social Care,Commissioning & Service Delivery,5105635166,28.02.2020,CHC Staff Costs,Stationery,6.08,SUPPLIES TEAM LTD
Revenue,Adult Services,Adult Social Care,Commissioning & Service Delivery,5105634091,19.02.2020,CHC Staff Costs,Stationery,7.34,SUPPLIES TEAM LTD
Revenue,Adult Services,Adult Social Care,Commissioning & Service Delivery,5105634091,19.02.2020,CHC Staff Costs,Stationery,7.40,SUPPLIES TEAM LTD
Revenue,Adult Services,Adult Social Care,Central Codes (to be reallocated),5105634940,26.02.2020,Adelaide Resource Centre,Stationery,22.16,SUPPLIES TEAM LTD
Revenue,Adult Services,Adult Social Care,Central Codes (to be reallocated),5105634940,26.02.2020,Adelaide Resource Centre,Stationery,1.24,SUPPLIES TEAM LTD
Revenue,Adult Services,Adult Social Care,Central Codes (to be reallocated),5105634940,26.02.2020,Adelaide Resource Centre,Stationery,3.40,SUPPLIES TEAM LTD
Revenue,Adult Services,Adult Social Care,Central Codes (to be reallocated),5105634940,26.02.2020,Adelaide Resource Centre,Stationery,1.98,SUPPLIES TEAM LTD
Revenue,Adult Services,Adult Social Care,Central Codes (to be reallocated),5105634940,26.02.2020,Adelaide Resource Centre,Stationery,2.57,SUPPLIES TEAM LTD
Revenue,Adult Services,Adult Social Care,Central Codes (to be reallocated),5105634940,26.02.2020,Adelaide Resource Centre,Stationery,3.25,SUPPLIES TEAM LTD
Revenue,Adult Services,Adult Social Care,Central Codes (to be reallocated),5105634940,26.02.2020,Adelaide Resource Centre,Stationery,0.48,SUPPLIES TEAM LTD
Revenue,Adult Services,Adult Social Care,Central Codes (to be reallocated),5105634940,26.02.2020,Adelaide Resource Centre,Stationery,2.20,SUPPLIES TEAM LTD
Revenue,Adult Services,Adult Social Care,Central Codes (to be reallocated),5105634940,26.02.2020,Adelaide Resource Centre,Stationery,7.30,SUPPLIES TEAM LTD
Revenue,Neighbourhoods,Cultural and Related Services,Recreation and Sport,5105634430,19.02.2020,The Heights,Stationery,10.28,SUPPLIES TEAM LTD
Revenue,Neighbourhoods,Cultural and Related Services,Recreation and Sport,5105634344,19.02.2020,The Heights,Stationery,17.60,SUPPLIES TEAM LTD
Revenue,Neighbourhoods,Cultural and Related Services,Recreation and Sport,5105634344,19.02.2020,The Heights,Stationery,4.81,SUPPLIES TEAM LTD
Revenue,Neighbourhoods,Cultural and Related Services,Recreation and Sport,5105634344,19.02.2020,The Heights,Stationery,4.81,SUPPLIES TEAM LTD
Revenue,Neighbourhoods,Cultural and Related Services,Recreation and Sport,5105634344,19.02.2020,The Heights,Stationery,4.81,SUPPLIES TEAM LTD
Revenue,Neighbourhoods,Cultural and Related Services,Recreation and Sport,5105634344,19.02.2020,The Heights,Stationery,0.81,SUPPLIES TEAM LTD
Revenue,Neighbourhoods,Cultural and Related Services,Recreation and Sport,5105634344,19.02.2020,The Heights,Stationery,3.05,SUPPLIES TEAM LTD
Revenue,Regeneration,Planning services,Management & Support Services,5105631932,28.02.2020,Planning Management,Stationery,59.25,SUPPLIES TEAM LTD
Revenue,Regeneration,Planning services,Management & Support Services,5105631932,28.02.2020,Planning Management,Stationery,6.36,SUPPLIES TEAM LTD
Revenue,Regeneration,Planning services,Management & Support Services,5105631932,28.02.2020,Planning Management,Stationery,5.10,SUPPLIES TEAM LTD
Revenue,Regeneration,Planning services,Management & Support Services,5105632264,07.02.2020,Planning Management,Stationery,0.43,SUPPLIES TEAM LTD
Revenue,Regeneration,Planning services,Environmental Initiatives,5105634082,14.02.2020,A.O.N.B.,Stationery,11.85,SUPPLIES TEAM LTD
Revenue,Neighbourhoods,Environmental & Regulatory Services,"Cemetery, Cremation & Mortuary Services",5105628082,19.02.2020,Crematorium,Stationery,2.10,SUPPLIES TEAM LTD
Revenue,Neighbourhoods,Environmental & Regulatory Services,"Cemetery, Cremation & Mortuary Services",5105628082,19.02.2020,Crematorium,Stationery,7.40,SUPPLIES TEAM LTD
Revenue,Neighbourhoods,Environmental & Regulatory Services,"Cemetery, Cremation & Mortuary Services",5105628082,19.02.2020,Crematorium,Stationery,8.44,SUPPLIES TEAM LTD
Revenue,Neighbourhoods,Environmental & Regulatory Services,"Cemetery, Cremation & Mortuary Services",5105628082,19.02.2020,Crematorium,Stationery,2.12,SUPPLIES TEAM LTD
Revenue,Neighbourhoods,Environmental & Regulatory Services,"Cemetery, Cremation & Mortuary Services",5105628082,19.02.2020,Crematorium,Stationery,3.41,SUPPLIES TEAM LTD
Revenue,Neighbourhoods,Environmental & Regulatory Services,"Cemetery, Cremation & Mortuary Services",5105628082,19.02.2020,Crematorium,Stationery,4.33,SUPPLIES TEAM LTD
Revenue,Neighbourhoods,Environmental & Regulatory Services,"Cemetery, Cremation & Mortuary Services",5105628082,19.02.2020,Crematorium,Stationery,2.43,SUPPLIES TEAM LTD
Revenue,Neighbourhoods,Environmental & Regulatory Services,"Cemetery, Cremation & Mortuary Services",5105628082,19.02.2020,Crematorium,Stationery,4.71,SUPPLIES TEAM LTD
Revenue,Neighbourhoods,Environmental & Regulatory Services,"Cemetery, Cremation & Mortuary Services",5105628082,19.02.2020,Crematorium,Stationery,24.66,SUPPLIES TEAM LTD
Revenue,Neighbourhoods,Environmental & Regulatory Services,"Cemetery, Cremation & Mortuary Services",5105628082,19.02.2020,Crematorium,Stationery,23.70,SUPPLIES TEAM LTD
Revenue,Neighbourhoods,Environmental & Regulatory Services,"Cemetery, Cremation & Mortuary Services",5105628650,19.02.2020,Crematorium,Stationery,-23.70,SUPPLIES TEAM LTD
Revenue,Neighbourhoods,Environmental & Regulatory Services,"Cemetery, Cremation & Mortuary Services",5105634056,19.02.2020,Crematorium,Stationery,34.74,SUPPLIES TEAM LTD
Revenue,Neighbourhoods,Environmental & Regulatory Services,"Cemetery, Cremation & Mortuary Services",5105634056,19.02.2020,Crematorium,Stationery,2.10,SUPPLIES TEAM LTD
Revenue,Neighbourhoods,Environmental & Regulatory Services,"Cemetery, Cremation & Mortuary Services",5105634056,19.02.2020,Crematorium,Stationery,3.42,SUPPLIES TEAM LTD
Revenue,Neighbourhoods,Environmental & Regulatory Services,"Cemetery, Cremation & Mortuary Services",5105634056,19.02.2020,Crematorium,Stationery,2.12,SUPPLIES TEAM LTD
Revenue,Neighbourhoods,Environmental & Regulatory Services,"Cemetery, Cremation & Mortuary Services",5105634056,19.02.2020,Crematorium,Stationery,23.70,SUPPLIES TEAM LTD
Revenue,Neighbourhoods,Environmental & Regulatory Services,"Cemetery, Cremation & Mortuary Services",5105634056,19.02.2020,Crematorium,Stationery,2.72,SUPPLIES TEAM LTD
Revenue,Neighbourhoods,Environmental & Regulatory Services,"Cemetery, Cremation & Mortuary Services",5105634056,19.02.2020,Crematorium,Stationery,1.62,SUPPLIES TEAM LTD
Revenue,Neighbourhoods,Environmental & Regulatory Services,"Cemetery, Cremation & Mortuary Services",5105634056,19.02.2020,Crematorium,Stationery,1.11,SUPPLIES TEAM LTD
Revenue,Neighbourhoods,Environmental & Regulatory Services,"Cemetery, Cremation & Mortuary Services",5105634056,19.02.2020,Crematorium,Stationery,3.14,SUPPLIES TEAM LTD
Revenue,Neighbourhoods,Environmental & Regulatory Services,"Cemetery, Cremation & Mortuary Services",5105634056,19.02.2020,Crematorium,Stationery,0.69,SUPPLIES TEAM LTD
Revenue,Neighbourhoods,Environmental & Regulatory Services,"Cemetery, Cremation & Mortuary Services",5105634056,19.02.2020,Crematorium,Stationery,4.33,SUPPLIES TEAM LTD
Revenue,Neighbourhoods,Environmental & Regulatory Services,"Cemetery, Cremation & Mortuary Services",5105634056,19.02.2020,Crematorium,Stationery,1.23,SUPPLIES TEAM LTD
Revenue,Neighbourhoods,Environmental & Regulatory Services,"Cemetery, Cremation & Mortuary Services",5105634056,19.02.2020,Crematorium,Stationery,6.57,SUPPLIES TEAM LTD
Revenue,Neighbourhoods,Cultural and Related Services,Culture and Heritage,5105634739,21.02.2020,Dinosaur Isle Museum (Sandown Geology),Stationery,118.50,SUPPLIES TEAM LTD
Revenue,Neighbourhoods,Cultural and Related Services,Culture and Heritage,5105634058,19.02.2020,Dinosaur Isle Museum (Sandown Geology),Stationery,0.81,SUPPLIES TEAM LTD
Revenue,Neighbourhoods,Cultural and Related Services,Culture and Heritage,5105634058,19.02.2020,Dinosaur Isle Museum (Sandown Geology),Stationery,11.42,SUPPLIES TEAM LTD
Revenue,Resources,Housing Services,Housing Benefits Administration,5105634348,19.02.2020,Benefit Reviews & Overpayments,Stationery,1.84,SUPPLIES TEAM LTD
Revenue,Resources,Housing Services,Housing Benefits Administration,5105634348,19.02.2020,Benefit Reviews & Overpayments,Stationery,2.20,SUPPLIES TEAM LTD
Revenue,Resources,Housing Services,Housing Benefits Administration,5105634348,19.02.2020,Benefit Reviews & Overpayments,Stationery,1.58,SUPPLIES TEAM LTD
Revenue,Resources,Central Services,Central Services to the Public,5105634738,21.02.2020,Council Tax,Stationery,118.50,SUPPLIES TEAM LTD
Revenue,Childrens Services,Children's & Education Services,Sure Start Children's Centres,5105634897,21.02.2020,Early Help Contracts,Payment to Private Contractors,"260,018.00",BARNARDO'S
Revenue,Childrens Services,Children's & Education Services,Children Looked After,5105634382,19.02.2020,Adoption Support Fund,Charges from Independent Providers,700.00,BARNARDO'S
Revenue,Childrens Services,Children's & Education Services,Children Looked After,5105634384,19.02.2020,Adoption Support Fund,Charges from Independent Providers,210.00,BARNARDO'S
Revenue,Childrens Services,Children's & Education Services,Children Looked After,5105632984,05.02.2020,Support for Looked After Children,Support Children,49.00,BARTON PRIMARY & EARLY YEARS
Revenue,Neighbourhoods,Cultural and Related Services,Recreation and Sport,5105633596,12.02.2020,Medina Leisure Centre,Consumable Cleaning Materials,18.00,LAKE CLEANING & CATERING SUPPLIES
Revenue,Neighbourhoods,Cultural and Related Services,Recreation and Sport,5105634289,19.02.2020,Medina Leisure Centre,Consumable Cleaning Materials,135.32,LAKE CLEANING & CATERING SUPPLIES
Revenue,Neighbourhoods,Cultural and Related Services,Recreation and Sport,5105633596,12.02.2020,Medina Leisure Centre,Consumable Cleaning Materials,11.20,LAKE CLEANING & CATERING SUPPLIES
Revenue,Neighbourhoods,Cultural and Related Services,Recreation and Sport,5105633596,12.02.2020,Medina Leisure Centre,Consumable Cleaning Materials,11.76,LAKE CLEANING & CATERING SUPPLIES
Revenue,Neighbourhoods,Cultural and Related Services,Recreation and Sport,5105633596,12.02.2020,Medina Leisure Centre,Consumable Cleaning Materials,78.06,LAKE CLEANING & CATERING SUPPLIES
Revenue,Neighbourhoods,Cultural and Related Services,Recreation and Sport,5105633596,12.02.2020,Medina Leisure Centre,Consumable Cleaning Materials,21.92,LAKE CLEANING & CATERING SUPPLIES
Revenue,Neighbourhoods,Cultural and Related Services,Recreation and Sport,5105635558,28.02.2020,Medina Leisure Centre,Consumable Cleaning Materials,9.60,LAKE CLEANING & CATERING SUPPLIES
Revenue,Neighbourhoods,Cultural and Related Services,Recreation and Sport,5105635558,28.02.2020,Medina Leisure Centre,Consumable Cleaning Materials,23.64,LAKE CLEANING & CATERING SUPPLIES
Revenue,Neighbourhoods,Cultural and Related Services,Recreation and Sport,5105635558,28.02.2020,Medina Leisure Centre,Consumable Cleaning Materials,3.38,LAKE CLEANING & CATERING SUPPLIES
Revenue,Neighbourhoods,Cultural and Related Services,Recreation and Sport,5105635558,28.02.2020,Medina Leisure Centre,Consumable Cleaning Materials,20.76,LAKE CLEANING & CATERING SUPPLIES
Revenue,Neighbourhoods,Cultural and Related Services,Recreation and Sport,5105635558,28.02.2020,Medina Leisure Centre,Consumable Cleaning Materials,2.94,LAKE CLEANING & CATERING SUPPLIES
Revenue,Neighbourhoods,Cultural and Related Services,Recreation and Sport,5105635558,28.02.2020,Medina Leisure Centre,Consumable Cleaning Materials,5.88,LAKE CLEANING & CATERING SUPPLIES
Revenue,Neighbourhoods,Cultural and Related Services,Recreation and Sport,5105635558,28.02.2020,Medina Leisure Centre,Consumable Cleaning Materials,8.82,LAKE CLEANING & CATERING SUPPLIES
Revenue,Neighbourhoods,Cultural and Related Services,Recreation and Sport,5105635558,28.02.2020,Medina Leisure Centre,Consumable Cleaning Materials,78.06,LAKE CLEANING & CATERING SUPPLIES
Revenue,Neighbourhoods,Cultural and Related Services,Recreation and Sport,5105635558,28.02.2020,Medina Leisure Centre,Consumable Cleaning Materials,21.92,LAKE CLEANING & CATERING SUPPLIES
Revenue,Neighbourhoods,Cultural and Related Services,Recreation and Sport,5105635557,28.02.2020,Medina Leisure Centre,Consumable Cleaning Materials,11.07,LAKE CLEANING & CATERING SUPPLIES
Revenue,Neighbourhoods,Cultural and Related Services,Recreation and Sport,5105635557,28.02.2020,Medina Leisure Centre,Consumable Cleaning Materials,16.90,LAKE CLEANING & CATERING SUPPLIES
Revenue,Neighbourhoods,Cultural and Related Services,Recreation and Sport,5105635557,28.02.2020,Medina Leisure Centre,Consumable Cleaning Materials,12.60,LAKE CLEANING & CATERING SUPPLIES
Revenue,Neighbourhoods,Cultural and Related Services,Recreation and Sport,5105635557,28.02.2020,Medina Leisure Centre,Consumable Cleaning Materials,13.50,LAKE CLEANING & CATERING SUPPLIES
Revenue,Neighbourhoods,Cultural and Related Services,Recreation and Sport,5105635557,28.02.2020,Medina Leisure Centre,Consumable Cleaning Materials,13.50,LAKE CLEANING & CATERING SUPPLIES
Revenue,Neighbourhoods,Cultural and Related Services,Recreation and Sport,5105635558,28.02.2020,Medina Leisure Centre,Consumable Cleaning Materials,13.44,LAKE CLEANING & CATERING SUPPLIES
Revenue,Neighbourhoods,Cultural and Related Services,Recreation and Sport,5105635557,28.02.2020,Medina Leisure Centre,Consumable Cleaning Materials,21.00,LAKE CLEANING & CATERING SUPPLIES
Revenue,Neighbourhoods,Cultural and Related Services,Recreation and Sport,5105635557,28.02.2020,Medina Leisure Centre,Consumable Cleaning Materials,4.94,LAKE CLEANING & CATERING SUPPLIES
Revenue,Neighbourhoods,Cultural and Related Services,Recreation and Sport,5105635557,28.02.2020,Medina Leisure Centre,Consumable Cleaning Materials,22.94,LAKE CLEANING & CATERING SUPPLIES
Revenue,Neighbourhoods,Cultural and Related Services,Recreation and Sport,5105635557,28.02.2020,Medina Leisure Centre,Consumable Cleaning Materials,23.85,LAKE CLEANING & CATERING SUPPLIES
Revenue,Neighbourhoods,Cultural and Related Services,Recreation and Sport,5105635557,28.02.2020,Medina Leisure Centre,Consumable Cleaning Materials,26.26,LAKE CLEANING & CATERING SUPPLIES
Revenue,Neighbourhoods,Cultural and Related Services,Recreation and Sport,5105635557,28.02.2020,Medina Leisure Centre,Consumable Cleaning Materials,11.07,LAKE CLEANING & CATERING SUPPLIES
Revenue,Neighbourhoods,Cultural and Related Services,Recreation and Sport,5105634809,21.02.2020,Medina Leisure Centre,Stock Purchases,7.68,LAKE CLEANING & CATERING SUPPLIES
Revenue,Neighbourhoods,Highways and Transport Services,"Airports, Harbours & Toll Facilities",5105626552,14.02.2020,Ryde Harbour,Consumable Cleaning Materials,88.55,LAKE CLEANING & CATERING SUPPLIES
Revenue,Neighbourhoods,Highways and Transport Services,"Airports, Harbours & Toll Facilities",5105626750,14.02.2020,Ryde Harbour,Consumable Cleaning Materials,71.96,LAKE CLEANING & CATERING SUPPLIES
Revenue,Neighbourhoods,Highways and Transport Services,"Airports, Harbours & Toll Facilities",5105626751,14.02.2020,Ryde Harbour,Consumable Cleaning Materials,56.20,LAKE CLEANING & CATERING SUPPLIES
Revenue,Childrens Services,Children's & Education Services,Children Looked After,5105634004,14.02.2020,Beaulieu House,General Materials,105.93,LAKE CLEANING & CATERING SUPPLIES
Revenue,Childrens Services,Children's & Education Services,Children Looked After,5105634139,19.02.2020,Beaulieu House,General Materials,34.16,LAKE CLEANING & CATERING SUPPLIES
Revenue,Childrens Services,Children's & Education Services,Children Looked After,5105634829,21.02.2020,Beaulieu House,General Materials,203.62,LAKE CLEANING & CATERING SUPPLIES
Revenue,Childrens Services,Children's & Education Services,Children Looked After,5105633112,05.02.2020,Beaulieu House,General Materials,196.57,LAKE CLEANING & CATERING SUPPLIES
Revenue,Childrens Services,Children's & Education Services,Children Looked After,5105634811,21.02.2020,Beaulieu House,General Materials,59.31,LAKE CLEANING & CATERING SUPPLIES
Revenue,Neighbourhoods,Cultural and Related Services,Recreation and Sport,5105633642,11.02.2020,Westridge Squash Courts,Consumable Cleaning Materials,-81.60,LAKE CLEANING & CATERING SUPPLIES
Revenue,Neighbourhoods,Cultural and Related Services,Recreation and Sport,5105633664,12.02.2020,Westridge Squash Courts,Consumable Cleaning Materials,9.92,LAKE CLEANING & CATERING SUPPLIES
Revenue,Neighbourhoods,Cultural and Related Services,Recreation and Sport,5105633592,11.02.2020,Westridge Squash Courts,Consumable Cleaning Materials,81.60,LAKE CLEANING & CATERING SUPPLIES
Revenue,Neighbourhoods,Cultural and Related Services,Recreation and Sport,5105634870,21.02.2020,Westridge Squash Courts,Consumable Cleaning Materials,6.90,LAKE CLEANING & CATERING SUPPLIES
Revenue,Neighbourhoods,Cultural and Related Services,Recreation and Sport,5105635539,28.02.2020,The Heights,Consumable Cleaning Materials,161.42,LAKE CLEANING & CATERING SUPPLIES
Revenue,Neighbourhoods,Cultural and Related Services,Recreation and Sport,5105634965,26.02.2020,The Heights,Consumable Cleaning Materials,39.76,LAKE CLEANING & CATERING SUPPLIES
Revenue,Neighbourhoods,Cultural and Related Services,Recreation and Sport,5105634967,26.02.2020,The Heights,Consumable Cleaning Materials,39.76,LAKE CLEANING & CATERING SUPPLIES
Revenue,Neighbourhoods,Cultural and Related Services,Recreation and Sport,5105633589,12.02.2020,The Heights,Consumable Cleaning Materials,39.76,LAKE CLEANING & CATERING SUPPLIES
Revenue,Neighbourhoods,Cultural and Related Services,Recreation and Sport,5105633590,12.02.2020,The Heights,Consumable Cleaning Materials,129.96,LAKE CLEANING & CATERING SUPPLIES
Revenue,Neighbourhoods,Cultural and Related Services,Recreation and Sport,5105633591,12.02.2020,The Heights,Consumable Cleaning Materials,14.90,LAKE CLEANING & CATERING SUPPLIES
Revenue,Adult Services,Adult Social Care,Support - Memory /Cognition-older people (65+),5105634226,19.02.2020,Memory & Cognition Nursing 65+,Charges from Independent Providers,"3,580.08",BEAUMONT LODGE LTD
Revenue,Public Health,Public Health,NHS Health Check Programme,5105634011,19.02.2020,NHS Health Check Programme P,Payment to Private Contractors,97.00,BEECH GROVE SURGERY
Revenue,Public Health,Public Health,NHS Health Check Programme,5105633995,19.02.2020,NHS Health Check Programme P,Payment to Private Contractors,97.00,BEECH GROVE SURGERY
Revenue,Public Health,Public Health,NHS Health Check Programme,5105634890,21.02.2020,NHS Health Check Programme P,Payment to Private Contractors,"1,075.50",BEECH GROVE SURGERY
Revenue,Public Health,Public Health,Sexual Health,5105634011,19.02.2020,Long Acting Reversible Contraception,Payment to Private Contractors,155.00,BEECH GROVE SURGERY
Revenue,Resources,Central Services,Support Services,5105633631,12.02.2020,Litigation Costs,Legal Fees - Other Parties,920.00,BERRYMANS LACE MAWER
Revenue,Adult Services,Housing Services,Homelessness,5105634365,19.02.2020,B&B Properties,Accommodation Costs - Bed & Breakfast,"1,370.91",BERTRAM LODGE
Revenue,Adult Services,Adult Social Care,Learning Disab Supp (to be reallocated),5105633345,07.02.2020,31 Carter Avenue,Operational Equipment,64.79,BETA PAK LTD
Revenue,Adult Services,Adult Social Care,Learning Disab Supp (to be reallocated),5105632859,05.02.2020,31 Carter Avenue,Operational Equipment,126.60,BETA PAK LTD
Revenue,Adult Services,Adult Social Care,Learning Disab Supp (to be reallocated),5105632391,05.02.2020,31 Carter Avenue,Operational Equipment,5.43,BETA PAK LTD
Revenue,Adult Services,Adult Social Care,Learning Disab Supp (to be reallocated),5105633099,05.02.2020,31 Carter Avenue,Operational Equipment,21.89,BETA PAK LTD
Revenue,Adult Services,Adult Social Care,Central Codes (to be reallocated),5105634386,19.02.2020,Gouldings Resource Centre,Professional Services,22.00,BETA PAK LTD
Revenue,Adult Services,Adult Social Care,Central Codes (to be reallocated),5105634882,21.02.2020,Gouldings Resource Centre,Catering Purchases,28.61,BETA PAK LTD
Revenue,Adult Services,Adult Social Care,Central Codes (to be reallocated),5105635161,28.02.2020,Gouldings Resource Centre,Catering Purchases,6.01,BETA PAK LTD
Revenue,Adult Services,Adult Social Care,Central Codes (to be reallocated),5105635060,26.02.2020,Gouldings Resource Centre,Catering Purchases,127.68,BETA PAK LTD
Revenue,Adult Services,Adult Social Care,Central Codes (to be reallocated),5105635062,26.02.2020,Gouldings Resource Centre,Operational Equipment,236.49,BETA PAK LTD
Revenue,Adult Services,Adult Social Care,Central Codes (to be reallocated),5105633553,12.02.2020,Gouldings Resource Centre,Consumable Cleaning Materials,188.63,BETA PAK LTD
Revenue,Adult Services,Adult Social Care,Central Codes (to be reallocated),5105634942,26.02.2020,Gouldings Resource Centre,Consumable Cleaning Materials,162.31,BETA PAK LTD
Revenue,Adult Services,Adult Social Care,Central Codes (to be reallocated),5105635412,28.02.2020,Gouldings Resource Centre,Consumable Cleaning Materials,435.40,BETA PAK LTD
Revenue,Adult Services,Adult Social Care,Central Codes (to be reallocated),5105635534,28.02.2020,Gouldings Resource Centre,Consumable Cleaning Materials,22.16,BETA PAK LTD
Revenue,Adult Services,Adult Social Care,Learning Disab Supp (to be reallocated),5105633552,19.02.2020,Plean Dene,Operational Equipment,47.96,BETA PAK LTD
Revenue,Adult Services,Adult Social Care,Learning Disab Supp (to be reallocated),5105633552,19.02.2020,Plean Dene,Operational Equipment,174.10,BETA PAK LTD
Revenue,Adult Services,Adult Social Care,Learning Disab Supp (to be reallocated),5105633464,12.02.2020,Saxonbury,Operational Equipment,11.56,BETA PAK LTD
Revenue,Adult Services,Adult Social Care,Learning Disab Supp (to be reallocated),5105635533,28.02.2020,Saxonbury,Operational Equipment,142.85,BETA PAK LTD
Revenue,Adult Services,Adult Social Care,Learning Disab Supp (to be reallocated),5105634154,19.02.2020,Saxonbury,Operational Equipment,189.59,BETA PAK LTD
Revenue,Adult Services,Adult Social Care,Social Support - Support for Carer,5105634321,26.02.2020,Westminster House,Operational Equipment,225.23,BETA PAK LTD
Revenue,Adult Services,Adult Social Care,Learning Disab Supp (to be reallocated),5105634960,26.02.2020,Seagulls,Operational Equipment,58.43,BETA PAK LTD
Revenue,Adult Services,Adult Social Care,Learning Disab Supp (to be reallocated),5105632693,05.02.2020,Seagulls,Operational Equipment,167.39,BETA PAK LTD
Revenue,Adult Services,Adult Social Care,Learning Disab Supp (to be reallocated),5105633988,14.02.2020,Seagulls,Operational Equipment,290.01,BETA PAK LTD
Revenue,Adult Services,Adult Social Care,Learning Disab Supp (to be reallocated),5105633350,07.02.2020,40 Venner Avenue,Operational Equipment,-18.84,BETA PAK LTD
Revenue,Adult Services,Adult Social Care,Learning Disab Supp (to be reallocated),5105635564,28.02.2020,40 Venner Avenue,Operational Equipment,351.26,BETA PAK LTD
Revenue,Adult Services,Adult Social Care,Learning Disab Supp (to be reallocated),5105632717,07.02.2020,40 Venner Avenue,Operational Equipment,355.44,BETA PAK LTD
Revenue,Adult Services,Adult Social Care,Learning Disab Supp (to be reallocated),5105632724,07.02.2020,40 Venner Avenue,Operational Equipment,20.10,BETA PAK LTD
Revenue,Adult Services,Adult Social Care,Learning Disab Supp (to be reallocated),5105634341,26.02.2020,40 Venner Avenue,Operational Equipment,189.40,BETA PAK LTD
Revenue,Adult Services,Adult Social Care,Central Codes (to be reallocated),5105634766,21.02.2020,Adelaide Resource Centre,Consumable Cleaning Materials,122.80,BETA PAK LTD
Revenue,Adult Services,Adult Social Care,Central Codes (to be reallocated),5105633958,14.02.2020,Adelaide Resource Centre,Consumable Cleaning Materials,320.43,BETA PAK LTD
Revenue,Neighbourhoods,Highways and Transport Services,Management and Support Services,5105631063,14.02.2020,Highways PFI Project,Legal Fees - Other Parties,"32,261.85",BEVAN BRITTAN
Revenue,Neighbourhoods,Environmental & Regulatory Services,Service Management and Support Services,5105632402,26.02.2020,Waste Contract Management,Legal Fees - Other Parties,"1,014.02",BEVAN BRITTAN
Revenue,Neighbourhoods,Environmental & Regulatory Services,Service Management and Support Services,5105632708,26.02.2020,Waste Contract Management,Legal Fees - Other Parties,"11,761.40",BEVAN BRITTAN
Revenue,Regeneration,Planning services,Economic Development,5105633990,21.02.2020,Economic Development Projects,Professional Services,"2,825.00",BEVAN BRITTAN
Revenue,Resources,Central Services,Support Services,5105635481,28.02.2020,Litigation Costs,Legal Fees - Other Parties,"2,000.00",BEVAN BRITTAN
Revenue,Adult Services,Adult Social Care,Central Codes (to be reallocated),5105634775,21.02.2020,Gouldings Resource Centre,Catering Purchases,174.86,3663 (BFS GROUP LTD)
Revenue,Adult Services,Adult Social Care,Central Codes (to be reallocated),5105634775,21.02.2020,Gouldings Resource Centre,Catering Purchases,4.98,3663 (BFS GROUP LTD)
Revenue,Adult Services,Adult Social Care,Central Codes (to be reallocated),5105633018,05.02.2020,Gouldings Resource Centre,Catering Purchases,189.31,3663 (BFS GROUP LTD)
Revenue,Adult Services,Adult Social Care,Central Codes (to be reallocated),5105633018,05.02.2020,Gouldings Resource Centre,Catering Purchases,46.34,3663 (BFS GROUP LTD)
Revenue,Adult Services,Adult Social Care,Central Codes (to be reallocated),5105633583,12.02.2020,Gouldings Resource Centre,Catering Purchases,107.50,3663 (BFS GROUP LTD)
Revenue,Corporate Items,Central Services,Corporate and Democratic Core,5105634895,26.02.2020,Corporate Management,Professional Services,"19,945.20",BCG BROKERS GP LIMITED
Revenue,Adult Services,Adult Social Care,Learning Disab Supp (to be reallocated),5105631384,19.02.2020,31 Carter Avenue,"Refuse Collection, Disposal and Recycling Costs",70.00,BIFFA WASTE SERVICES LTD
Revenue,Adult Services,Adult Social Care,Learning Disab Supp (to be reallocated),5105633462,14.02.2020,31 Carter Avenue,"Refuse Collection, Disposal and Recycling Costs",56.00,BIFFA WASTE SERVICES LTD
Revenue,Neighbourhoods,Highways and Transport Services,"Airports, Harbours & Toll Facilities",5105631384,19.02.2020,Ferry Management,"Refuse Collection, Disposal and Recycling Costs",92.35,BIFFA WASTE SERVICES LTD
Revenue,Neighbourhoods,Highways and Transport Services,"Airports, Harbours & Toll Facilities",5105633462,14.02.2020,Ferry Management,"Refuse Collection, Disposal and Recycling Costs",73.88,BIFFA WASTE SERVICES LTD
Revenue,Adult Services,Adult Social Care,Central Codes (to be reallocated),5105633463,12.02.2020,Gouldings Resource Centre,"Refuse Collection, Disposal and Recycling Costs",306.24,BIFFA WASTE SERVICES LTD
Revenue,Childrens Services,Children's & Education Services,Other Education and Community Budget,5105633462,14.02.2020,Learning & Development Running Costs,"Refuse Collection, Disposal and Recycling Costs",37.35,BIFFA WASTE SERVICES LTD
Revenue,Childrens Services,Children's & Education Services,Other Education and Community Budget,5105631384,19.02.2020,Learning & Development Running Costs,"Refuse Collection, Disposal and Recycling Costs",29.61,BIFFA WASTE SERVICES LTD
Revenue,Neighbourhoods,Environmental & Regulatory Services,Waste Disposal,5105633536,19.02.2020,Lynnbottom Leachate Treatment Works,Payment to Private Contractors,"9,812.02",BIFFA WASTE SERVICES LTD
Revenue,Childrens Services,Children's & Education Services,Other Education and Community Budget,5105633462,14.02.2020,SEND Independent Advice & Support,"Refuse Collection, Disposal and Recycling Costs",38.92,BIFFA WASTE SERVICES LTD
Revenue,Childrens Services,Children's & Education Services,Other Education and Community Budget,5105631384,19.02.2020,SEND Independent Advice & Support,"Refuse Collection, Disposal and Recycling Costs",48.65,BIFFA WASTE SERVICES LTD
Revenue,Neighbourhoods,Cultural and Related Services,Recreation and Sport,5105631384,19.02.2020,Seaclose Amusements,"Refuse Collection, Disposal and Recycling Costs",575.00,BIFFA WASTE SERVICES LTD
Revenue,Neighbourhoods,Cultural and Related Services,Recreation and Sport,5105633462,14.02.2020,Seaclose Amusements,"Refuse Collection, Disposal and Recycling Costs",93.60,BIFFA WASTE SERVICES LTD
Revenue,Adult Services,Adult Social Care,Learning Disab Supp (to be reallocated),5105631384,19.02.2020,Plean Dene,"Refuse Collection, Disposal and Recycling Costs",211.60,BIFFA WASTE SERVICES LTD
Revenue,Adult Services,Adult Social Care,Learning Disab Supp (to be reallocated),5105633462,14.02.2020,Plean Dene,"Refuse Collection, Disposal and Recycling Costs",169.28,BIFFA WASTE SERVICES LTD
Revenue,Adult Services,Adult Social Care,Learning Disab Supp (to be reallocated),5105633462,14.02.2020,Saxonbury,"Refuse Collection, Disposal and Recycling Costs",83.60,BIFFA WASTE SERVICES LTD
Revenue,Adult Services,Adult Social Care,Learning Disab Supp (to be reallocated),5105631384,19.02.2020,Saxonbury,"Refuse Collection, Disposal and Recycling Costs",104.50,BIFFA WASTE SERVICES LTD
Revenue,Resources,Central Services,Support Services,5105633462,14.02.2020,60 Dodnor Lane Store,"Refuse Collection, Disposal and Recycling Costs",2.80,BIFFA WASTE SERVICES LTD
Revenue,Resources,Central Services,Support Services,5105631384,19.02.2020,60 Dodnor Lane Store,"Refuse Collection, Disposal and Recycling Costs",3.50,BIFFA WASTE SERVICES LTD
Revenue,Adult Services,Adult Social Care,Assistive Equipment & Technology,5105631384,19.02.2020,Community Equipment Store,"Refuse Collection, Disposal and Recycling Costs",278.65,BIFFA WASTE SERVICES LTD
Revenue,Adult Services,Adult Social Care,Assistive Equipment & Technology,5105633462,14.02.2020,Community Equipment Store,"Refuse Collection, Disposal and Recycling Costs",220.42,BIFFA WASTE SERVICES LTD
Revenue,Neighbourhoods,Cultural and Related Services,Recreation and Sport,5105633462,14.02.2020,Medina Leisure Centre,"Refuse Collection, Disposal and Recycling Costs",272.75,BIFFA WASTE SERVICES LTD
Revenue,Neighbourhoods,Cultural and Related Services,Recreation and Sport,5105631384,19.02.2020,Medina Leisure Centre,"Refuse Collection, Disposal and Recycling Costs",491.84,BIFFA WASTE SERVICES LTD
Revenue,Neighbourhoods,Highways and Transport Services,"Airports, Harbours & Toll Facilities",5105633462,14.02.2020,Ryde Harbour,"Refuse Collection, Disposal and Recycling Costs",41.46,BIFFA WASTE SERVICES LTD
Revenue,Neighbourhoods,Highways and Transport Services,"Airports, Harbours & Toll Facilities",5105631384,19.02.2020,Ryde Harbour,"Refuse Collection, Disposal and Recycling Costs",11.20,BIFFA WASTE SERVICES LTD
Revenue,Childrens Services,Children's & Education Services,Children Looked After,5105631384,19.02.2020,Beaulieu House,"Refuse Collection, Disposal and Recycling Costs",213.80,BIFFA WASTE SERVICES LTD
Revenue,Childrens Services,Children's & Education Services,Children Looked After,5105633462,14.02.2020,Beaulieu House,"Refuse Collection, Disposal and Recycling Costs",189.84,BIFFA WASTE SERVICES LTD
Revenue,Regeneration,Central Services,Support Services,5105633462,14.02.2020,"Westridge, Ryde","Refuse Collection, Disposal and Recycling Costs",74.70,BIFFA WASTE SERVICES LTD
Revenue,Regeneration,Central Services,Support Services,5105631384,19.02.2020,"Westridge, Ryde","Refuse Collection, Disposal and Recycling Costs",94.42,BIFFA WASTE SERVICES LTD
Revenue,Adult Services,Adult Social Care,Social Care Activities,5105633462,14.02.2020,Mental Health Team,Professional Services,4.48,BIFFA WASTE SERVICES LTD
Revenue,Adult Services,Adult Social Care,Social Care Activities,5105631384,19.02.2020,Mental Health Team,Professional Services,5.60,BIFFA WASTE SERVICES LTD
Revenue,Adult Services,Adult Social Care,Learning Disab Supp (to be reallocated),5105633462,14.02.2020,Seagulls,"Refuse Collection, Disposal and Recycling Costs",73.88,BIFFA WASTE SERVICES LTD
Revenue,Adult Services,Adult Social Care,Learning Disab Supp (to be reallocated),5105631384,19.02.2020,Seagulls,"Refuse Collection, Disposal and Recycling Costs",92.35,BIFFA WASTE SERVICES LTD
Revenue,Regeneration,Central Services,Support Services,5105631384,19.02.2020,"County Hall,Newport","Refuse Collection, Disposal and Recycling Costs",555.85,BIFFA WASTE SERVICES LTD
Revenue,Regeneration,Central Services,Support Services,5105633462,14.02.2020,"County Hall,Newport","Refuse Collection, Disposal and Recycling Costs",450.38,BIFFA WASTE SERVICES LTD
Revenue,Regeneration,Central Services,Support Services,5105631384,19.02.2020,"Jubilee Stores, Newport","Refuse Collection, Disposal and Recycling Costs",123.00,BIFFA WASTE SERVICES LTD
Revenue,Regeneration,Central Services,Support Services,5105633462,14.02.2020,"Jubilee Stores, Newport","Refuse Collection, Disposal and Recycling Costs",98.40,BIFFA WASTE SERVICES LTD
Revenue,Neighbourhoods,Cultural and Related Services,Open Spaces,5105633462,14.02.2020,Fort Victoria,"Refuse Collection, Disposal and Recycling Costs",132.28,BIFFA WASTE SERVICES LTD
Revenue,Neighbourhoods,Cultural and Related Services,Open Spaces,5105631384,19.02.2020,Fort Victoria,"Refuse Collection, Disposal and Recycling Costs",138.35,BIFFA WASTE SERVICES LTD
Revenue,Neighbourhoods,Highways and Transport Services,"Airports, Harbours & Toll Facilities",5105631384,19.02.2020,Newport Harbour Account,"Refuse Collection, Disposal and Recycling Costs",198.00,BIFFA WASTE SERVICES LTD
Revenue,Neighbourhoods,Highways and Transport Services,"Airports, Harbours & Toll Facilities",5105631384,19.02.2020,Newport Harbour Account,"Refuse Collection, Disposal and Recycling Costs",545.60,BIFFA WASTE SERVICES LTD
Revenue,Neighbourhoods,Highways and Transport Services,"Airports, Harbours & Toll Facilities",5105631384,19.02.2020,Newport Harbour Account,"Refuse Collection, Disposal and Recycling Costs",130.35,BIFFA WASTE SERVICES LTD
Revenue,Neighbourhoods,Highways and Transport Services,"Airports, Harbours & Toll Facilities",5105633462,14.02.2020,Newport Harbour Account,"Refuse Collection, Disposal and Recycling Costs",156.80,BIFFA WASTE SERVICES LTD
Revenue,Neighbourhoods,Highways and Transport Services,"Airports, Harbours & Toll Facilities",5105633462,14.02.2020,Newport Harbour Account,"Refuse Collection, Disposal and Recycling Costs",219.60,BIFFA WASTE SERVICES LTD
Revenue,Neighbourhoods,Highways and Transport Services,"Airports, Harbours & Toll Facilities",5105633462,14.02.2020,Newport Harbour Account,"Refuse Collection, Disposal and Recycling Costs",104.28,BIFFA WASTE SERVICES LTD
Revenue,Fire & Rescue,Fire & Rescue Services,Fire fighting and Rescue Operations,5105633462,14.02.2020,Fire Operations,"Refuse Collection, Disposal and Recycling Costs",328.24,BIFFA WASTE SERVICES LTD
Revenue,Fire & Rescue,Fire & Rescue Services,Fire fighting and Rescue Operations,5105631384,19.02.2020,Fire Operations,"Refuse Collection, Disposal and Recycling Costs",410.30,BIFFA WASTE SERVICES LTD
Revenue,Neighbourhoods,Cultural and Related Services,Library Service,5105631384,19.02.2020,Public Libraries Central,"Refuse Collection, Disposal and Recycling Costs",500.68,BIFFA WASTE SERVICES LTD
Revenue,Neighbourhoods,Cultural and Related Services,Library Service,5105633462,14.02.2020,Public Libraries Central,"Refuse Collection, Disposal and Recycling Costs",125.56,BIFFA WASTE SERVICES LTD
Revenue,Neighbourhoods,Cultural and Related Services,Culture and Heritage,5105631384,19.02.2020,Cothey Bottom Store RYDE,"Refuse Collection, Disposal and Recycling Costs",29.25,BIFFA WASTE SERVICES LTD
Revenue,Neighbourhoods,Cultural and Related Services,Recreation and Sport,5105631384,19.02.2020,Westridge Squash Courts,"Refuse Collection, Disposal and Recycling Costs",29.97,BIFFA WASTE SERVICES LTD
Revenue,Neighbourhoods,Cultural and Related Services,Recreation and Sport,5105633462,14.02.2020,Westridge Squash Courts,"Refuse Collection, Disposal and Recycling Costs",37.35,BIFFA WASTE SERVICES LTD
Revenue,Adult Services,Adult Social Care,Learning Disab Supp (to be reallocated),5105631384,19.02.2020,40 Venner Avenue,"Refuse Collection, Disposal and Recycling Costs",92.35,BIFFA WASTE SERVICES LTD
Revenue,Adult Services,Adult Social Care,Learning Disab Supp (to be reallocated),5105633462,14.02.2020,40 Venner Avenue,"Refuse Collection, Disposal and Recycling Costs",73.88,BIFFA WASTE SERVICES LTD
Revenue,Resources,Central Services,Support Services,5105633462,14.02.2020,Corporate Stores,"Refuse Collection, Disposal and Recycling Costs",211.20,BIFFA WASTE SERVICES LTD
Revenue,Resources,Central Services,Support Services,5105631384,19.02.2020,Corporate Stores,"Refuse Collection, Disposal and Recycling Costs",225.20,BIFFA WASTE SERVICES LTD
Revenue,Childrens Services,Children's & Education Services,Management & Support Services,5105633462,14.02.2020,Specialist Service Business Admin,"Refuse Collection, Disposal and Recycling Costs",120.28,BIFFA WASTE SERVICES LTD
Revenue,Childrens Services,Children's & Education Services,Management & Support Services,5105631384,19.02.2020,Specialist Service Business Admin,"Refuse Collection, Disposal and Recycling Costs",150.35,BIFFA WASTE SERVICES LTD
Revenue,Neighbourhoods,Environmental & Regulatory Services,Waste Disposal,5105633536,19.02.2020,Lynnbottom Landfill Site,Payment to Private Contractors,372.62,BIFFA WASTE SERVICES LTD
Revenue,Neighbourhoods,Environmental & Regulatory Services,"Cemetery, Cremation & Mortuary Services",5105631384,19.02.2020,Crematorium,"Refuse Collection, Disposal and Recycling Costs",217.20,BIFFA WASTE SERVICES LTD
Revenue,Neighbourhoods,Environmental & Regulatory Services,"Cemetery, Cremation & Mortuary Services",5105633462,14.02.2020,Crematorium,"Refuse Collection, Disposal and Recycling Costs",173.76,BIFFA WASTE SERVICES LTD
Revenue,Neighbourhoods,Cultural and Related Services,Recreation and Sport,5105631384,19.02.2020,Fairway Sports Complex,Payment to Private Contractors,432.40,BIFFA WASTE SERVICES LTD
Revenue,Neighbourhoods,Cultural and Related Services,Culture and Heritage,5105631384,19.02.2020,Dinosaur Isle Museum (Sandown Geology),"Refuse Collection, Disposal and Recycling Costs",113.55,BIFFA WASTE SERVICES LTD
Revenue,Neighbourhoods,Cultural and Related Services,Culture and Heritage,5105633462,14.02.2020,Dinosaur Isle Museum (Sandown Geology),"Refuse Collection, Disposal and Recycling Costs",93.94,BIFFA WASTE SERVICES LTD
Revenue,Regeneration,Central Services,Support Services,5105633462,14.02.2020,"Civic Centre,Sandown","Refuse Collection, Disposal and Recycling Costs",82.40,BIFFA WASTE SERVICES LTD
Revenue,Regeneration,Central Services,Support Services,5105631384,19.02.2020,"Civic Centre,Sandown","Refuse Collection, Disposal and Recycling Costs",82.40,BIFFA WASTE SERVICES LTD
Revenue,Adult Services,Adult Social Care,Mental Health Support (to be reallocated),5105633462,14.02.2020,Mental Health Day Services,"Refuse Collection, Disposal and Recycling Costs",76.80,BIFFA WASTE SERVICES LTD
Revenue,Adult Services,Adult Social Care,Mental Health Support (to be reallocated),5105631384,19.02.2020,Mental Health Day Services,"Refuse Collection, Disposal and Recycling Costs",91.80,BIFFA WASTE SERVICES LTD
Revenue,Neighbourhoods,Cultural and Related Services,Recreation and Sport,5105634905,26.02.2020,Commercial Sales Team,Advertising & Publicity,650.00,BILTMORE PRINTERS
Revenue,Neighbourhoods,Environmental & Regulatory Services,Regulatory Services,5105632160,07.02.2020,Licensing Services,Veterinary Fees,"1,031.16",BIOTOPE LTD
Revenue,Resources,Central Services,Support Services,5105634522,21.02.2020,Staff Benefits,Payment to Private Contractors,243.00,BLACKBERRY LANE PRE-SCHOOL
Revenue,Resources,Central Services,Central Services to the Public,5105635527,28.02.2020,Elections,Security of Buildings,728.95,BLUELINE SECURITY MANAGEMENT LTD
Revenue,Childrens Services,Children's & Education Services,Other Education and Community Budget,5105635030,26.02.2020,Commissioning ACL,Grants to External Bodies,"3,260.00",BODSTER EQUINE ASSISTED LEARN CIC
Revenue,Childrens Services,Children's & Education Services,Special Schools & Alternative Provision,5400002565,28.02.2020,Island Learning Centre,Bought in Prof Services - Curriculum (Schools),80.00,BODSTER EQUINE ASSISTED LEARN CIC
Revenue,Childrens Services,Children's & Education Services,Special Schools & Alternative Provision,5105634953,26.02.2020,Island Learning Centre,Bought in Prof Services - Curriculum (Schools),160.00,BODSTER EQUINE ASSISTED LEARN CIC
Revenue,Childrens Services,Children's & Education Services,Special Schools & Alternative Provision,5105634847,21.02.2020,Island Learning Centre,Bought in Prof Services - Curriculum (Schools),160.00,BODSTER EQUINE ASSISTED LEARN CIC
Revenue,Childrens Services,Children's & Education Services,Family Support Services,5105635028,26.02.2020,Short Breaks,Charges from Independent Providers,349.17,BODSTER EQUINE ASSISTED LEARN CIC
Revenue,Fire & Rescue,Fire & Rescue Services,Fire fighting and Rescue Operations,5105633936,14.02.2020,Fire Fighters Salaries,Medical Fees and Staff Welfare,62.55,BOLLE SAFETY
Revenue,Fire & Rescue,Fire & Rescue Services,Fire fighting and Rescue Operations,5105633936,14.02.2020,Fire Fighters Salaries,Medical Fees and Staff Welfare,25.00,BOLLE SAFETY
Revenue,Fire & Rescue,Fire & Rescue Services,Fire fighting and Rescue Operations,5105633936,14.02.2020,Fire Fighters Salaries,Medical Fees and Staff Welfare,19.00,BOLLE SAFETY
Revenue,Fire & Rescue,Fire & Rescue Services,Fire fighting and Rescue Operations,5105634023,14.02.2020,Fire Fighters Salaries,Medical Fees and Staff Welfare,25.00,BOLLE SAFETY
Revenue,Fire & Rescue,Fire & Rescue Services,Fire fighting and Rescue Operations,5105634023,14.02.2020,Fire Fighters Salaries,Medical Fees and Staff Welfare,39.72,BOLLE SAFETY
Revenue,Fire & Rescue,Fire & Rescue Services,Fire fighting and Rescue Operations,5105634023,14.02.2020,Fire Fighters Salaries,Medical Fees and Staff Welfare,15.00,BOLLE SAFETY
Revenue,Adult Services,Adult Social Care,Learning Disab Supp (to be reallocated),5105635009,26.02.2020,31 Carter Avenue,Catering Purchases,6.64,BOOKER CASH & CARRY LTD
Revenue,Adult Services,Adult Social Care,Learning Disab Supp (to be reallocated),5105633131,07.02.2020,31 Carter Avenue,Catering Purchases,18.49,BOOKER CASH & CARRY LTD
Revenue,Adult Services,Adult Social Care,Learning Disab Supp (to be reallocated),5105634947,26.02.2020,Plean Dene,Catering Purchases,134.90,BOOKER CASH & CARRY LTD
Revenue,Adult Services,Adult Social Care,Learning Disab Supp (to be reallocated),5105634817,21.02.2020,Plean Dene,Catering Purchases,12.28,BOOKER CASH & CARRY LTD
Revenue,Adult Services,Adult Social Care,Learning Disab Supp (to be reallocated),5105633032,05.02.2020,Plean Dene,Catering Purchases,6.87,BOOKER CASH & CARRY LTD
Revenue,Adult Services,Adult Social Care,Learning Disab Supp (to be reallocated),5105635574,28.02.2020,Plean Dene,Catering Purchases,71.18,BOOKER CASH & CARRY LTD
Revenue,Adult Services,Adult Social Care,Learning Disab Supp (to be reallocated),5105635574,28.02.2020,Plean Dene,Catering Purchases,15.95,BOOKER CASH & CARRY LTD
Revenue,Adult Services,Adult Social Care,Learning Disab Supp (to be reallocated),5105633593,12.02.2020,Plean Dene,Catering Purchases,5.99,BOOKER CASH & CARRY LTD
Revenue,Adult Services,Adult Social Care,Learning Disab Supp (to be reallocated),5105633955,21.02.2020,Plean Dene,Catering Purchases,156.93,BOOKER CASH & CARRY LTD
Revenue,Adult Services,Adult Social Care,Learning Disab Supp (to be reallocated),5105633955,21.02.2020,Plean Dene,Catering Purchases,3.98,BOOKER CASH & CARRY LTD
Revenue,Adult Services,Adult Social Care,Learning Disab Supp (to be reallocated),5105633984,14.02.2020,Plean Dene,Catering Purchases,15.58,BOOKER CASH & CARRY LTD
Revenue,Adult Services,Adult Social Care,Learning Disab Supp (to be reallocated),5105633523,07.02.2020,Plean Dene,Catering Purchases,3.00,BOOKER CASH & CARRY LTD
Revenue,Adult Services,Adult Social Care,Learning Disab Supp (to be reallocated),5105633473,07.02.2020,Plean Dene,Catering Purchases,14.63,BOOKER CASH & CARRY LTD
Revenue,Adult Services,Adult Social Care,Learning Disab Supp (to be reallocated),5105635403,28.02.2020,Plean Dene,Catering Purchases,17.98,BOOKER CASH & CARRY LTD
Revenue,Adult Services,Adult Social Care,Learning Disab Supp (to be reallocated),5105635404,28.02.2020,Plean Dene,Catering Purchases,8.28,BOOKER CASH & CARRY LTD
Revenue,Public Health,Public Health,Smoking & Tobacco,5105626506,28.02.2020,Stop Smoking Services & Interventions NP,Payment to Private Contractors,28.93,BOOTS THE CHEMIST LTD (Ryde)
Revenue,Public Health,Public Health,Smoking & Tobacco,5105626506,28.02.2020,Stop Smoking Services & Interventions NP,Payment to Private Contractors,54.60,BOOTS THE CHEMIST LTD (Ryde)
Revenue,Public Health,Public Health,Smoking & Tobacco,5105626506,28.02.2020,Stop Smoking Services & Interventions NP,Payment to Private Contractors,9.00,BOOTS THE CHEMIST LTD (Ryde)
Revenue,Public Health,Public Health,Smoking & Tobacco,5105632893,19.02.2020,Stop Smoking Services & Interventions NP,Payment to Private Contractors,18.00,BOOTS THE CHEMIST LTD (Ryde)
Revenue,Public Health,Public Health,Smoking & Tobacco,5105632893,19.02.2020,Stop Smoking Services & Interventions NP,Payment to Private Contractors,14.00,BOOTS THE CHEMIST LTD (Ryde)
Revenue,Public Health,Public Health,Smoking & Tobacco,5105632893,19.02.2020,Stop Smoking Services & Interventions NP,Payment to Private Contractors,107.17,BOOTS THE CHEMIST LTD (Ryde)
Revenue,Public Health,Public Health,Smoking & Tobacco,5105632893,19.02.2020,Stop Smoking Services & Interventions NP,Payment to Private Contractors,136.50,BOOTS THE CHEMIST LTD (Ryde)
Revenue,Public Health,Public Health,Smoking & Tobacco,5105626506,28.02.2020,Stop Smoking Services & Interventions NP,Payment to Private Contractors,4.00,BOOTS THE CHEMIST LTD (Ryde)
Revenue,Public Health,Public Health,Smoking & Tobacco,5105635084,26.02.2020,Stop Smoking Services & Interventions NP,Payment to Private Contractors,20.00,BOOTS THE CHEMIST LTD (Ryde)
Revenue,Public Health,Public Health,Smoking & Tobacco,5105635084,26.02.2020,Stop Smoking Services & Interventions NP,Payment to Private Contractors,134.36,BOOTS THE CHEMIST LTD (Ryde)
Revenue,Public Health,Public Health,Smoking & Tobacco,5105635084,26.02.2020,Stop Smoking Services & Interventions NP,Payment to Private Contractors,27.30,BOOTS THE CHEMIST LTD (Ryde)
Revenue,Public Health,Public Health,Smoking & Tobacco,5105635084,26.02.2020,Stop Smoking Services & Interventions NP,Payment to Private Contractors,4.50,BOOTS THE CHEMIST LTD (Ryde)
Revenue,Public Health,Public Health,Sexual Health,5105634030,19.02.2020,Contraception P,Payment to Private Contractors,"1,333.00",BOOTS THE CHEMIST LTD (Ryde)
Revenue,Public Health,Public Health,Sexual Health,5105634030,19.02.2020,Contraception P,Payment to Private Contractors,249.60,BOOTS THE CHEMIST LTD (Ryde)
Revenue,Public Health,Public Health,Sexual Health,5105634030,19.02.2020,Contraception P,Payment to Private Contractors,295.05,BOOTS THE CHEMIST LTD (Ryde)
Revenue,Public Health,Public Health,Substance Misuse,5105634030,19.02.2020,Drug Misuse Adult- Treatment NP,Payment to Private Contractors,"1,928.50",BOOTS THE CHEMIST LTD (Ryde)
Revenue,Public Health,Public Health,Substance Misuse,5105634030,19.02.2020,Drug Misuse Adult- Treatment NP,Payment to Private Contractors,"1,226.00",BOOTS THE CHEMIST LTD (Ryde)
Revenue,Public Health,Public Health,Substance Misuse,5105634030,19.02.2020,Drug Misuse Adult- Treatment NP,Payment to Private Contractors,30.00,BOOTS THE CHEMIST LTD (Ryde)
Revenue,Public Health,Public Health,Smoking & Tobacco,5105633338,06.02.2020,Stop Smoking Services & Interventions NP,Payment to Private Contractors,-311.90,BOOTS UK LTD (SANDOWN LARGE STORE)
Revenue,Public Health,Public Health,Smoking & Tobacco,5105633338,06.02.2020,Stop Smoking Services & Interventions NP,Payment to Private Contractors,-54.60,BOOTS UK LTD (SANDOWN LARGE STORE)
Revenue,Public Health,Public Health,Smoking & Tobacco,5105633338,06.02.2020,Stop Smoking Services & Interventions NP,Payment to Private Contractors,-9.00,BOOTS UK LTD (SANDOWN LARGE STORE)
Revenue,Public Health,Public Health,Smoking & Tobacco,5105633338,06.02.2020,Stop Smoking Services & Interventions NP,Payment to Private Contractors,-44.00,BOOTS UK LTD (SANDOWN LARGE STORE)
Revenue,Public Health,Public Health,Sexual Health,5105634092,19.02.2020,Contraception P,Payment to Private Contractors,43.00,BOOTS UK LTD (SANDOWN LARGE STORE)
Revenue,Public Health,Public Health,Sexual Health,5105634092,19.02.2020,Contraception P,Payment to Private Contractors,5.20,BOOTS UK LTD (SANDOWN LARGE STORE)
Revenue,Public Health,Public Health,Sexual Health,5105634092,19.02.2020,Contraception P,Payment to Private Contractors,14.05,BOOTS UK LTD (SANDOWN LARGE STORE)
Revenue,Public Health,Public Health,Substance Misuse,5105634092,19.02.2020,Drug Misuse Adult- Treatment NP,Payment to Private Contractors,343.00,BOOTS UK LTD (SANDOWN LARGE STORE)
Revenue,Public Health,Public Health,Substance Misuse,5105634092,19.02.2020,Drug Misuse Adult- Treatment NP,Payment to Private Contractors,308.00,BOOTS UK LTD (SANDOWN LARGE STORE)
Revenue,Public Health,Public Health,Substance Misuse,5105634092,19.02.2020,Drug Misuse Adult- Treatment NP,Payment to Private Contractors,30.00,BOOTS UK LTD (SANDOWN LARGE STORE)
Revenue,Public Health,Public Health,Smoking & Tobacco,5105633475,21.02.2020,Stop Smoking Services & Interventions NP,Payment to Private Contractors,9.00,BOOTS UK LTD (107 HIGH ST SANDOWN)
Revenue,Public Health,Public Health,Smoking & Tobacco,5105633475,21.02.2020,Stop Smoking Services & Interventions NP,Payment to Private Contractors,54.00,BOOTS UK LTD (107 HIGH ST SANDOWN)
Revenue,Public Health,Public Health,Smoking & Tobacco,5105633475,21.02.2020,Stop Smoking Services & Interventions NP,Payment to Private Contractors,301.90,BOOTS UK LTD (107 HIGH ST SANDOWN)
Revenue,Public Health,Public Health,Smoking & Tobacco,5105633475,21.02.2020,Stop Smoking Services & Interventions NP,Payment to Private Contractors,54.60,BOOTS UK LTD (107 HIGH ST SANDOWN)
Revenue,Public Health,Public Health,Smoking & Tobacco,5105635068,28.02.2020,Stop Smoking Services & Interventions NP,Payment to Private Contractors,12.00,BOOTS UK LTD (107 HIGH ST SANDOWN)
Revenue,Public Health,Public Health,Smoking & Tobacco,5105635068,28.02.2020,Stop Smoking Services & Interventions NP,Payment to Private Contractors,78.98,BOOTS UK LTD (107 HIGH ST SANDOWN)
Revenue,Public Health,Public Health,Sexual Health,5105634027,19.02.2020,Contraception P,Payment to Private Contractors,112.40,BOOTS UK LTD (107 HIGH ST SANDOWN)
Revenue,Public Health,Public Health,Sexual Health,5105634027,19.02.2020,Contraception P,Payment to Private Contractors,301.00,BOOTS UK LTD (107 HIGH ST SANDOWN)
Revenue,Public Health,Public Health,Sexual Health,5105634027,19.02.2020,Contraception P,Payment to Private Contractors,46.80,BOOTS UK LTD (107 HIGH ST SANDOWN)
Revenue,Public Health,Public Health,Substance Misuse,5105634027,19.02.2020,Drug Misuse Adult- Treatment NP,Payment to Private Contractors,144.00,BOOTS UK LTD (107 HIGH ST SANDOWN)
Revenue,Public Health,Public Health,Substance Misuse,5105634027,19.02.2020,Drug Misuse Adult- Treatment NP,Payment to Private Contractors,30.00,BOOTS UK LTD (107 HIGH ST SANDOWN)
Revenue,Public Health,Public Health,Substance Misuse,5105634027,19.02.2020,Drug Misuse Adult- Treatment NP,Payment to Private Contractors,178.50,BOOTS UK LTD (107 HIGH ST SANDOWN)
Revenue,Public Health,Public Health,Smoking & Tobacco,5105626533,19.02.2020,Stop Smoking Services & Interventions NP,Payment to Private Contractors,4.00,BOOTS UK LTD (COWES)
Revenue,Public Health,Public Health,Smoking & Tobacco,5105626533,19.02.2020,Stop Smoking Services & Interventions NP,Payment to Private Contractors,18.52,BOOTS UK LTD (COWES)
Revenue,Public Health,Public Health,Smoking & Tobacco,5105635112,28.02.2020,Stop Smoking Services & Interventions NP,Payment to Private Contractors,10.00,BOOTS UK LTD (COWES)
Revenue,Public Health,Public Health,Smoking & Tobacco,5105635112,28.02.2020,Stop Smoking Services & Interventions NP,Payment to Private Contractors,67.37,BOOTS UK LTD (COWES)
Revenue,Public Health,Public Health,Smoking & Tobacco,5105635112,28.02.2020,Stop Smoking Services & Interventions NP,Payment to Private Contractors,10.00,BOOTS UK LTD (COWES)
Revenue,Public Health,Public Health,Smoking & Tobacco,5105635112,28.02.2020,Stop Smoking Services & Interventions NP,Payment to Private Contractors,81.90,BOOTS UK LTD (COWES)
Revenue,Public Health,Public Health,Smoking & Tobacco,5105635112,28.02.2020,Stop Smoking Services & Interventions NP,Payment to Private Contractors,9.00,BOOTS UK LTD (COWES)
Revenue,Public Health,Public Health,Sexual Health,5105634013,19.02.2020,Contraception P,Payment to Private Contractors,236.50,BOOTS UK LTD (COWES)
Revenue,Public Health,Public Health,Sexual Health,5105634013,19.02.2020,Contraception P,Payment to Private Contractors,15.60,BOOTS UK LTD (COWES)
Revenue,Public Health,Public Health,Sexual Health,5105634013,19.02.2020,Contraception P,Payment to Private Contractors,112.40,BOOTS UK LTD (COWES)
Revenue,Public Health,Public Health,Substance Misuse,5105634013,19.02.2020,Drug Misuse Adult- Treatment NP,Payment to Private Contractors,592.00,BOOTS UK LTD (COWES)
Revenue,Public Health,Public Health,Substance Misuse,5105634013,19.02.2020,Drug Misuse Adult- Treatment NP,Payment to Private Contractors,30.00,BOOTS UK LTD (COWES)
Revenue,Public Health,Public Health,Smoking & Tobacco,5105626534,19.02.2020,Stop Smoking Services & Interventions NP,Payment to Private Contractors,32.27,BOOTS UK LTD (FRESHWATER)
Revenue,Public Health,Public Health,Smoking & Tobacco,5105626534,19.02.2020,Stop Smoking Services & Interventions NP,Payment to Private Contractors,6.00,BOOTS UK LTD (FRESHWATER)
Revenue,Public Health,Public Health,Smoking & Tobacco,5105635368,28.02.2020,Stop Smoking Services & Interventions NP,Payment to Private Contractors,163.38,BOOTS UK LTD (FRESHWATER)
Revenue,Public Health,Public Health,Smoking & Tobacco,5105635368,28.02.2020,Stop Smoking Services & Interventions NP,Payment to Private Contractors,16.00,BOOTS UK LTD (FRESHWATER)
Revenue,Public Health,Public Health,Sexual Health,5105633994,19.02.2020,Contraception P,Payment to Private Contractors,129.00,BOOTS UK LTD (FRESHWATER)
Revenue,Public Health,Public Health,Sexual Health,5105633994,19.02.2020,Contraception P,Payment to Private Contractors,16.45,BOOTS UK LTD (FRESHWATER)
Revenue,Public Health,Public Health,Sexual Health,5105633994,19.02.2020,Contraception P,Payment to Private Contractors,28.10,BOOTS UK LTD (FRESHWATER)
Revenue,Public Health,Public Health,Substance Misuse,5105633994,19.02.2020,Drug Misuse Adult- Treatment NP,Payment to Private Contractors,30.00,BOOTS UK LTD (FRESHWATER)
Revenue,Public Health,Public Health,Substance Misuse,5105633994,19.02.2020,Drug Misuse Adult- Treatment NP,Payment to Private Contractors,224.00,BOOTS UK LTD (FRESHWATER)
Revenue,Public Health,Public Health,Smoking & Tobacco,5105626517,21.02.2020,Stop Smoking Services & Interventions NP,Payment to Private Contractors,22.00,BOOTS UK LTD (NEWPORT)
Revenue,Public Health,Public Health,Smoking & Tobacco,5105626517,21.02.2020,Stop Smoking Services & Interventions NP,Payment to Private Contractors,95.08,BOOTS UK LTD (NEWPORT)
Revenue,Public Health,Public Health,Smoking & Tobacco,5105635050,26.02.2020,Stop Smoking Services & Interventions NP,Payment to Private Contractors,20.00,BOOTS UK LTD (NEWPORT)
Revenue,Public Health,Public Health,Smoking & Tobacco,5105635050,26.02.2020,Stop Smoking Services & Interventions NP,Payment to Private Contractors,18.00,BOOTS UK LTD (NEWPORT)
Revenue,Public Health,Public Health,Smoking & Tobacco,5105635050,26.02.2020,Stop Smoking Services & Interventions NP,Payment to Private Contractors,100.36,BOOTS UK LTD (NEWPORT)
Revenue,Public Health,Public Health,Smoking & Tobacco,5105635050,26.02.2020,Stop Smoking Services & Interventions NP,Payment to Private Contractors,109.20,BOOTS UK LTD (NEWPORT)
Revenue,Public Health,Public Health,Smoking & Tobacco,5105635050,26.02.2020,Stop Smoking Services & Interventions NP,Payment to Private Contractors,9.00,BOOTS UK LTD (NEWPORT)
Revenue,Public Health,Public Health,Sexual Health,5105634026,19.02.2020,Contraception P,Payment to Private Contractors,"1,784.50",BOOTS UK LTD (NEWPORT)
Revenue,Public Health,Public Health,Sexual Health,5105634026,19.02.2020,Contraception P,Payment to Private Contractors,"1,025.65",BOOTS UK LTD (NEWPORT)
Revenue,Public Health,Public Health,Sexual Health,5105634026,19.02.2020,Contraception P,Payment to Private Contractors,62.40,BOOTS UK LTD (NEWPORT)
Revenue,Public Health,Public Health,Substance Misuse,5105634026,19.02.2020,Drug Misuse Adult- Treatment NP,Payment to Private Contractors,175.00,BOOTS UK LTD (NEWPORT)
Revenue,Public Health,Public Health,Substance Misuse,5105634026,19.02.2020,Drug Misuse Adult- Treatment NP,Payment to Private Contractors,478.00,BOOTS UK LTD (NEWPORT)
Revenue,Public Health,Public Health,Substance Misuse,5105634026,19.02.2020,Drug Misuse Adult- Treatment NP,Payment to Private Contractors,30.00,BOOTS UK LTD (NEWPORT)
Revenue,Public Health,Public Health,Sexual Health,5105634277,19.02.2020,Contraception P,Payment to Private Contractors,5.20,BOOTS UK LTD (SHANKLIN)
Revenue,Public Health,Public Health,Sexual Health,5105634277,19.02.2020,Contraception P,Payment to Private Contractors,84.30,BOOTS UK LTD (SHANKLIN)
Revenue,Public Health,Public Health,Sexual Health,5105634277,19.02.2020,Contraception P,Payment to Private Contractors,150.50,BOOTS UK LTD (SHANKLIN)
Revenue,Public Health,Public Health,Substance Misuse,5105634277,19.02.2020,Drug Misuse Adult- Treatment NP,Payment to Private Contractors,30.00,BOOTS UK LTD (SHANKLIN)
Revenue,Public Health,Public Health,Substance Misuse,5105634277,19.02.2020,Drug Misuse Adult- Treatment NP,Payment to Private Contractors,418.00,BOOTS UK LTD (SHANKLIN)
Revenue,Public Health,Public Health,Smoking & Tobacco,5105626524,19.02.2020,Stop Smoking Services & Interventions NP,Payment to Private Contractors,12.00,BOOTS UK LTD (TOWER HOUSE)
Revenue,Public Health,Public Health,Smoking & Tobacco,5105626524,19.02.2020,Stop Smoking Services & Interventions NP,Payment to Private Contractors,31.80,BOOTS UK LTD (TOWER HOUSE)
Revenue,Public Health,Public Health,Smoking & Tobacco,5105635053,26.02.2020,Stop Smoking Services & Interventions NP,Payment to Private Contractors,6.00,BOOTS UK LTD (TOWER HOUSE)
Revenue,Public Health,Public Health,Smoking & Tobacco,5105635053,26.02.2020,Stop Smoking Services & Interventions NP,Payment to Private Contractors,33.45,BOOTS UK LTD (TOWER HOUSE)
Revenue,Public Health,Public Health,Substance Misuse,5105634017,19.02.2020,Drug Misuse Adult- Treatment NP,Payment to Private Contractors,297.50,BOOTS UK LTD (TOWER HOUSE)
Revenue,Public Health,Public Health,Substance Misuse,5105634017,19.02.2020,Drug Misuse Adult- Treatment NP,Payment to Private Contractors,186.00,BOOTS UK LTD (TOWER HOUSE)
Revenue,Public Health,Public Health,Substance Misuse,5105634017,19.02.2020,Drug Misuse Adult- Treatment NP,Payment to Private Contractors,30.00,BOOTS UK LTD (TOWER HOUSE)
Revenue,Public Health,Public Health,Smoking & Tobacco,5105626516,19.02.2020,Stop Smoking Services & Interventions NP,Payment to Private Contractors,4.50,BOOTS UK LTD
Revenue,Public Health,Public Health,Smoking & Tobacco,5105626516,19.02.2020,Stop Smoking Services & Interventions NP,Payment to Private Contractors,10.00,BOOTS UK LTD
Revenue,Public Health,Public Health,Smoking & Tobacco,5105626516,19.02.2020,Stop Smoking Services & Interventions NP,Payment to Private Contractors,54.60,BOOTS UK LTD
Revenue,Public Health,Public Health,Smoking & Tobacco,5105635038,26.02.2020,Stop Smoking Services & Interventions NP,Payment to Private Contractors,4.00,BOOTS UK LTD
Revenue,Public Health,Public Health,Smoking & Tobacco,5105635038,26.02.2020,Stop Smoking Services & Interventions NP,Payment to Private Contractors,22.54,BOOTS UK LTD
Revenue,Public Health,Public Health,Sexual Health,5105634375,19.02.2020,Contraception P,Payment to Private Contractors,129.00,BOOTS UK LTD
Revenue,Public Health,Public Health,Sexual Health,5105634375,19.02.2020,Contraception P,Payment to Private Contractors,10.40,BOOTS UK LTD
Revenue,Public Health,Public Health,Sexual Health,5105634375,19.02.2020,Contraception P,Payment to Private Contractors,56.20,BOOTS UK LTD
Revenue,Public Health,Public Health,Substance Misuse,5105634375,19.02.2020,Drug Misuse Adult- Treatment NP,Payment to Private Contractors,30.00,BOOTS UK LTD
Revenue,Public Health,Public Health,Substance Misuse,5105634375,19.02.2020,Drug Misuse Adult- Treatment NP,Payment to Private Contractors,94.50,BOOTS UK LTD
Revenue,Public Health,Public Health,Substance Misuse,5105634375,19.02.2020,Drug Misuse Adult- Treatment NP,Payment to Private Contractors,224.00,BOOTS UK LTD
Revenue,Public Health,Public Health,Substance Misuse,5105633987,19.02.2020,Drug Misuse Adult- Treatment NP,Payment to Private Contractors,30.00,BOOTS UK LTD (YLB BEMBRIDGE)
Revenue,Childrens Services,Children's & Education Services,Children Looked After,5105633114,26.02.2020,In-house Fostering,Professional Services,512.27,BOSTICO INTERNATIONAL
Revenue,Adult Services,Housing Services,Homelessness,5105634506,21.02.2020,Private Rented Sector Leasing Scheme,Accommodation Costs - Leaseholder Payments,746.81,BRAMBLE LETTINGS
Revenue,Adult Services,Housing Services,Homelessness,5105634506,21.02.2020,Private Rented Sector Leasing Scheme,Accommodation Costs - Leaseholder Payments,746.81,BRAMBLE LETTINGS
Revenue,Adult Services,Housing Services,Homelessness,5105634506,21.02.2020,Private Rented Sector Leasing Scheme,Accommodation Costs - Leaseholder Payments,746.81,BRAMBLE LETTINGS
Revenue,Adult Services,Housing Services,Homelessness,5105634506,21.02.2020,Private Rented Sector Leasing Scheme,Accommodation Costs - Leaseholder Payments,746.81,BRAMBLE LETTINGS
Revenue,Adult Services,Housing Services,Homelessness,5105634506,21.02.2020,Private Rented Sector Leasing Scheme,Accommodation Costs - Leaseholder Payments,746.81,BRAMBLE LETTINGS
Revenue,Adult Services,Housing Services,Homelessness,5105634506,21.02.2020,Private Rented Sector Leasing Scheme,Accommodation Costs - Leaseholder Payments,588.38,BRAMBLE LETTINGS
Revenue,Adult Services,Housing Services,Homelessness,5105634506,21.02.2020,Private Rented Sector Leasing Scheme,Accommodation Costs - Leaseholder Payments,588.38,BRAMBLE LETTINGS
Revenue,Adult Services,Housing Services,Homelessness,5105634506,21.02.2020,Private Rented Sector Leasing Scheme,Accommodation Costs - Leaseholder Payments,588.38,BRAMBLE LETTINGS
Revenue,Adult Services,Housing Services,Homelessness,5105634506,21.02.2020,Private Rented Sector Leasing Scheme,Accommodation Costs - Leaseholder Payments,588.38,BRAMBLE LETTINGS
Revenue,Adult Services,Housing Services,Homelessness,5105634506,21.02.2020,Private Rented Sector Leasing Scheme,Accommodation Costs - Leaseholder Payments,588.38,BRAMBLE LETTINGS
Revenue,Adult Services,Housing Services,Homelessness,5105634506,21.02.2020,Private Rented Sector Leasing Scheme,Accommodation Costs - Leaseholder Payments,746.81,BRAMBLE LETTINGS
Revenue,Adult Services,Housing Services,Homelessness,5105634506,21.02.2020,Private Rented Sector Leasing Scheme,Accommodation Costs - Leaseholder Payments,588.38,BRAMBLE LETTINGS
Revenue,Adult Services,Housing Services,Homelessness,5105634506,21.02.2020,Private Rented Sector Leasing Scheme,Accommodation Costs - Leaseholder Payments,746.81,BRAMBLE LETTINGS
Revenue,Adult Services,Housing Services,Homelessness,5105634506,21.02.2020,Private Rented Sector Leasing Scheme,Accommodation Costs - Leaseholder Payments,769.43,BRAMBLE LETTINGS
Revenue,Adult Services,Housing Services,Homelessness,5105634506,21.02.2020,Private Rented Sector Leasing Scheme,Accommodation Costs - Leaseholder Payments,746.81,BRAMBLE LETTINGS
Revenue,Adult Services,Housing Services,Homelessness,5105634506,21.02.2020,Private Rented Sector Leasing Scheme,Accommodation Costs - Leaseholder Payments,746.81,BRAMBLE LETTINGS
Revenue,Adult Services,Housing Services,Homelessness,5105634506,21.02.2020,Private Rented Sector Leasing Scheme,Accommodation Costs - Leaseholder Payments,746.81,BRAMBLE LETTINGS
Revenue,Adult Services,Housing Services,Homelessness,5105634506,21.02.2020,Private Rented Sector Leasing Scheme,Accommodation Costs - Leaseholder Payments,746.81,BRAMBLE LETTINGS
Revenue,Adult Services,Housing Services,Homelessness,5105634506,21.02.2020,Private Rented Sector Leasing Scheme,Accommodation Costs - Leaseholder Payments,746.81,BRAMBLE LETTINGS
Revenue,Adult Services,Housing Services,Homelessness,5105634506,21.02.2020,Private Rented Sector Leasing Scheme,Accommodation Costs - Leaseholder Payments,746.81,BRAMBLE LETTINGS
Revenue,Adult Services,Housing Services,Homelessness,5105634506,21.02.2020,Private Rented Sector Leasing Scheme,Accommodation Costs - Leaseholder Payments,746.81,BRAMBLE LETTINGS
Revenue,Adult Services,Housing Services,Homelessness,5105634506,21.02.2020,Private Rented Sector Leasing Scheme,Accommodation Costs - Leaseholder Payments,746.81,BRAMBLE LETTINGS
Revenue,Adult Services,Housing Services,Homelessness,5105634506,21.02.2020,Private Rented Sector Leasing Scheme,Accommodation Costs - Leaseholder Payments,281.66,BRAMBLE LETTINGS
Revenue,Adult Services,Housing Services,Homelessness,5105634506,21.02.2020,Private Rented Sector Leasing Scheme,Accommodation Costs - Leaseholder Payments,216.66,BRAMBLE LETTINGS
Revenue,Neighbourhoods,Cultural and Related Services,Open Spaces,5105633930,14.02.2020,Allotments,Payment to Private Contractors,55.00,BRIGHSTONE LANDSCAPING LTD
Revenue,Neighbourhoods,Cultural and Related Services,Recreation and Sport,5105633930,14.02.2020,Slipways & Steps (Beaches),Payment to Private Contractors,40.00,BRIGHSTONE LANDSCAPING LTD
Revenue,Neighbourhoods,Highways and Transport Services,"Airports, Harbours & Toll Facilities",5105633533,12.02.2020,Ryde Harbour,Payment to Private Contractors,140.00,BRIGHSTONE LANDSCAPING LTD
Revenue,Neighbourhoods,Environmental & Regulatory Services,(Street) Cleansing (not highways),5105635511,28.02.2020,Beach Cleaning,Payment to Private Contractors,75.00,BRIGHSTONE LANDSCAPING LTD
Revenue,Neighbourhoods,Environmental & Regulatory Services,(Street) Cleansing (not highways),5105634278,19.02.2020,Beach Cleaning,Payment to Private Contractors,240.00,BRIGHSTONE LANDSCAPING LTD
Revenue,Neighbourhoods,Environmental & Regulatory Services,(Street) Cleansing (not highways),5105634278,19.02.2020,Beach Cleaning,Payment to Private Contractors,90.00,BRIGHSTONE LANDSCAPING LTD
Revenue,Neighbourhoods,Environmental & Regulatory Services,(Street) Cleansing (not highways),5105633535,07.02.2020,Beach Cleaning,Payment to Private Contractors,440.00,BRIGHSTONE LANDSCAPING LTD
Revenue,Neighbourhoods,Environmental & Regulatory Services,(Street) Cleansing (not highways),5105633930,14.02.2020,Beach Cleaning,Payment to Private Contractors,70.00,BRIGHSTONE LANDSCAPING LTD
Revenue,Neighbourhoods,Environmental & Regulatory Services,(Street) Cleansing (not highways),5105633009,05.02.2020,Beach Cleaning,Payment to Private Contractors,115.00,BRIGHSTONE LANDSCAPING LTD
Revenue,Neighbourhoods,Environmental & Regulatory Services,Coast Protection,5105633537,12.02.2020,Coast Protection,Payment to Private Contractors,120.00,BRIGHSTONE LANDSCAPING LTD
Revenue,Neighbourhoods,Environmental & Regulatory Services,Coast Protection,5105633531,12.02.2020,Coast Protection,Payment to Private Contractors,200.00,BRIGHSTONE LANDSCAPING LTD
Revenue,Neighbourhoods,Environmental & Regulatory Services,Coast Protection,5105633366,12.02.2020,Coast Protection,Payment to Private Contractors,"1,145.00",BRIGHSTONE LANDSCAPING LTD
Revenue,Neighbourhoods,Environmental & Regulatory Services,Coast Protection,5105634324,19.02.2020,Coast Protection,Payment to Private Contractors,45.00,BRIGHSTONE LANDSCAPING LTD
Revenue,Neighbourhoods,Environmental & Regulatory Services,Coast Protection,5105634320,19.02.2020,Coast Protection,Payment to Private Contractors,865.00,BRIGHSTONE LANDSCAPING LTD
Revenue,Neighbourhoods,Environmental & Regulatory Services,Coast Protection,5105634322,19.02.2020,Coast Protection,Payment to Private Contractors,545.00,BRIGHSTONE LANDSCAPING LTD
Revenue,Resources,Central Services,Support Services,5105634610,21.02.2020,Staff Benefits,Payment to Private Contractors,15.00,KCT CHILDCARE LIMITED
Revenue,Fire & Rescue,Fire & Rescue Services,Fire fighting and Rescue Operations,5105633712,12.02.2020,Fire Technical Support,Maintenance of Operational Equipment,52.56,BRISTOL UNIFORMS LTD
Revenue,Fire & Rescue,Fire & Rescue Services,Fire fighting and Rescue Operations,5105633957,14.02.2020,Fire Technical Support,Operational Equipment,150.00,BRISTOL UNIFORMS LTD
Capital,Place,Capital,Capital,5105635413,28.02.2020,Fire Capital Projects,"Plant, Equipment & Furniture - Capital",342.72,BRISTOL UNIFORMS LTD
Capital,Place,Capital,Capital,5105633964,14.02.2020,Fire Capital Projects,"Plant, Equipment & Furniture - Capital","8,440.56",BRISTOL UNIFORMS LTD
Capital,Place,Capital,Capital,5105634884,21.02.2020,Fire Capital Projects,"Plant, Equipment & Furniture - Capital","1,021.36",BRISTOL UNIFORMS LTD
Capital,Place,Capital,Capital,5105633373,07.02.2020,Fire Capital Projects,"Plant, Equipment & Furniture - Capital","5,175.36",BRISTOL UNIFORMS LTD
Revenue,Childrens Services,Children's & Education Services,Other Education and Community Budget,5105635506,28.02.2020,Adult Community Learning,Licences,80.00,BRITISH COMPUTER SOCIETY
Revenue,Childrens Services,Children's & Education Services,Other Education and Community Budget,5105635506,28.02.2020,Adult Community Learning,Licences,16.25,BRITISH COMPUTER SOCIETY
Revenue,Adult Services,Adult Social Care,Learning Disability Suppt-adults (18-64),5105634170,19.02.2020,Learning Disability Residential 18-64,Charges from Independent Providers,"6,840.12",BROADHAM CARE LTD
Revenue,Public Health,Public Health,NHS Health Check Programme,5105634977,26.02.2020,NHS Health Check Programme P,Payment to Private Contractors,"1,593.50",BROOKSIDE HEALTH CENTRE
Revenue,Public Health,Public Health,NHS Health Check Programme,5105633983,19.02.2020,NHS Health Check Programme P,Payment to Private Contractors,97.00,BROOKSIDE HEALTH CENTRE
Revenue,Public Health,Public Health,Sexual Health,5105633983,19.02.2020,Long Acting Reversible Contraception,Payment to Private Contractors,"1,460.00",BROOKSIDE HEALTH CENTRE
Capital,Corporate Items,Balance Sheet,Balance Sheet,5105634216,19.02.2020,Balance Sheet,Order Settlement to Bal Sht GL,92.12,BUCKLAND CARE LTD
Revenue,Adult Services,Adult Social Care,Support - Memory /Cognition-older people (65+),5105634216,19.02.2020,Memory & Cognition Residential 65+,Charges from Independent Providers,"2,414.16",BUCKLAND CARE LTD
Revenue,Adult Services,Adult Social Care,Support - Memory /Cognition-older people (65+),5105634216,19.02.2020,Memory & Cognition Residential 65+,Charges from Independent Providers,"2,414.16",BUCKLAND CARE LTD
Revenue,Adult Services,Adult Social Care,Support - Memory /Cognition-older people (65+),5105634216,19.02.2020,Memory & Cognition Residential 65+,Charges from Independent Providers,"2,053.52",BUCKLAND CARE LTD
Revenue,Adult Services,Adult Social Care,Physical Support - adults (18-64),5105634216,19.02.2020,Physical Support Residential 18-64,Charges from Independent Providers,"2,414.16",BUCKLAND CARE LTD
Revenue,Adult Services,Adult Social Care,Social Support - Support for Carer,5105633606,12.02.2020,Carers Residential,Charges from Independent Providers,"10,863.72",BUCKLAND CARE LTD
Revenue,Adult Services,Adult Social Care,Social Support - Support for Carer,5105634216,19.02.2020,Carers Residential,Charges from Independent Providers,603.54,BUCKLAND CARE LTD
Revenue,Adult Services,Adult Social Care,Social Support - Support for Carer,5105635448,28.02.2020,Carers Residential,Regular Respite Care,"1,293.30",BUCKLAND CARE LTD
Revenue,Adult Services,Adult Social Care,Physical Support - older people (65+),5105633095,05.02.2020,Physical Support Residential 65+,Charges from Independent Providers,603.54,BUCKLAND CARE LTD
Revenue,Adult Services,Adult Social Care,Learning Disability Support-older people,5105634216,19.02.2020,Learning Disability Residential 65+,Charges from Independent Providers,"2,414.16",BUCKLAND CARE LTD
Revenue,Adult Services,Adult Social Care,Physical Support - older people (65+),5105634216,19.02.2020,Physical Support Residential 65+,Charges from Independent Providers,"2,414.16",BUCKLAND CARE LTD
Revenue,Adult Services,Adult Social Care,Physical Support - older people (65+),5105634216,19.02.2020,Physical Support Residential 65+,Charges from Independent Providers,"2,414.16",BUCKLAND CARE LTD
Revenue,Adult Services,Adult Social Care,Physical Support - older people (65+),5105634216,19.02.2020,Physical Support Residential 65+,Charges from Independent Providers,"2,414.16",BUCKLAND CARE LTD
Revenue,Adult Services,Adult Social Care,Physical Support - older people (65+),5105634216,19.02.2020,Physical Support Residential 65+,Charges from Independent Providers,"2,414.16",BUCKLAND CARE LTD
Revenue,Adult Services,Adult Social Care,Physical Support - older people (65+),5105634216,19.02.2020,Physical Support Residential 65+,Charges from Independent Providers,"2,414.16",BUCKLAND CARE LTD
Revenue,Adult Services,Adult Social Care,Physical Support - older people (65+),5105634216,19.02.2020,Physical Support Residential 65+,Charges from Independent Providers,"2,414.16",BUCKLAND CARE LTD
Revenue,Adult Services,Adult Social Care,Physical Support - older people (65+),5105634216,19.02.2020,Physical Support Residential 65+,Charges from Independent Providers,"2,414.16",BUCKLAND CARE LTD
Revenue,Adult Services,Adult Social Care,Physical Support - older people (65+),5105634216,19.02.2020,Physical Support Residential 65+,Charges from Independent Providers,"2,053.52",BUCKLAND CARE LTD
Revenue,Adult Services,Adult Social Care,Physical Support - older people (65+),5105634216,19.02.2020,Physical Support Residential 65+,Charges from Independent Providers,"2,414.16",BUCKLAND CARE LTD
Revenue,Adult Services,Adult Social Care,Physical Support - older people (65+),5105634216,19.02.2020,Physical Support Residential 65+,Charges from Independent Providers,"1,960.84",BUCKLAND CARE LTD
Revenue,Adult Services,Adult Social Care,Physical Support - older people (65+),5105634216,19.02.2020,Physical Support Residential 65+,Charges from Independent Providers,"2,414.16",BUCKLAND CARE LTD
Revenue,Adult Services,Adult Social Care,Physical Support - older people (65+),5105633503,07.02.2020,Physical Support Residential 65+,Charges from Independent Providers,"1,540.66",BUCKLAND CARE LTD
Revenue,Adult Services,Adult Social Care,Physical Support - older people (65+),5105635597,28.02.2020,Physical Support Residential 65+,Charges from Independent Providers,"2,240.96",BUCKLAND CARE LTD
Revenue,Adult Services,Adult Social Care,Physical Support - older people (65+),5105635178,28.02.2020,Physical Support Residential 65+,Charges from Independent Providers,"2,100.90",BUCKLAND CARE LTD
Revenue,Adult Services,Adult Social Care,Physical Support - older people (65+),5105634864,21.02.2020,Physical Support Residential 65+,Charges from Independent Providers,"3,080.28",BUCKLAND CARE LTD
Revenue,Adult Services,Adult Social Care,Physical Support - older people (65+),5105632966,05.02.2020,Physical Support Residential 65+,Charges from Independent Providers,"1,416.80",BUCKLAND CARE LTD
Revenue,Adult Services,Adult Social Care,Physical Support - older people (65+),5105634216,19.02.2020,Physical Support Residential 65+,Charges from Independent Providers,"2,414.16",BUCKLAND CARE LTD
Revenue,Adult Services,Adult Social Care,Physical Support - older people (65+),5105634216,19.02.2020,Physical Support Residential 65+,Charges from Independent Providers,"2,414.16",BUCKLAND CARE LTD
Revenue,Adult Services,Adult Social Care,Physical Support - older people (65+),5105634216,19.02.2020,Physical Support Residential 65+,Charges from Independent Providers,"2,414.16",BUCKLAND CARE LTD
Capital,Corporate Items,Balance Sheet,Balance Sheet,5105633163,07.02.2020,Balance Sheet,Order Settlement to Bal Sht GL,"2,414.40",BUCKLAND CARE LTD
Revenue,Adult Services,Adult Social Care,Commissioning & Service Delivery,5105634207,19.02.2020,"Funded Nursing Care, Registered Nursing Care Contribution",Charges from Independent Providers,662.48,BUCKLAND CARE LTD
Revenue,Adult Services,Adult Social Care,Commissioning & Service Delivery,5105634207,19.02.2020,"Funded Nursing Care, Registered Nursing Care Contribution",Charges from Independent Providers,662.48,BUCKLAND CARE LTD
Revenue,Adult Services,Adult Social Care,Commissioning & Service Delivery,5105634207,19.02.2020,"Funded Nursing Care, Registered Nursing Care Contribution",Charges from Independent Providers,662.48,BUCKLAND CARE LTD
Revenue,Adult Services,Adult Social Care,Commissioning & Service Delivery,5105634207,19.02.2020,"Funded Nursing Care, Registered Nursing Care Contribution",Charges from Independent Providers,662.48,BUCKLAND CARE LTD
Revenue,Adult Services,Adult Social Care,Commissioning & Service Delivery,5105634207,19.02.2020,"Funded Nursing Care, Registered Nursing Care Contribution",Charges from Independent Providers,662.48,BUCKLAND CARE LTD
Revenue,Adult Services,Adult Social Care,Commissioning & Service Delivery,5105634207,19.02.2020,"Funded Nursing Care, Registered Nursing Care Contribution",Charges from Independent Providers,662.48,BUCKLAND CARE LTD
Revenue,Adult Services,Adult Social Care,Support - Memory /Cognition-older people (65+),5105634207,19.02.2020,Memory & Cognition Residential 65+,Charges from Independent Providers,"2,414.16",BUCKLAND CARE LTD
Revenue,Adult Services,Adult Social Care,Commissioning & Service Delivery,5105633092,05.02.2020,FNC IWC funded clients,Charges from Independent Providers,804.44,BUCKLAND CARE LTD
Revenue,Adult Services,Adult Social Care,Commissioning & Service Delivery,5105633163,07.02.2020,FNC IWC funded clients,Charges from Independent Providers,804.44,BUCKLAND CARE LTD
Revenue,Adult Services,Adult Social Care,Commissioning & Service Delivery,5105634207,19.02.2020,FNC IWC funded clients,Regular Respite Care,632.80,BUCKLAND CARE LTD
Revenue,Adult Services,Adult Social Care,Commissioning & Service Delivery,5105635100,26.02.2020,FNC IWC funded clients,Charges from Independent Providers,23.66,BUCKLAND CARE LTD
Revenue,Adult Services,Adult Social Care,Commissioning & Service Delivery,5105634360,19.02.2020,FNC IWC funded clients,Charges from Independent Providers,"1,963.78",BUCKLAND CARE LTD
Revenue,Adult Services,Adult Social Care,Commissioning & Service Delivery,5105634360,19.02.2020,FNC IWC funded clients,Charges from Independent Providers,662.48,BUCKLAND CARE LTD
Revenue,Adult Services,Adult Social Care,Commissioning & Service Delivery,5105634360,19.02.2020,FNC IWC funded clients,Charges from Independent Providers,331.24,BUCKLAND CARE LTD
Revenue,Adult Services,Adult Social Care,Commissioning & Service Delivery,5105634530,21.02.2020,FNC IWC funded clients,Charges from Independent Providers,212.94,BUCKLAND CARE LTD
Revenue,Adult Services,Adult Social Care,Commissioning & Service Delivery,5105633603,12.02.2020,FNC IWC funded clients,Charges from Independent Providers,"2,839.20",BUCKLAND CARE LTD
Revenue,Adult Services,Adult Social Care,Commissioning & Service Delivery,5105633724,12.02.2020,FNC IWC funded clients,Charges from Independent Providers,638.82,BUCKLAND CARE LTD
Revenue,Adult Services,Adult Social Care,Commissioning & Service Delivery,5105634207,19.02.2020,FNC IWC funded clients,Charges from Independent Providers,662.48,BUCKLAND CARE LTD
Revenue,Adult Services,Adult Social Care,Commissioning & Service Delivery,5105634207,19.02.2020,FNC IWC funded clients,Charges from Independent Providers,662.48,BUCKLAND CARE LTD
Revenue,Adult Services,Adult Social Care,Commissioning & Service Delivery,5105634207,19.02.2020,FNC IWC funded clients,Charges from Independent Providers,662.48,BUCKLAND CARE LTD
Revenue,Adult Services,Adult Social Care,Commissioning & Service Delivery,5105634207,19.02.2020,FNC IWC funded clients,Charges from Independent Providers,662.48,BUCKLAND CARE LTD
Revenue,Adult Services,Adult Social Care,Commissioning & Service Delivery,5105634207,19.02.2020,FNC IWC funded clients,Charges from Independent Providers,662.48,BUCKLAND CARE LTD
Revenue,Adult Services,Adult Social Care,Commissioning & Service Delivery,5105634207,19.02.2020,FNC IWC funded clients,Charges from Independent Providers,662.48,BUCKLAND CARE LTD
Revenue,Adult Services,Adult Social Care,Commissioning & Service Delivery,5105634207,19.02.2020,FNC IWC funded clients,Charges from Independent Providers,662.48,BUCKLAND CARE LTD
Revenue,Adult Services,Adult Social Care,Commissioning & Service Delivery,5105635445,28.02.2020,CHC Interim Funding (FWP),Charges from Independent Providers,"6,120.00",BUCKLAND CARE LTD
Revenue,Adult Services,Adult Social Care,Commissioning & Service Delivery,5105635593,28.02.2020,CHC Interim Funding (FWP),Charges from Independent Providers,603.60,BUCKLAND CARE LTD
Revenue,Adult Services,Adult Social Care,Commissioning & Service Delivery,5105635593,28.02.2020,CHC Interim Funding (FWP),Charges from Independent Providers,"1,020.00",BUCKLAND CARE LTD
Revenue,Adult Services,Adult Social Care,Commissioning & Service Delivery,5105634859,21.02.2020,CHC Interim Funding (FWP),Charges from Independent Providers,"3,621.60",BUCKLAND CARE LTD
Revenue,Adult Services,Adult Social Care,Commissioning & Service Delivery,5105634859,21.02.2020,CHC Interim Funding (FWP),Charges from Independent Providers,241.44,BUCKLAND CARE LTD
